Service Area,Service Division,Expense Type,Expense Code,Detailed Expense Type,Payment Date,Transaction Number,Amount Exc VAT,Supplier Name
"Regeneration, Economy and Growth",Corporate Property and Land,Third Party Payments,430100,Rendered by Private Contractors,01/03/2021,3839349-017,"1,072.50",AKA ELECTRICAL ENGINEERING LTD.
"Regeneration, Economy and Growth",Corporate Property and Land,Third Party Payments,430100,Rendered by Private Contractors,01/03/2021,3839352-170600,"3,200.00",ALBANY OFFICE EQUIPMENT (WHOLESALE) LTD.
Neighbourhoods and Climate Change,Environmental Services,Third Party Payments,430100,Rendered by Private Contractors,01/03/2021,3839359-INV-3804,"1,280.37",ANNFIELD AUTO SERVICES.
Children and Young Peoples Services,Head of Education and Skills,Transport,230008,Contract Hire,01/03/2021,3839365-DCC04JAN21,"2,322.00",ATLAS TAXIS BISHOP AUCKLAND.
Children and Young Peoples Services,Head of Education and Skills,Transport,230008,Contract Hire,01/03/2021,3839365-DCC7JAN21,"2,622.24",ATLAS TAXIS BISHOP AUCKLAND.
Children and Young Peoples Services,Head of Early Help Inclusion & Vulnerable Children.,Supplies and Services,308013,Furniture,01/03/2021,3839368-97111,"1,332.80",BAILEYS BLINDS LTD.
Children and Young Peoples Services,Head of Childrens Social Care,Supplies and Services,338045,Services,01/03/2021,3839370-141011710,"2,750.00",BARNARDO SERVICES LTD.
Children and Young Peoples Services,Head of Education and Skills,Transport,230007,Contract Hire,01/03/2021,3839374-5-JAN,"1,515.00",BENNETTS TAXIS.
Children and Young Peoples Services,Head of Education and Skills,Transport,230007,Contract Hire,01/03/2021,3839374-FEBRUARY,"1,136.25",BENNETTS TAXIS.
Children and Young Peoples Services,Head of Education and Skills,Transport,230010,Contract Hire,01/03/2021,3839377-BL007-JAN21,"1,317.20",BIG MAMA`S TAXI.
Adult and Health Services,Head of Adults,Transport,230005,Contract Hire,01/03/2021,3839378-363,"1,617.00",BIRDS TAXIS LTD.
Adult and Health Services,Head of Adults,Transport,230005,Contract Hire,01/03/2021,3839378-365,720.03,BIRDS TAXIS LTD.
Adult and Health Services,Head of Adults,Transport,230005,Contract Hire,01/03/2021,3839378-366,720.03,BIRDS TAXIS LTD.
Adult and Health Services,Head of Adults,Transport,230005,Contract Hire,01/03/2021,3839381-33786,594.70,BLUELINE TAXIS.
Children and Young Peoples Services,Head of Education and Skills,Transport,230007,Contract Hire,01/03/2021,3839381-33789,630.00,BLUELINE TAXIS.
Children and Young Peoples Services,Head of Education and Skills,Transport,230008,Contract Hire,01/03/2021,3839380-33785,"1,013.00",BLUELINE TAXIS.
Children and Young Peoples Services,Head of Education and Skills,Transport,230007,Contract Hire,01/03/2021,3839383-98H,"2,207.20",BOBS TAXIS.
Neighbourhoods and Climate Change,Environmental Services,Supplies and Services,304221,Equipment and Materials,01/03/2021,3839393-418157,722.00,CARRS BILLINGTON AGRICULTURE.
Neighbourhoods and Climate Change,Environmental Services,Supplies and Services,304221,Equipment and Materials,01/03/2021,3839393-418169,558.00,CARRS BILLINGTON AGRICULTURE.
Children and Young Peoples Services,Head of Education and Skills,Transport,230007,Contract Hire,01/03/2021,3839399-47173,"2,096.00",CHRISTOPHER JAMES GRIERSON T/A GRIERSONS COACHES.
"Regeneration, Economy and Growth",Culture Sport and Tourism,Premises,145023,Cleaning and Domestic Supplies,01/03/2021,3839400-CN30074840,"2,329.08",CITRON HYGIENE UK LTD.
"Regeneration, Economy and Growth",Corporate Property and Land,Supplies and Services,304221,Equipment and Materials,01/03/2021,3839403-2852ABC604,577.99,CITY PLUMBING SUPPLIES HOLDINGS LTD.
Neighbourhoods and Climate Change,Technical Services CM0300,Stock A926,926900,Stock in hand-Inventory system,01/03/2021,3839408-808645,555.00,CMT EQUIPMENT LTD.
Neighbourhoods and Climate Change,Partnerships & Community Engagement Div.,Cap Exp on Grants & Other Financial Assistance (REFCUS),918004,Contributions to other bodies 918004,01/03/2021,3839413-VOUCHER20NB-EDRC024,"5,583.44",COXHOE PARISH COUNCIL.
Children and Young Peoples Services,Head of Education and Skills,Transport,230008,Contract Hire,01/03/2021,3839415-32,"1,506.00",CRAIG MASSEY`S TAXIS.
Children and Young Peoples Services,Head of Education and Skills,Transport,230008,Contract Hire,01/03/2021,3839418-110534,"2,061.69",CROFT BUSINESS SERVICES (UK) LTD T/A CROFT TAXIS.
Children and Young Peoples Services,Head of Education and Skills,Transport,230008,Contract Hire,01/03/2021,3839421-B14,"1,438.65",DAVID FOREMAN T/A DAVES TAXIS.
Children and Young Peoples Services,Head of Education and Skills,Transport,230008,Contract Hire,01/03/2021,3839421-B15,"1,789.92",DAVID FOREMAN T/A DAVES TAXIS.
Resources BK0010,Digital and Customer Services,Vehicles Equipment Furniture and Fittings,912701,Computer equipment,01/03/2021,3839423-7402686823,"2,020.94",DELL COMPUTER CORPORATION LTD.
Dedicated Schools Grant BG0015,DSG High Needs Block,Third Party Payments,410037,Rendered by Other Local Authorities,01/03/2021,3839424-17491,510.00,DELTA - NORTH CONSETT LTD.
Dedicated Schools Grant BG0015,DSG High Needs Block,Third Party Payments,410037,Rendered by Other Local Authorities,01/03/2021,3839424-17492,"1,190.00",DELTA - NORTH CONSETT LTD.
Neighbourhoods and Climate Change,Partnerships & Community Engagement Div.,Cap Exp on Grants & Other Financial Assistance (REFCUS),918004,Contributions to other bodies 918004,01/03/2021,3839425-VOUCHER20NB-DVLY016,"9,100.00",DERWENTSIDE TRUST.
Adult and Health Services,Head of Adults,Supplies and Services,338089,Services,01/03/2021,3839428-603,"1,700.00",DO THE WRITE THING LTD.
Children and Young Peoples Services,Head of Education and Skills,Transport,230008,Contract Hire,01/03/2021,3839435-1055,"2,416.32",EAST DURHAM TAXIS.
"Regeneration, Economy and Growth",Corporate Property and Land,Third Party Payments,430100,Rendered by Private Contractors,01/03/2021,3839443-SIN/20-081375-BD,660.00,ENGINEERING PRECISION SOLUTIONS LTD T/A CYRUS-BRADFORD.
Neighbourhoods and Climate Change,Environmental Services,Supplies and Services,384899,Miscellaneous Expenses,01/03/2021,3839450-NEI-EXP-02-2021-013,500.00,FIR TREE & HARPERLEY RESIDENTS ASSOCIATION.
Neighbourhoods and Climate Change,Technical Services CM0300,Supplies and Services,304357,Equipment and Materials,01/03/2021,3839457-DCC070221,"17,411.33",GAP GROUP LTD.
Children and Young Peoples Services,Head of Education and Skills,Transport,230006,Contract Hire,01/03/2021,3839467-1,937.00,HANNAH`S TAXI.
Neighbourhoods and Climate Change,Environmental Services,Supplies and Services,384899,Miscellaneous Expenses,01/03/2021,3839469-NEI-EXP-02-2021-014,500.00,HASWELL PARISH COUNCIL.
Children and Young Peoples Services,Head of Education and Skills,Transport,230034,Contract Hire,01/03/2021,3839478-53,780.00,HORNDALE TAXIS LTD.
Children and Young Peoples Services,Head of Education and Skills,Transport,230006,Contract Hire,01/03/2021,3839478-55,807.00,HORNDALE TAXIS LTD.
Neighbourhoods and Climate Change,Environmental Services,Supplies and Services,384899,Miscellaneous Expenses,01/03/2021,3839479-NEI-EXP-02-2021-015,500.00,"HUNWICK COMMUNITY, SOCIAL & ENVIRONMENT GROUP."
Adult and Health Services,Head of Adults,Third Party Payments,440046,Other third party payments E440,01/03/2021,3839481-RM-ES-9,"1,860.00",INCLUDE IN AUTISM.
Children and Young Peoples Services,Head of Education and Skills,Transport,230034,Contract Hire,01/03/2021,3839496-4-20/1/21,"1,296.40",JOHN CRAKE & SONS MINI BUSES LTD.
Children and Young Peoples Services,Head of Education and Skills,Transport,230034,Contract Hire,01/03/2021,3839497-227,755.25,JOHN ROBSON T/A ACE TAXIS.
"Regeneration, Economy and Growth",Corporate Property and Land,Supplies and Services,304221,Equipment and Materials,01/03/2021,3839500-0303/00285974,782.50,JT DOVE LTD.
Children and Young Peoples Services,Head of Education and Skills,Transport,230007,Contract Hire,01/03/2021,3839517-29459,823.65,LEE`S COACHES LTD.
Children and Young Peoples Services,Head of Education and Skills,Transport,230007,Contract Hire,01/03/2021,3839517-29460,"1,094.57",LEE`S COACHES LTD.
Children and Young Peoples Services,Head of Education and Skills,Transport,230034,Contract Hire,01/03/2021,3839527-INV01/2021/09,"2,015.90",MARK & JOHN CHISHOLM T/A (CHEVRON).
Neighbourhoods and Climate Change,Environmental Services,Supplies and Services,384899,Miscellaneous Expenses,01/03/2021,3839534-NEI-EXP-02-2021-016,500.00,MEDOMSLEY COMMUNITY ACTION.
Children and Young Peoples Services,Head of Education and Skills,Transport,230006,Contract Hire,01/03/2021,3839585-CEW8-JAN21,"1,008.00",MOOR PRIVATE HIRE.
Children and Young Peoples Services,Head of Education and Skills,Transport,230034,Contract Hire,01/03/2021,3839595-6/2021/C,917.00,MR MARIUSZ LASOTA T/A BM TAXI.
Children and Young Peoples Services,Head of Education and Skills,Transport,230009,Contract Hire,01/03/2021,3839598-FIN0121,745.50,MR STUART SCOTT T/A AIRPORT CARS DURHAM
Children and Young Peoples Services,Head of Education and Skills,Supplies and Services,338027,Services,01/03/2021,3839599-0026,"1,250.00",MRS NATALIE ANNE DALTON (EDUCATIONAL CONSULTANT).
Children and Young Peoples Services,Head of Education and Skills,Supplies and Services,338027,Services,01/03/2021,3839599-0027,"1,250.00",MRS NATALIE ANNE DALTON (EDUCATIONAL CONSULTANT).
"Regeneration, Economy and Growth",Corporate Property and Land,Third Party Payments,430100,Rendered by Private Contractors,01/03/2021,3839610-31005,"16,485.00",NE & C WINDOWS & DOORS LTD.
Adult and Health Services,Public Health CC0450,Supplies and Services,372009,Subscriptions E372,01/03/2021,3839614-1800010495701,"5,070.00",NEWCASTLE UPON TYNE CITY COUNCIL.
"Regeneration, Economy and Growth",Culture Sport and Tourism,Supplies and Services,332029,Printing Stationery and Gen Off Exps,01/03/2021,3839615-5235,600.00,NEWLANDMEDIA LTD.
Neighbourhoods and Climate Change,Technical Services CM0300,Stock A926,926900,Stock in hand-Inventory system,01/03/2021,3839624-XL266556,"2,200.00",PARK ELECTRICAL DISTRIBUTORS LTD.
Neighbourhoods and Climate Change,Technical Services CM0300,Stock A926,926900,Stock in hand-Inventory system,01/03/2021,3839624-XL266875,"2,805.84",PARK ELECTRICAL DISTRIBUTORS LTD.
"Regeneration, Economy and Growth",Corporate Property and Land,Supplies and Services,304221,Equipment and Materials,01/03/2021,3839624-XL266555,513.32,PARK ELECTRICAL DISTRIBUTORS LTD.
"Regeneration, Economy and Growth",Corporate Property and Land,Supplies and Services,304221,Equipment and Materials,01/03/2021,3839624-XL266577,"5,943.40",PARK ELECTRICAL DISTRIBUTORS LTD.
"Regeneration, Economy and Growth",Corporate Property and Land,Supplies and Services,304221,Equipment and Materials,01/03/2021,3839624-XL266578,"1,069.84",PARK ELECTRICAL DISTRIBUTORS LTD.
Children and Young Peoples Services,Head of Education and Skills,Transport,230013,Contract Hire,01/03/2021,3839626-2022,"1,657.56",PAUL WATSON TRAVEL.
Adult and Health Services,Head of Adults,Transport,230005,Contract Hire,01/03/2021,3839627-DM170-FEB21,652.50,PAUL WILSON.
Children and Young Peoples Services,Head of Education and Skills,Transport,230009,Contract Hire,01/03/2021,3839627-7311-FEB21,900.75,PAUL WILSON.
Children and Young Peoples Services,Head of Education and Skills,Transport,230008,Contract Hire,01/03/2021,3839627-N037-FEB21,675.00,PAUL WILSON.
Children and Young Peoples Services,Head of Education and Skills,Transport,230006,Contract Hire,01/03/2021,3839627-F848-FEB21,"1,134.00",PAUL WILSON.
Dedicated Schools Grant BG0015,DSG High Needs Block,Supplies and Services,304259,Equipment and Materials,01/03/2021,3839628-3018627,"1,635.75",PEARSON EDUCATION LTD.
Neighbourhoods and Climate Change,Environmental Services,Supplies and Services,384899,Miscellaneous Expenses,01/03/2021,3839630-NEI-EXP-02-2021-017,500.00,PETERLEE COMMUNITY GARDEN.
Adult and Health Services,Head of Adults,Supplies and Services,352001,Conference Expenses,01/03/2021,3839640-EF-G1273U4T,"1,000.00",PROFESSIONAL DEVELOPMENT GROUP T/A GOVERNMENT EVENTS.
Neighbourhoods and Climate Change,Technical Services CM0300,Third Party Payments,430100,Rendered by Private Contractors,01/03/2021,3839643-13100,826.80,QUANTUM POWER CONNECTIONS LTD.
Children and Young Peoples Services,Head of Education and Skills,Transport,230008,Contract Hire,01/03/2021,3839645-17634,"1,647.72",RAPID MINIBUSES.
Neighbourhoods and Climate Change,Environmental Services,Supplies and Services,304221,Equipment and Materials,01/03/2021,3839652-RSIN0361169,900.00,RIGBY TAYLOR LTD.
"Regeneration, Economy and Growth",Corporate Property and Land,Third Party Payments,430100,Rendered by Private Contractors,01/03/2021,3839654-61829,"4,985.00",RJ UTILITY SERVICES LTD.
Children and Young Peoples Services,Head of Education and Skills,Supplies and Services,384199,Miscellaneous Expenses,01/03/2021,3839655-DW0044/EL,"1,979.92",ROSEBERRY GRANGE GOLF CLUB.
Adult and Health Services,Commissioning inc Supporting People,Third Party Payments,479111,Purchase of Care,01/03/2021,3839656-SRI008609,"10,000.00",ROYAL NATIONAL INSTITUTE FOR THE BLIND (RNIB).
Children and Young Peoples Services,Head of Education and Skills,Transport,230007,Contract Hire,01/03/2021,3839662-SKS2021-055,506.25,SAMUEL KINGS SCHOOL.
"Regeneration, Economy and Growth",Corporate Property and Land,Third Party Payments,430100,Rendered by Private Contractors,01/03/2021,3839666-1657,520.00,SEALANTS UK LTD.
Neighbourhoods and Climate Change,Environmental Services,Supplies and Services,384899,Miscellaneous Expenses,01/03/2021,3839668-NEI-EXP-02-2021-019,500.00,SEDGEFIELD IN BLOOM.
Neighbourhoods and Climate Change,Technical Services CM0300,Third Party Payments,430100,Rendered by Private Contractors,01/03/2021,3839669-22587,"56,169.08",SEYMOUR (CIVIL ENGINEERING CONTRACTORS) LTD.
Children and Young Peoples Services,Head of Education and Skills,Transport,230034,Contract Hire,01/03/2021,3839673-210104,"3,000.00",SHOTTON PRIVATE HIRE.
Children and Young Peoples Services,Head of Education and Skills,Transport,230006,Contract Hire,01/03/2021,3839673-210103,"2,148.84",SHOTTON PRIVATE HIRE.
Children and Young Peoples Services,Head of Education and Skills,Transport,230008,Contract Hire,01/03/2021,3839673-210106,"2,488.48",SHOTTON PRIVATE HIRE.
Children and Young Peoples Services,Head of Education and Skills,Transport,230006,Contract Hire,01/03/2021,3839673-210102,984.00,SHOTTON PRIVATE HIRE.
"Regeneration, Economy and Growth",Culture Sport and Tourism,Supplies and Services,304259,Equipment and Materials,01/03/2021,3839680-00377416,"4,519.00",STAGE ELECTRICS PARTNERSHIP LTD.
Children and Young Peoples Services,Head of Education and Skills,Transport,230006,Contract Hire,01/03/2021,3839682-12-JANUARY21,"1,317.00",STEELYS TAXIS.
Adult and Health Services,Adults Excluded,Third Party Payments,440999,Other third party payments E440,01/03/2021,3839685-624810,"5,385.95",STOCKTON ON TEES BOROUGH COUNCIL.
Children and Young Peoples Services,Childrens Services Operational Support,Supplies and Services,338089,Services,01/03/2021,3839688-INV001196,"1,735.00",STRENGTHENING PRACTICE.
Children and Young Peoples Services,Head of Education and Skills,Transport,230007,Contract Hire,01/03/2021,3839699-4055/43,"3,534.00",TED WILFORD COACHES.
Children and Young Peoples Services,Head of Education and Skills,Transport,230007,Contract Hire,01/03/2021,3839699-4297/16,"3,534.00",TED WILFORD COACHES.
Children and Young Peoples Services,Head of Education and Skills,Transport,230003,Contract Hire,01/03/2021,3839699-5030/44,"3,629.00",TED WILFORD COACHES.
Neighbourhoods and Climate Change,Environmental Services,Supplies and Services,384899,Miscellaneous Expenses,01/03/2021,3839704-NEI-EXP-02-2021-020,500.00,THE MARKET GARDEN (SEDGEFIELD) CIC.
Neighbourhoods and Climate Change,Technical Services CM0300,Stock A926,926900,Stock in hand-Inventory system,01/03/2021,3839708-NSIN00051212,652.80,THOMAS OWEN & SONS (NEWCASTLE) LTD.
Neighbourhoods and Climate Change,Technical Services CM0300,Stock A926,926900,Stock in hand-Inventory system,01/03/2021,3839714-104317,"3,375.00",TOTAL RENTAL SOLUTIONS.
Neighbourhoods and Climate Change,Technical Services CM0300,Stock A926,926900,Stock in hand-Inventory system,01/03/2021,3839714-104318,"1,344.00",TOTAL RENTAL SOLUTIONS.
Neighbourhoods and Climate Change,Technical Services CM0300,Stock A926,926900,Stock in hand-Inventory system,01/03/2021,3839714-104319,"3,361.27",TOTAL RENTAL SOLUTIONS.
Neighbourhoods and Climate Change,Technical Services CM0300,Supplies and Services,304221,Equipment and Materials,01/03/2021,3839723-217989,552.40,TYNEDALE ROADSTONE LTD.
Neighbourhoods and Climate Change,Technical Services CM0300,Supplies and Services,304221,Equipment and Materials,01/03/2021,3839723-218088,598.60,TYNEDALE ROADSTONE LTD.
Neighbourhoods and Climate Change,Technical Services CM0300,Supplies and Services,304221,Equipment and Materials,01/03/2021,3839723-218163,595.00,TYNEDALE ROADSTONE LTD.
Neighbourhoods and Climate Change,Technical Services CM0300,Supplies and Services,304221,Equipment and Materials,01/03/2021,3839723-218165,"1,074.16",TYNEDALE ROADSTONE LTD.
Neighbourhoods and Climate Change,Technical Services CM0300,Supplies and Services,304221,Equipment and Materials,01/03/2021,3839723-218285,953.75,TYNEDALE ROADSTONE LTD.
Neighbourhoods and Climate Change,Technical Services CM0300,Supplies and Services,304221,Equipment and Materials,01/03/2021,3839723-218402,872.20,TYNEDALE ROADSTONE LTD.
Neighbourhoods and Climate Change,Technical Services CM0300,Supplies and Services,304221,Equipment and Materials,01/03/2021,3839723-218405,678.16,TYNEDALE ROADSTONE LTD.
Neighbourhoods and Climate Change,Technical Services CM0300,Supplies and Services,304221,Equipment and Materials,01/03/2021,3839723-218499,943.81,TYNEDALE ROADSTONE LTD.
Neighbourhoods and Climate Change,Technical Services CM0300,Supplies and Services,304221,Equipment and Materials,01/03/2021,3839723-218505,957.22,TYNEDALE ROADSTONE LTD.
Neighbourhoods and Climate Change,Technical Services CM0300,Supplies and Services,304221,Equipment and Materials,01/03/2021,3839723-218624,"1,082.08",TYNEDALE ROADSTONE LTD.
Neighbourhoods and Climate Change,Technical Services CM0300,Supplies and Services,304221,Equipment and Materials,01/03/2021,3839723-218626,"1,068.22",TYNEDALE ROADSTONE LTD.
Neighbourhoods and Climate Change,Technical Services CM0300,Supplies and Services,304221,Equipment and Materials,01/03/2021,3839723-218628,"1,074.16",TYNEDALE ROADSTONE LTD.
"Regeneration, Economy and Growth",Culture Sport and Tourism,Supplies and Services,312013,Newspapers books and periodicals E312,01/03/2021,3839726-I654390,"1,103.39",ULVERSCROFT LARGE PRINT BOOKS LTD.
"Regeneration, Economy and Growth",Culture Sport and Tourism,Supplies and Services,312013,Newspapers books and periodicals E312,01/03/2021,3839726-I654391,"1,149.79",ULVERSCROFT LARGE PRINT BOOKS LTD.
"Regeneration, Economy and Growth",Culture Sport and Tourism,Supplies and Services,312013,Newspapers books and periodicals E312,01/03/2021,3839726-I654392,746.07,ULVERSCROFT LARGE PRINT BOOKS LTD.
Children and Young Peoples Services,Head of Education and Skills,Transport,230008,Contract Hire,01/03/2021,3839732-1242-31/1/21,"1,080.00",WAYNE`S TAXIS.
"Regeneration, Economy and Growth",Culture Sport and Tourism,Supplies and Services,312013,Newspapers books and periodicals E312,01/03/2021,3839734-3450,"12,952.00",WF HOWES LTD.
Neighbourhoods and Climate Change,Environmental Services,Supplies and Services,384899,Miscellaneous Expenses,01/03/2021,3839736-NEI-EXP-02-2021-021,500.00,WITTON PARK VILLAGE IN BLOOM.
Resources BK0010,Digital and Customer Services,Supplies and Services,342033,Computers and Communications,01/03/2021,3839737-KY57983,"14,070.00",XMA LTD.
Resources BK0010,Digital and Customer Services,Supplies and Services,342051,Computers and Communications,01/03/2021,3839741-IN0164972,"71,921.00",ZELLIS UK LTD.
Neighbourhoods and Climate Change,Technical Services CM0300,Supplies and Services,304221,Equipment and Materials,02/03/2021,3840323-011159,"4,819.10",A HILL & SONS LTD.
"Regeneration, Economy and Growth",Corporate Property and Land,Third Party Payments,430100,Rendered by Private Contractors,02/03/2021,3840331-170601,"1,600.00",ALBANY OFFICE EQUIPMENT (WHOLESALE) LTD.
Adult and Health Services,Public Health CC0450,Supplies and Services,328041,Clothing uniforms and laundry E328,02/03/2021,3840331-170497,"14,100.00",ALBANY OFFICE EQUIPMENT (WHOLESALE) LTD.
Children and Young Peoples Services,Head of Education and Skills,Supplies and Services,384199,Miscellaneous Expenses,02/03/2021,3840342-DW0090-1&EL,"2,166.87",BARRIO COMIDA LTD.
"Regeneration, Economy and Growth",Transport and Contracted Services,Third Party Payments,440999,Other third party payments E440,02/03/2021,3840343-87337,"6,514.32",BAYDALE CONTROL SYSTEMS LTD.
"Regeneration, Economy and Growth",Corporate Property and Land,Supplies and Services,304221,Equipment and Materials,02/03/2021,3840347-4872,594.61,BES LTD.
"Regeneration, Economy and Growth",Corporate Property and Land,Supplies and Services,304221,Equipment and Materials,02/03/2021,3840358-10428006,654.50,CARPET & FLOORING (TRADING) LTD.
"Regeneration, Economy and Growth",Corporate Property and Land,Supplies and Services,304999,Equipment and Materials,02/03/2021,3840358-10430049,"1,057.22",CARPET & FLOORING (TRADING) LTD.
Neighbourhoods and Climate Change,Technical Services CM0300,Supplies and Services,304358,Equipment and Materials,02/03/2021,3840364-1804,"3,870.40",CG SIMPSON & SON.
Neighbourhoods and Climate Change,Technical Services CM0300,Supplies and Services,304358,Equipment and Materials,02/03/2021,3840364-1809,"4,345.60",CG SIMPSON & SON.
Adult and Health Services,Commissioning inc Supporting People,Third Party Payments,479101,Purchase of Care,02/03/2021,3840367-36530,"12,500.00",CHS HEALTHCARE.
Adult and Health Services,Commissioning inc Supporting People,Third Party Payments,479101,Purchase of Care,02/03/2021,3840367-36531,"7,000.00",CHS HEALTHCARE.
Adult and Health Services,Commissioning inc Supporting People,Third Party Payments,479101,Purchase of Care,02/03/2021,3840367-36532,"12,500.00",CHS HEALTHCARE.
Neighbourhoods and Climate Change,Technical Services CM0300,Stock A926,926004,Stock,02/03/2021,3840372-400031097,"6,129.81",CLEVELAND POTASH LTD T/A ICL FERTILIZERS.
Neighbourhoods and Climate Change,Technical Services CM0300,Stock A926,926004,Stock,02/03/2021,3840372-400031098,"3,664.60",CLEVELAND POTASH LTD T/A ICL FERTILIZERS.
Neighbourhoods and Climate Change,Technical Services CM0300,Stock A926,926004,Stock,02/03/2021,3840372-400031099,"18,839.11",CLEVELAND POTASH LTD T/A ICL FERTILIZERS.
Neighbourhoods and Climate Change,Technical Services CM0300,Stock A926,926004,Stock,02/03/2021,3840372-400031100,"15,286.93",CLEVELAND POTASH LTD T/A ICL FERTILIZERS.
Neighbourhoods and Climate Change,Technical Services CM0300,Stock A926,926004,Stock,02/03/2021,3840372-400031101,"2,433.82",CLEVELAND POTASH LTD T/A ICL FERTILIZERS.
Neighbourhoods and Climate Change,Technical Services CM0300,Stock A926,926004,Stock,02/03/2021,3840372-400031102,"14,320.41",CLEVELAND POTASH LTD T/A ICL FERTILIZERS.
Neighbourhoods and Climate Change,Technical Services CM0300,Stock A926,926004,Stock,02/03/2021,3840372-400031103,"5,131.90",CLEVELAND POTASH LTD T/A ICL FERTILIZERS.
Neighbourhoods and Climate Change,Technical Services CM0300,Stock A926,926004,Stock,02/03/2021,3840372-400031104,"1,722.80",CLEVELAND POTASH LTD T/A ICL FERTILIZERS.
Neighbourhoods and Climate Change,Technical Services CM0300,Stock A926,926004,Stock,02/03/2021,3840372-400031105,"11,142.72",CLEVELAND POTASH LTD T/A ICL FERTILIZERS.
Neighbourhoods and Climate Change,Technical Services CM0300,Stock A926,926004,Stock,02/03/2021,3840372-400031106,"2,051.30",CLEVELAND POTASH LTD T/A ICL FERTILIZERS.
Neighbourhoods and Climate Change,Technical Services CM0300,Stock A926,926004,Stock,02/03/2021,3840372-400031107,"10,142.62",CLEVELAND POTASH LTD T/A ICL FERTILIZERS.
Neighbourhoods and Climate Change,Technical Services CM0300,Stock A926,926004,Stock,02/03/2021,3840372-400031108,"10,156.49",CLEVELAND POTASH LTD T/A ICL FERTILIZERS.
Neighbourhoods and Climate Change,Technical Services CM0300,Stock A926,926004,Stock,02/03/2021,3840372-400031109,"6,134.19",CLEVELAND POTASH LTD T/A ICL FERTILIZERS.
Neighbourhoods and Climate Change,Technical Services CM0300,Stock A926,926004,Stock,02/03/2021,3840372-400031110,"9,178.29",CLEVELAND POTASH LTD T/A ICL FERTILIZERS.
Neighbourhoods and Climate Change,Technical Services CM0300,Stock A926,926004,Stock,02/03/2021,3840372-400031311,"7,172.25",CLEVELAND POTASH LTD T/A ICL FERTILIZERS.
Neighbourhoods and Climate Change,Technical Services CM0300,Stock A926,926004,Stock,02/03/2021,3840372-400031312,"9,223.55",CLEVELAND POTASH LTD T/A ICL FERTILIZERS.
Neighbourhoods and Climate Change,Technical Services CM0300,Stock A926,926004,Stock,02/03/2021,3840372-400031419,"8,086.21",CLEVELAND POTASH LTD T/A ICL FERTILIZERS.
Neighbourhoods and Climate Change,Technical Services CM0300,Stock A926,926004,Stock,02/03/2021,3840372-400031420,"15,415.41",CLEVELAND POTASH LTD T/A ICL FERTILIZERS.
Neighbourhoods and Climate Change,Technical Services CM0300,Stock A926,926004,Stock,02/03/2021,3840372-400031499,"8,181.84",CLEVELAND POTASH LTD T/A ICL FERTILIZERS.
Neighbourhoods and Climate Change,Technical Services CM0300,Stock A926,926004,Stock,02/03/2021,3840372-400031500,"15,385.48",CLEVELAND POTASH LTD T/A ICL FERTILIZERS.
Neighbourhoods and Climate Change,Technical Services CM0300,Stock A926,926004,Stock,02/03/2021,3840372-400031576,"4,081.43",CLEVELAND POTASH LTD T/A ICL FERTILIZERS.
Neighbourhoods and Climate Change,Technical Services CM0300,Stock A926,926004,Stock,02/03/2021,3840372-400031577,"9,294.36",CLEVELAND POTASH LTD T/A ICL FERTILIZERS.
Neighbourhoods and Climate Change,Technical Services CM0300,Stock A926,926004,Stock,02/03/2021,3840372-400031672,"12,317.29",CLEVELAND POTASH LTD T/A ICL FERTILIZERS.
Children and Young Peoples Services,Head of Childrens Social Care,Third Party Payments,486044,Service level agreements E486,02/03/2021,3840375-3910018462,"3,583.00",CO DURHAM & DARLINGTON NHS FOUNDATION TRUST.
"Regeneration, Economy and Growth",Corporate Property and Land,Third Party Payments,430100,Rendered by Private Contractors,02/03/2021,3840383-NE2194,987.00,DELTA WIRING SOLUTIONS LTD.
"Regeneration, Economy and Growth",Corporate Property and Land,Fees,901002,Consultants fees 901002,02/03/2021,3840403-131148/16,"4,000.00",FAIRHURST (CONSULTING ENGINEERS).
"Regeneration, Economy and Growth",Culture Sport and Tourism,Vehicles Equipment Furniture and Fittings,912521,Purchase-furniture and fittings,02/03/2021,3840404-142015,"4,580.79",FANTASY PRINTS LIMITED.
Neighbourhoods and Climate Change,Technical Services CM0300,Supplies and Services,304358,Equipment and Materials,02/03/2021,3840413-77873,"1,880.15",GEORGE VARDY HAULAGE.
"Regeneration, Economy and Growth",Corporate Property and Land,Supplies and Services,304221,Equipment and Materials,02/03/2021,3840419-4689583,"2,362.39",HEADLAM (FLOORCOVERING DISTRIBUTORS) LTD.
Chief Executive's Office,Communications Management,Supplies and Services,372009,Subscriptions E372,02/03/2021,3840421-1597926,833.00,HEMMING GROUP LTD.
Neighbourhoods and Climate Change,Technical Services CM0300,Third Party Payments,430100,Rendered by Private Contractors,02/03/2021,3840423-3200,"7,431.28",HIGHWAY CONSTRUCTION SERVICES LTD.
Adult and Health Services,Public Health CC0450,Third Party Payments,460803,Contract Payments,02/03/2021,3840427-683/21/1801-04,"387,252.00",HUMANKIND CHARITY.
Neighbourhoods and Climate Change,Technical Services CM0300,Supplies and Services,338027,Services,02/03/2021,3840429-SI7505294,"3,416.00",IAN FARMER ASSOCIATES (1998) LTD.
"Regeneration, Economy and Growth",Development and Housing,Supplies and Services,342051,Computers and Communications,02/03/2021,3840431-7032422,950.00,IDOX SOFTWARE LTD.
"Regeneration, Economy and Growth",Development and Housing,Supplies and Services,342051,Computers and Communications,02/03/2021,3840431-7032447,"2,375.00",IDOX SOFTWARE LTD.
Neighbourhoods and Climate Change,Technical Services CM0300,Supplies and Services,304358,Equipment and Materials,02/03/2021,3840439-1774/2020,739.00,J & JG GILL & SONS LTD.
Neighbourhoods and Climate Change,Environmental Services,Supplies and Services,304221,Equipment and Materials,02/03/2021,3840449-0117/00283733,507.60,JT DOVE LTD.
Neighbourhoods and Climate Change,Technical Services CM0300,Supplies and Services,304221,Equipment and Materials,02/03/2021,3840449-0119/00288231,991.44,JT DOVE LTD.
Adult and Health Services,Commissioning inc Supporting People,Third Party Payments,473111,Purchase of Care,02/03/2021,3840457-LCD-FTI043275,"4,847.91",LEONARD CHESHIRE DISABILITY.
Adult and Health Services,Commissioning inc Supporting People,Third Party Payments,473111,Purchase of Care,02/03/2021,3840457-LCD-FTI043276,"4,657.40",LEONARD CHESHIRE DISABILITY.
"Regeneration, Economy and Growth",Corporate Property and Land,Supplies and Services,304221,Equipment and Materials,02/03/2021,3840458-00018540,509.10,LESTER CONTROL SYSTEMS LTD.
Neighbourhoods and Climate Change,Technical Services CM0300,Supplies and Services,304221,Equipment and Materials,02/03/2021,3840460-CINV-082233,"1,675.00",LIMELIGHT SIGNS LTD.
Neighbourhoods and Climate Change,Technical Services CM0300,Supplies and Services,304358,Equipment and Materials,02/03/2021,3840462-MS2622,619.20,M SPENCE SURFACING LTD.
Neighbourhoods and Climate Change,Technical Services CM0300,Supplies and Services,304358,Equipment and Materials,02/03/2021,3840462-MS2646,750.60,M SPENCE SURFACING LTD.
Neighbourhoods and Climate Change,Technical Services CM0300,Supplies and Services,304358,Equipment and Materials,02/03/2021,3840462-MS2647,572.63,M SPENCE SURFACING LTD.
Neighbourhoods and Climate Change,Technical Services CM0300,Supplies and Services,304358,Equipment and Materials,02/03/2021,3840462-MS2660,867.15,M SPENCE SURFACING LTD.
Children and Young Peoples Services,Head of Education and Skills,Supplies and Services,338027,Services,02/03/2021,3840470-0060,"1,875.00",MICHAEL NELSON T/A CAD2CODE CIC.
"Regeneration, Economy and Growth",Corporate Property and Land,Third Party Payments,430100,Rendered by Private Contractors,02/03/2021,3840472-30559/92237748,"5,000.00",MITIE PROPERTY SERVICES (UK) LTD.
"Regeneration, Economy and Growth",Transport and Contracted Services,Construction work A908,908105,Construction work,02/03/2021,3840481-1800010522558,"14,895.64",NEWCASTLE UPON TYNE CITY COUNCIL.
Resources BK0010,Legal & Democratic Services,Supplies and Services,338103,Services,02/03/2021,3840482-3010016965,"14,227.50",NEWCASTLE UPON TYNE HOSPITALS NHS FOUNDATION TRUST.
Neighbourhoods and Climate Change,Environmental Services,Construction work A908,908105,Construction work,02/03/2021,3840486-DI20356332,"1,617.11",NORTHERN POWERGRID (NORTHEAST) LTD.
Resources BK0010,Finance & Transactional Services,Supplies and Services,338066,Services,02/03/2021,3840488-91444541,"1,146.48",NORTHGATE PUBLIC SERVICES (UK) LTD.
Neighbourhoods and Climate Change,Environmental Services,Transport,215005,Running Costs of Vehicles,02/03/2021,3840490-714637,"11,647.20",OIL NRG LTD.
Neighbourhoods and Climate Change,Environmental Services,Transport,215005,Running Costs of Vehicles,02/03/2021,3840490-714639,"1,044.00",OIL NRG LTD.
Neighbourhoods and Climate Change,Environmental Services,Transport,215005,Running Costs of Vehicles,02/03/2021,3840490-715093,"6,911.59",OIL NRG LTD.
Neighbourhoods and Climate Change,Environmental Services,Transport,215022,Running Costs of Vehicles,02/03/2021,3840490-715094,"1,036.07",OIL NRG LTD.
Neighbourhoods and Climate Change,Environmental Services,Transport,215005,Running Costs of Vehicles,02/03/2021,3840490-715097,"3,912.40",OIL NRG LTD.
Neighbourhoods and Climate Change,Environmental Services,Transport,215022,Running Costs of Vehicles,02/03/2021,3840490-715099,"1,044.00",OIL NRG LTD.
Neighbourhoods and Climate Change,Technical Services CM0300,Third Party Payments,430100,Rendered by Private Contractors,02/03/2021,3840491-23564,"3,360.00",OLIVERS TREE SERVICES LTD.
"Regeneration, Economy and Growth",Corporate Property and Land,Third Party Payments,430100,Rendered by Private Contractors,02/03/2021,3840493-10594-41,"1,115.62",OPUS BUILDING SERVICES LTD.
"Regeneration, Economy and Growth",Corporate Property and Land,Third Party Payments,430100,Rendered by Private Contractors,02/03/2021,3840493-10594-44,"1,128.38",OPUS BUILDING SERVICES LTD.
"Regeneration, Economy and Growth",Corporate Property and Land,Third Party Payments,430100,Rendered by Private Contractors,02/03/2021,3840493-10594-46,"1,128.38",OPUS BUILDING SERVICES LTD.
"Regeneration, Economy and Growth",Corporate Property and Land,Third Party Payments,430100,Rendered by Private Contractors,02/03/2021,3840493-10594-48,"1,142.62",OPUS BUILDING SERVICES LTD.
"Regeneration, Economy and Growth",Corporate Property and Land,Third Party Payments,430100,Rendered by Private Contractors,02/03/2021,3840493-10594-49,"1,148.02",OPUS BUILDING SERVICES LTD.
"Regeneration, Economy and Growth",Corporate Property and Land,Third Party Payments,430100,Rendered by Private Contractors,02/03/2021,3840493-10594-50,"1,136.77",OPUS BUILDING SERVICES LTD.
"Regeneration, Economy and Growth",Corporate Property and Land,Third Party Payments,430100,Rendered by Private Contractors,02/03/2021,3840493-10594-51,"1,131.82",OPUS BUILDING SERVICES LTD.
"Regeneration, Economy and Growth",Corporate Property and Land,Third Party Payments,430100,Rendered by Private Contractors,02/03/2021,3840493-10594-52,"1,128.38",OPUS BUILDING SERVICES LTD.
"Regeneration, Economy and Growth",Corporate Property and Land,Third Party Payments,430100,Rendered by Private Contractors,02/03/2021,3840493-10594-53,"1,128.38",OPUS BUILDING SERVICES LTD.
"Regeneration, Economy and Growth",Corporate Property and Land,Third Party Payments,430100,Rendered by Private Contractors,02/03/2021,3840493-10594-54,"1,128.38",OPUS BUILDING SERVICES LTD.
"Regeneration, Economy and Growth",Corporate Property and Land,Third Party Payments,430100,Rendered by Private Contractors,02/03/2021,3840493-10594-55,"1,128.38",OPUS BUILDING SERVICES LTD.
"Regeneration, Economy and Growth",Corporate Property and Land,Third Party Payments,430100,Rendered by Private Contractors,02/03/2021,3840493-10594-56,"1,162.42",OPUS BUILDING SERVICES LTD.
"Regeneration, Economy and Growth",Corporate Property and Land,Third Party Payments,430100,Rendered by Private Contractors,02/03/2021,3840493-10594-57,"1,145.32",OPUS BUILDING SERVICES LTD.
Neighbourhoods and Climate Change,Technical Services CM0300,Stock A926,926900,Stock in hand-Inventory system,02/03/2021,3840496-XL266639,"1,080.00",PARK ELECTRICAL DISTRIBUTORS LTD.
Children and Young Peoples Services,Head of Education and Skills,Supplies and Services,312011,Newspapers books and periodicals E312,02/03/2021,3840497-1818208,978.18,PETERS LTD.
Resources BK0010,Corporate Finance & Commercial Services,Supplies and Services,338066,Services,02/03/2021,3840501-1355505015,"3,000.00",PRICEWATERHOUSECOOPERS.
Adult and Health Services,Head of Adults,Third Party Payments,478151,Purchase of Care,02/03/2021,3840478-14,"2,322.60",REDACTED - PAYMENT TO INDIVIDUAL
Adult and Health Services,Commissioning inc Supporting People,Third Party Payments,479111,Purchase of Care,02/03/2021,3840508-24736,"29,749.32",RETHINK MENTAL ILLNESS LTD.
Resources BK0010,Legal & Democratic Services,Supplies and Services,340001,Postages E340,02/03/2021,3840513-9062378684,"11,948.74",ROYAL MAIL GROUP PLC.
"Regeneration, Economy and Growth",Corporate Property and Land,Fees,901002,Consultants fees 901002,02/03/2021,3840514-TEC565776,"39,045.32",RPS CONSULTING SERVICES LTD.
Neighbourhoods and Climate Change,Technical Services CM0300,Supplies and Services,304358,Equipment and Materials,02/03/2021,3840518-0021-2020,"1,276.45",S & R LANDSCAPES.
Neighbourhoods and Climate Change,Technical Services CM0300,Supplies and Services,304358,Equipment and Materials,02/03/2021,3840518-2572,522.00,S & R LANDSCAPES.
Neighbourhoods and Climate Change,Technical Services CM0300,Supplies and Services,304358,Equipment and Materials,02/03/2021,3840518-2574,"1,499.50",S & R LANDSCAPES.
Neighbourhoods and Climate Change,Technical Services CM0300,Supplies and Services,304358,Equipment and Materials,02/03/2021,3840518-2575,984.00,S & R LANDSCAPES.
Neighbourhoods and Climate Change,Technical Services CM0300,Supplies and Services,304358,Equipment and Materials,02/03/2021,3840518-2576,863.75,S & R LANDSCAPES.
Neighbourhoods and Climate Change,Technical Services CM0300,Supplies and Services,304358,Equipment and Materials,02/03/2021,3840518-2923,682.50,S & R LANDSCAPES.
Neighbourhoods and Climate Change,Technical Services CM0300,Supplies and Services,304358,Equipment and Materials,02/03/2021,3840518-2925,986.75,S & R LANDSCAPES.
Neighbourhoods and Climate Change,Technical Services CM0300,Supplies and Services,304358,Equipment and Materials,02/03/2021,3840518-2926,"1,010.25",S & R LANDSCAPES.
Neighbourhoods and Climate Change,Technical Services CM0300,Supplies and Services,304358,Equipment and Materials,02/03/2021,3840518-2927,660.00,S & R LANDSCAPES.
Neighbourhoods and Climate Change,Technical Services CM0300,Supplies and Services,304358,Equipment and Materials,02/03/2021,3840518-2928,777.00,S & R LANDSCAPES.
Neighbourhoods and Climate Change,Technical Services CM0300,Supplies and Services,304358,Equipment and Materials,02/03/2021,3840518-2931,847.00,S & R LANDSCAPES.
Neighbourhoods and Climate Change,Technical Services CM0300,Supplies and Services,304358,Equipment and Materials,02/03/2021,3840518-2932,977.00,S & R LANDSCAPES.
Neighbourhoods and Climate Change,Technical Services CM0300,Supplies and Services,304358,Equipment and Materials,02/03/2021,3840518-2933,847.00,S & R LANDSCAPES.
Neighbourhoods and Climate Change,Technical Services CM0300,Supplies and Services,304358,Equipment and Materials,02/03/2021,3840518-2935,777.00,S & R LANDSCAPES.
Neighbourhoods and Climate Change,Technical Services CM0300,Supplies and Services,304358,Equipment and Materials,02/03/2021,3840518-2936,986.75,S & R LANDSCAPES.
Neighbourhoods and Climate Change,Technical Services CM0300,Supplies and Services,304358,Equipment and Materials,02/03/2021,3840518-58,933.00,S & R LANDSCAPES.
Neighbourhoods and Climate Change,Environmental Services,Construction work A908,908105,Construction work,02/03/2021,3840529-2021-053,"9,082.00",SOLMEK LTD.
Neighbourhoods and Climate Change,Technical Services CM0300,Supplies and Services,304221,Equipment and Materials,02/03/2021,3840540-9043043904,635.25,TARMAC TRADING LTD.
Children and Young Peoples Services,Head of Childrens Social Care,Supplies and Services,338045,Services,02/03/2021,3840552-LEI0026/2-LP-JDE,560.76,THE RICHMOND PARTNERSHIP.
"Regeneration, Economy and Growth",Corporate Property and Land,Supplies and Services,304221,Equipment and Materials,02/03/2021,3840555-34217,"15,859.00",TOTAL PUMP SOLUTIONS LTD.
"Regeneration, Economy and Growth",Transport and Contracted Services,Supplies and Services,342051,Computers and Communications,02/03/2021,3840558-INV0088829,"18,799.99",TRAPEZE GROUP (UK) LIMITED.
Resources BK0010,Digital and Customer Services,Supplies and Services,344015,Telephones,02/03/2021,3840566-OZ16070,570.00,VODAFONE LTD.
Resources BK0010,Digital and Customer Services,Supplies and Services,344015,Telephones,02/03/2021,3840566-OY55552,655.00,VODAFONE LTD.
Resources BK0010,Digital and Customer Services,Supplies and Services,344015,Telephones,02/03/2021,3840566-OY55553,655.00,VODAFONE LTD.
Resources BK0010,Digital and Customer Services,Supplies and Services,344015,Telephones,02/03/2021,3840566-OY55554,655.00,VODAFONE LTD.
Resources BK0010,Digital and Customer Services,Supplies and Services,344015,Telephones,02/03/2021,3840566-OY88521,666.00,VODAFONE LTD.
Resources BK0010,Digital and Customer Services,Supplies and Services,344015,Telephones,02/03/2021,3840566-OZ85305,500.00,VODAFONE LTD.
Resources BK0010,Digital and Customer Services,Supplies and Services,344015,Telephones,02/03/2021,3840566-OZ85306,500.00,VODAFONE LTD.
Neighbourhoods and Climate Change,Environmental Services,Supplies and Services,304221,Equipment and Materials,02/03/2021,3840572-588410,506.87,WILLIAM SMITH GROUP 1832.
Neighbourhoods and Climate Change,Technical Services CM0300,Stock A926,926900,Stock in hand-Inventory system,02/03/2021,3840572-588660,571.20,WILLIAM SMITH GROUP 1832.
Neighbourhoods and Climate Change,Technical Services CM0300,Stock A926,926900,Stock in hand-Inventory system,02/03/2021,3840577-145409291,"1,882.26",ZG LIGHTING (UK) LTD.
Neighbourhoods and Climate Change,Technical Services CM0300,Stock A926,926900,Stock in hand-Inventory system,02/03/2021,3840577-145409293,"1,608.66",ZG LIGHTING (UK) LTD.
Children and Young Peoples Services,Head of Education and Skills,Transport,230009,Contract Hire,03/03/2021,3840583-FEBRUARY02-21,562.50,A & P TAXIS.
Children and Young Peoples Services,Head of Education and Skills,Transport,230006,Contract Hire,03/03/2021,3840583-FEBRUARY21,"1,541.25",A & P TAXIS.
Adult and Health Services,Public Health CC0450,Third Party Payments,460803,Contract Payments,03/03/2021,3840586-INV-0973,"124,855.00",ABL HEALTH LTD.
Adult and Health Services,Head of Adults,Third Party Payments,478151,Purchase of Care,03/03/2021,3840587-1176,"1,517.48",ACCEPT CARE LTD.
Adult and Health Services,Head of Adults,Third Party Payments,478151,Purchase of Care,03/03/2021,3840587-1177,588.00,ACCEPT CARE LTD.
Adult and Health Services,Head of Adults,Third Party Payments,478151,Purchase of Care,03/03/2021,3840587-1178,"2,278.50",ACCEPT CARE LTD.
Adult and Health Services,Head of Adults,Third Party Payments,478151,Purchase of Care,03/03/2021,3840587-1275,"1,073.69",ACCEPT CARE LTD.
Adult and Health Services,Head of Adults,Third Party Payments,479151,Purchase of Care,03/03/2021,3840587-RAPIDTESTINGFUND/22,"14,788.50",ACCEPT CARE LTD.
"Regeneration, Economy and Growth",Corporate Property and Land,Premises,120037,Energy Costs,03/03/2021,3840589-13005,"1,465.20",AFTERWOOD LTD.
Adult and Health Services,Head of Adults,Transport,230005,Contract Hire,03/03/2021,3840593-0042,"1,029.48",AIRPORT TAXIS 4U.
Children and Young Peoples Services,Head of Education and Skills,Transport,230010,Contract Hire,03/03/2021,3840594-98,"1,141.46",AJ JOBLING T/A CASTLE TAXIS.
Neighbourhoods and Climate Change,Environmental Services,Supplies and Services,304221,Equipment and Materials,03/03/2021,3840598-1838,"1,000.00",ALEX WALKER TREE CARE LTD.
Adult and Health Services,Head of Adults,Third Party Payments,479151,Purchase of Care,03/03/2021,3840600-RAPIDTESTINGFUND/18,"2,741.29",ALLIED HEALTH-SERVICES LTD T/A ALLIED HEALTHCARE.
Children and Young Peoples Services,Head of Education and Skills,Transport,230008,Contract Hire,03/03/2021,3840602-14,"1,905.00",AMANDA SMITH T/A WEARDALE WHEELS.
Children and Young Peoples Services,Head of Education and Skills,Transport,230006,Contract Hire,03/03/2021,3840604-14,"1,191.60",ANDREW ROBSON`S TAXI.
Adult and Health Services,Head of Adults,Third Party Payments,479151,Purchase of Care,03/03/2021,3840611-RAPIDTESTINGFUND/19,"1,005.89",APOLLO HOME HEALTHCARE LTD.
Children and Young Peoples Services,Head of Education and Skills,Transport,230034,Contract Hire,03/03/2021,3840615-FEB2021-2,840.00,ARMSTRONG`S TAXIS.
Children and Young Peoples Services,Head of Education and Skills,Transport,230008,Contract Hire,03/03/2021,3840615-FEB2021-1,"1,096.20",ARMSTRONG`S TAXIS.
Children and Young Peoples Services,Head of Education and Skills,Transport,230007,Contract Hire,03/03/2021,3840616-820,"1,091.25",AT TAXIS LTD.
Children and Young Peoples Services,Head of Education and Skills,Transport,230008,Contract Hire,03/03/2021,3840616-819,"1,091.25",AT TAXIS LTD.
Children and Young Peoples Services,Head of Education and Skills,Transport,230034,Contract Hire,03/03/2021,3840616-818,"1,065.00",AT TAXIS LTD.
Children and Young Peoples Services,Head of Education and Skills,Transport,230007,Contract Hire,03/03/2021,3840616-821,"1,091.25",AT TAXIS LTD.
Children and Young Peoples Services,Head of Education and Skills,Transport,230008,Contract Hire,03/03/2021,3840616-815,"1,925.70",AT TAXIS LTD.
Children and Young Peoples Services,Head of Education and Skills,Transport,230008,Contract Hire,03/03/2021,3840616-816,630.00,AT TAXIS LTD.
Children and Young Peoples Services,Head of Education and Skills,Transport,230008,Contract Hire,03/03/2021,3840616-817,"2,205.00",AT TAXIS LTD.
"Regeneration, Economy and Growth",Culture Sport and Tourism,Fees,901002,Consultants fees 901002,03/03/2021,3840618-21008657,"4,490.00",ATKINS GLOBAL.
Children and Young Peoples Services,Head of Education and Skills,Transport,230008,Contract Hire,03/03/2021,3840619-021,"2,775.00",AUCKLAND TRAVEL.
Children and Young Peoples Services,Head of Education and Skills,Transport,230008,Contract Hire,03/03/2021,3840619-019,"1,890.00",AUCKLAND TRAVEL.
Children and Young Peoples Services,Head of Education and Skills,Transport,230008,Contract Hire,03/03/2021,3840619-020,"2,010.00",AUCKLAND TRAVEL.
Adult and Health Services,Head of Adults,Third Party Payments,479151,Purchase of Care,03/03/2021,3840620-RAPIDTESTINGFUND/20,"4,079.58",AUTISM CARE UK (4) LTD.
Children and Young Peoples Services,Head of Education and Skills,Transport,230009,Contract Hire,03/03/2021,3840621-2602021,"1,528.35",AVALON TAXIS.
Children and Young Peoples Services,Head of Education and Skills,Transport,230006,Contract Hire,03/03/2021,3840621-260221,"1,185.75",AVALON TAXIS.
Children and Young Peoples Services,Head of Education and Skills,Transport,230016,Contract Hire,03/03/2021,3840627-SMITH/2FEBRUARY21,623.10,BEELINE PRIVATE HIRE.
Neighbourhoods and Climate Change,Environmental Services,Stock A926,926004,Stock,03/03/2021,3840628-15180327,"1,491.71",BELL TRUCK SALES LTD T/A BELL TRUCK & VAN.
Children and Young Peoples Services,Head of Education and Skills,Fees,901002,Consultants fees 901002,03/03/2021,3840631-39860,"1,250.00",BGP CONSULTING LTD T/A BILLINGHURST GEORGE & PARTNERS.
Adult and Health Services,Head of Adults,Supplies and Services,338045,Services,03/03/2021,3840632-270752,553.86,BHP LAW CLIENT ACCOUNT.
"Regeneration, Economy and Growth",Culture Sport and Tourism,Supplies and Services,312013,Newspapers books and periodicals E312,03/03/2021,3840633-16217,"2,572.50",BIBLIOGRAPHIC DATA SERVICES LTD.
Children and Young Peoples Services,Head of Education and Skills,Transport,230007,Contract Hire,03/03/2021,3840638-069,"1,840.50",BL CARS.
Adult and Health Services,Head of Adults,Transport,230005,Contract Hire,03/03/2021,3840639-EAS193-FEB,"1,116.00",BLACKHALL TAXIS.
Children and Young Peoples Services,Head of Education and Skills,Transport,230008,Contract Hire,03/03/2021,3840639-E013-FEB,"1,477.80",BLACKHALL TAXIS.
Adult and Health Services,Head of Adults,Transport,230005,Contract Hire,03/03/2021,3840642-8073-26/2/21,866.60,BOBBY DOVE PRIVATE HIRE.
Children and Young Peoples Services,Head of Education and Skills,Transport,230008,Contract Hire,03/03/2021,3840642-8027-26/2/21,"1,666.80",BOBBY DOVE PRIVATE HIRE.
"Regeneration, Economy and Growth",Culture Sport and Tourism,Supplies and Services,312013,Newspapers books and periodicals E312,03/03/2021,3840643-61463,803.86,BOLINDA DIGITAL LTD.
Adult and Health Services,Head of Adults,Third Party Payments,479151,Purchase of Care,03/03/2021,3840644-RAPIDTESTINGFUND/28,"2,804.72",BONDCARE WILLINGTON LTD.
Neighbourhoods and Climate Change,Environmental Services,Supplies and Services,304221,Equipment and Materials,03/03/2021,3840648-210220AA,936.00,BRAMBLEDOWN LANDSCAPE SERVICES LTD.
Children and Young Peoples Services,Head of Education and Skills,Transport,230008,Contract Hire,03/03/2021,3840652-BZ00362,914.70,BREZ`S TAXIS.
Children and Young Peoples Services,Head of Education and Skills,Transport,230008,Contract Hire,03/03/2021,3840652-BZ00364,"1,012.50",BREZ`S TAXIS.
Children and Young Peoples Services,Head of Education and Skills,Transport,230012,Contract Hire,03/03/2021,3840654-6-A015,"1,933.34",BRIAN PURVIS T/A BJ`S TAXIS.
"Regeneration, Economy and Growth",Culture Sport and Tourism,Construction work A908,908105,Construction work,03/03/2021,3840656-INV272499,"1,482.00",BROXAP LTD.
Children and Young Peoples Services,Head of Early Help Inclusion & Vulnerable Children.,Supplies and Services,338099,Services,03/03/2021,3840661-LS37,"1,755.00",CAROL ANDREWS.
"Regeneration, Economy and Growth",Corporate Property and Land,Supplies and Services,304221,Equipment and Materials,03/03/2021,3840664-10420776,"1,772.05",CARPET & FLOORING (TRADING) LTD.
Adult and Health Services,Head of Adults,Third Party Payments,479151,Purchase of Care,03/03/2021,3840666-RAPIDTESTINGFUND/6,"1,417.70",CASTLE CARE TEESDALE LTD.
Adult and Health Services,Public Health CC0450,Third Party Payments,460803,Contract Payments,03/03/2021,3840668-118,795.00,CB LEARNING & DEVELOPMENT LTD T/A CAROL BARWICK LTD.
Children and Young Peoples Services,Head of Education and Skills,Transport,230008,Contract Hire,03/03/2021,3840672-056,"1,530.00",CHANNER`S CABS.
Children and Young Peoples Services,Head of Education and Skills,Transport,230006,Contract Hire,03/03/2021,3840673-06FEB21,585.00,CHAPMAN TRAVEL.
Children and Young Peoples Services,Head of Education and Skills,Transport,230006,Contract Hire,03/03/2021,3840673-18FEB21,"1,260.00",CHAPMAN TRAVEL.
Neighbourhoods and Climate Change,Environmental Services,Transport,210057,Repair and Maintenance of Vehicles,03/03/2021,3840676-721433,825.00,CHATFIELDS T/A EVANS HALSHAW.
Children and Young Peoples Services,Head of Education and Skills,Transport,230008,Contract Hire,03/03/2021,3840677-SS17,"1,988.55",CHIPPERS TAXIS.
Children and Young Peoples Services,Head of Education and Skills,Transport,230008,Contract Hire,03/03/2021,3840681-A072-SP0221,"1,365.30",CJ`S EXECUTIVE TRAVEL LTD.
Children and Young Peoples Services,Head of Education and Skills,Transport,230008,Contract Hire,03/03/2021,3840681-E031-KC0221,"2,662.52",CJ`S EXECUTIVE TRAVEL LTD.
Children and Young Peoples Services,Head of Education and Skills,Transport,230008,Contract Hire,03/03/2021,3840681-N115-CB0221,"1,181.25",CJ`S EXECUTIVE TRAVEL LTD.
Children and Young Peoples Services,Head of Education and Skills,Transport,230016,Contract Hire,03/03/2021,3840681-N112-GHH0221,"1,554.84",CJ`S EXECUTIVE TRAVEL LTD.
Children and Young Peoples Services,Head of Education and Skills,Transport,230007,Contract Hire,03/03/2021,3840684-1194,848.97,CLIVE HUBERY.
Neighbourhoods and Climate Change,Community Protection,Third Party Payments,430100,Rendered by Private Contractors,03/03/2021,3840688-JOB001/20212,"1,195.00",COLIN JOBLING T/A RAINBOW INTERNATIONAL.
Adult and Health Services,Head of Adults,Third Party Payments,479151,Purchase of Care,03/03/2021,3840689-RAPIDTESTINGFUND/9,"13,513.64",COMMUNITY INTEGRATED CARE LTD.
"Regeneration, Economy and Growth",Corporate Property and Land,Third Party Payments,430100,Rendered by Private Contractors,03/03/2021,3840691-422/CCS1881,"1,424.00",COMPLETE CLADDING SYSTEMS LTD.
Children and Young Peoples Services,Head of Education and Skills,Transport,230008,Contract Hire,03/03/2021,3840692-1711,"1,739.55",CONNORS MINI BUSES.*
Children and Young Peoples Services,Head of Education and Skills,Transport,230008,Contract Hire,03/03/2021,3840692-1712,"1,121.85",CONNORS MINI BUSES.*
Children and Young Peoples Services,Head of Education and Skills,Transport,230008,Contract Hire,03/03/2021,3840692-1713,"1,954.65",CONNORS MINI BUSES.*
Children and Young Peoples Services,Head of Education and Skills,Transport,230034,Contract Hire,03/03/2021,3840697-36,780.00,CRAIG MASSEY`S TAXIS.
Children and Young Peoples Services,Head of Education and Skills,Transport,230008,Contract Hire,03/03/2021,3840697-37,"1,092.50",CRAIG MASSEY`S TAXIS.
Children and Young Peoples Services,Head of Education and Skills,Transport,230006,Contract Hire,03/03/2021,3840697-34,981.00,CRAIG MASSEY`S TAXIS.
Children and Young Peoples Services,Head of Education and Skills,Transport,230006,Contract Hire,03/03/2021,3840697-35,"1,434.90",CRAIG MASSEY`S TAXIS.
Adult and Health Services,Head of Adults,Third Party Payments,479151,Purchase of Care,03/03/2021,3840700-RAPIDTESTINGFUND/10,"4,079.58",CREATIVE SUPPORT LTD.
Adult and Health Services,Head of Adults,Third Party Payments,479151,Purchase of Care,03/03/2021,3840701-RAPIDTESTINGFUND/5,"4,297.04",CRESCENT HOMECARE LTD.
Children and Young Peoples Services,Head of Education and Skills,Transport,230008,Contract Hire,03/03/2021,3840702-110537,"1,161.90",CROFT BUSINESS SERVICES (UK) LTD T/A CROFT TAXIS.
Children and Young Peoples Services,Head of Education and Skills,Transport,230008,Contract Hire,03/03/2021,3840702-110539,"2,533.50",CROFT BUSINESS SERVICES (UK) LTD T/A CROFT TAXIS.
Children and Young Peoples Services,Head of Education and Skills,Transport,230008,Contract Hire,03/03/2021,3840702-110546,"1,064.88",CROFT BUSINESS SERVICES (UK) LTD T/A CROFT TAXIS.
Children and Young Peoples Services,Head of Education and Skills,Transport,230008,Contract Hire,03/03/2021,3840702-110542,"1,905.99",CROFT BUSINESS SERVICES (UK) LTD T/A CROFT TAXIS.
Children and Young Peoples Services,Head of Education and Skills,Transport,230008,Contract Hire,03/03/2021,3840702-110544,"2,338.50",CROFT BUSINESS SERVICES (UK) LTD T/A CROFT TAXIS.
Children and Young Peoples Services,Head of Education and Skills,Transport,230008,Contract Hire,03/03/2021,3840702-110543,"1,447.95",CROFT BUSINESS SERVICES (UK) LTD T/A CROFT TAXIS.
Children and Young Peoples Services,Head of Education and Skills,Transport,230008,Contract Hire,03/03/2021,3840702-110541,"1,715.80",CROFT BUSINESS SERVICES (UK) LTD T/A CROFT TAXIS.
Children and Young Peoples Services,Head of Education and Skills,Transport,230009,Contract Hire,03/03/2021,3840704-16-FEB,877.50,D CROOK T/A CK TAXIS.
Children and Young Peoples Services,Head of Education and Skills,Transport,230008,Contract Hire,03/03/2021,3840705-1718,"1,680.00",DA TAXIS.
Children and Young Peoples Services,Head of Education and Skills,Transport,230008,Contract Hire,03/03/2021,3840706-465,"1,542.00",DA TRAVEL.
Children and Young Peoples Services,Head of Education and Skills,Transport,230006,Contract Hire,03/03/2021,3840706-463,792.00,DA TRAVEL.
Adult and Health Services,Head of Adults,Third Party Payments,479151,Purchase of Care,03/03/2021,3840707-RAPIDTESTINGFUND/1,"24,176.57",DALE CARE LTD.
Neighbourhoods and Climate Change,Environmental Services,Supplies and Services,304221,Equipment and Materials,03/03/2021,3840710-186193,"3,824.00",DAVID OGILVIE ENGINEERING LTD.
Children and Young Peoples Services,Head of Education and Skills,Transport,230006,Contract Hire,03/03/2021,3840711-79-A181,780.00,DAVID WILKINSON (TAXIS).
Children and Young Peoples Services,Head of Education and Skills,Third Party Payments,440999,Other third party payments E440,03/03/2021,3840713-GYZH-JRMY- START PAYMENT,"1,500.00",DAYPARK LTD T/A YELLOW WELLIES.
Neighbourhoods and Climate Change,Environmental Services,Transport,210057,Repair and Maintenance of Vehicles,03/03/2021,3840715-96402411,507.75,DENNIS EAGLE LTD T/A TERBERG MATEC (UK) LTD.
Neighbourhoods and Climate Change,Environmental Services,Third Party Payments,430100,Rendered by Private Contractors,03/03/2021,3840715-96402684,"2,917.27",DENNIS EAGLE LTD T/A TERBERG MATEC (UK) LTD.
Neighbourhoods and Climate Change,Environmental Services,Transport,210057,Repair and Maintenance of Vehicles,03/03/2021,3840715-96402960,869.90,DENNIS EAGLE LTD T/A TERBERG MATEC (UK) LTD.
Neighbourhoods and Climate Change,Environmental Services,Transport,210057,Repair and Maintenance of Vehicles,03/03/2021,3840715-96402962,"2,014.48",DENNIS EAGLE LTD T/A TERBERG MATEC (UK) LTD.
Neighbourhoods and Climate Change,Environmental Services,Transport,210057,Repair and Maintenance of Vehicles,03/03/2021,3840715-96403008,"1,398.33",DENNIS EAGLE LTD T/A TERBERG MATEC (UK) LTD.
Neighbourhoods and Climate Change,Environmental Services,Transport,210057,Repair and Maintenance of Vehicles,03/03/2021,3840716-DE11382643,742.92,DENNIS EAGLE LTD.
Neighbourhoods and Climate Change,Environmental Services,Transport,210057,Repair and Maintenance of Vehicles,03/03/2021,3840716-DE11384549,742.92,DENNIS EAGLE LTD.
Children and Young Peoples Services,Head of Education and Skills,Transfer Payments,510028,School Children,03/03/2021,3840718-CAS-03-2021-019,"5,000.00",DIPTON OUT OF SCHOOL HOURS CLUB.
Adult and Health Services,Head of Adults,Third Party Payments,479151,Purchase of Care,03/03/2021,3840726-RAPIDTESTINGFUND/9,"1,363.38",EBONEY HOME CARE LTD.
Neighbourhoods and Climate Change,Environmental Services,Third Party Payments,430100,Rendered by Private Contractors,03/03/2021,3840727-INV-641,"4,000.00",ECO ENTERPRISES LTD.
Neighbourhoods and Climate Change,Environmental Services,Transport,210057,Repair and Maintenance of Vehicles,03/03/2021,3840728-S206751,"2,984.01",ECON ENGINEERING LTD.
Dedicated Schools Grant BG0015,Dedicated Schools Grant CG0050,Central Support and Other Recharges,615208,Support Services,03/03/2021,3840729-RES-03-2021-007,"2,299.32",EDEN LEARNING TRUST T/A FERRYHILL BUSINESS & ENTERPRISE COLLEGE.
Neighbourhoods and Climate Change,Environmental Services,Supplies and Services,384899,Miscellaneous Expenses,03/03/2021,3840730-NEI-EXP-03-2021-004,500.00,EDMONDSLEY PARISH COUNCIL.
Children and Young Peoples Services,Head of Education and Skills,Transport,230007,Contract Hire,03/03/2021,3840737-5234/0021,"1,828.80",ELLIOTTS OF TRIMDON.
Children and Young Peoples Services,Head of Education and Skills,Transport,230007,Contract Hire,03/03/2021,3840737-5124/0221,556.80,ELLIOTTS OF TRIMDON.
Children and Young Peoples Services,Head of Education and Skills,Transport,230008,Contract Hire,03/03/2021,3840737-M042/0021,"1,423.07",ELLIOTTS OF TRIMDON.
Children and Young Peoples Services,Head of Education and Skills,Transport,230008,Contract Hire,03/03/2021,3840737-E060/0221,"1,441.75",ELLIOTTS OF TRIMDON.
Children and Young Peoples Services,Head of Education and Skills,Transport,230008,Contract Hire,03/03/2021,3840737-E128/0221,"1,226.98",ELLIOTTS OF TRIMDON.
Adult and Health Services,Head of Adults,Third Party Payments,478151,Purchase of Care,03/03/2021,3840739-KWVOIDS/PERIOD11-2021,"2,947.84",EMBRACING CARE.
Adult and Health Services,Head of Adults,Third Party Payments,479151,Purchase of Care,03/03/2021,3840739-RAPIDTESTINGFUND/23,"7,649.22",EMBRACING CARE.
Adult and Health Services,Head of Adults,Third Party Payments,479151,Purchase of Care,03/03/2021,3840738-RAPIDTESTINGFUND/7,"15,542.90",EMBRACING CARE.
Adult and Health Services,Head of Adults,Third Party Payments,479151,Purchase of Care,03/03/2021,3840744-RAPIDTESTINGFUND/6,"22,182.75",ESSENTIAL CARE & SUPPORT LTD.
Adult and Health Services,Head of Adults,Third Party Payments,479151,Purchase of Care,03/03/2021,3840745-RAPIDTESTINGFUND/24,"2,039.79",ETHICARE (DURHAM) LTD.
Adult and Health Services,Head of Adults,Third Party Payments,479151,Purchase of Care,03/03/2021,3840754-RAPIDTESTINGFUND/8,764.92,FLEXIBLE SUPPORT OPTIONS LTD.
"Regeneration, Economy and Growth",Corporate Property and Land,Third Party Payments,430100,Rendered by Private Contractors,03/03/2021,3840759-11537,750.00,FROSTREE LTD.
Children and Young Peoples Services,Head of Education and Skills,Transport,230009,Contract Hire,03/03/2021,3840760-7-FEB21,900.00,G ANGHEL T/A A TAXI.
Children and Young Peoples Services,Head of Education and Skills,Transport,230007,Contract Hire,03/03/2021,3840764-22674-4034,"2,039.37",GARNETTS LTD (COACHES).
Children and Young Peoples Services,Head of Education and Skills,Transport,230007,Contract Hire,03/03/2021,3840764-22674-4035,"1,886.34",GARNETTS LTD (COACHES).
Children and Young Peoples Services,Head of Education and Skills,Transport,230007,Contract Hire,03/03/2021,3840764-22674-4036,"2,039.37",GARNETTS LTD (COACHES).
Children and Young Peoples Services,Head of Education and Skills,Transport,230007,Contract Hire,03/03/2021,3840764-22674-4037,"3,688.98",GARNETTS LTD (COACHES).
Children and Young Peoples Services,Head of Education and Skills,Transport,230007,Contract Hire,03/03/2021,3840764-22674-4038,"1,886.34",GARNETTS LTD (COACHES).
Children and Young Peoples Services,Head of Education and Skills,Transport,230007,Contract Hire,03/03/2021,3840764-22680,"2,289.20",GARNETTS LTD (COACHES).
Children and Young Peoples Services,Head of Education and Skills,Transport,230007,Contract Hire,03/03/2021,3840764-22672,"3,769.20",GARNETTS LTD (COACHES).
Children and Young Peoples Services,Head of Education and Skills,Transport,230008,Contract Hire,03/03/2021,3840764-22683,"2,958.40",GARNETTS LTD (COACHES).
Children and Young Peoples Services,Head of Education and Skills,Transport,230008,Contract Hire,03/03/2021,3840764-22682,"2,081.25",GARNETTS LTD (COACHES).
Children and Young Peoples Services,Head of Education and Skills,Transport,230008,Contract Hire,03/03/2021,3840764-22682/2,"1,783.12",GARNETTS LTD (COACHES).
Neighbourhoods and Climate Change,Environmental Services,Stock A926,926004,Stock,03/03/2021,3840766-IN238105,"1,285.79",GB LUBRICANTS LTD.
Neighbourhoods and Climate Change,Environmental Services,Stock A926,926004,Stock,03/03/2021,3840766-IN238271,"1,421.42",GB LUBRICANTS LTD.
Children and Young Peoples Services,Head of Childrens Social Care,Employees,080025,Agency Staff,03/03/2021,3840767-2446528,"166,463.63",GEOMETRIC RESULTS INTERNATIONAL.
Neighbourhoods and Climate Change,Environmental Services,Supplies and Services,384899,Miscellaneous Expenses,03/03/2021,3840770-NEI-EXP-03-2021-003,500.00,GILESGATE RESIDENTS ASSOCIATION.
Children and Young Peoples Services,Head of Education and Skills,Transport,230008,Contract Hire,03/03/2021,3840771-014-W024,"1,659.00",GMC TAXIS NORTH EAST.
Children and Young Peoples Services,Head of Education and Skills,Transport,230007,Contract Hire,03/03/2021,3840772-75585,"6,402.90",GO GATESHEAD LTD.
Children and Young Peoples Services,Head of Education and Skills,Transport,230034,Contract Hire,03/03/2021,3840773-54,"1,427.70",GORDON`S TAXIS.
Children and Young Peoples Services,Head of Education and Skills,Transport,230034,Contract Hire,03/03/2021,3840773-57,"1,397.70",GORDON`S TAXIS.
Neighbourhoods and Climate Change,Environmental Services,Stock A926,926004,Stock,03/03/2021,3840774-SI-00000686,"1,030.38",GRAYS MACHINERY LTD.
Neighbourhoods and Climate Change,Environmental Services,Supplies and Services,384199,Miscellaneous Expenses,03/03/2021,3840777-4100698469,"2,500.00",GS BAINBRIDGE.
Neighbourhoods and Climate Change,Environmental Services,Supplies and Services,384199,Miscellaneous Expenses,03/03/2021,3840777-4100701850,500.00,GS BAINBRIDGE.
Adult and Health Services,Head of Adults,Transport,230005,Contract Hire,03/03/2021,3840778-17-FEB-DM208,639.00,HARDIP SINGH MAHIL T/A AMBER CARS.
Children and Young Peoples Services,Head of Education and Skills,Transport,230007,Contract Hire,03/03/2021,3840778-05-FEB-5291,686.25,HARDIP SINGH MAHIL T/A AMBER CARS.
Adult and Health Services,Public Health CC0450,Third Party Payments,460803,Contract Payments,03/03/2021,3840780-2510038173,"10,116.54",HARROGATE & DISTRICT NHS FOUNDATION TRUST.
Adult and Health Services,Public Health CC0450,Third Party Payments,460803,Contract Payments,03/03/2021,3840780-2510038816,"15,174.81",HARROGATE & DISTRICT NHS FOUNDATION TRUST.
Children and Young Peoples Services,Head of Education and Skills,Transport,230007,Contract Hire,03/03/2021,3840781-HT521,"1,608.75",HARRY`S TAXI`S.
Children and Young Peoples Services,Head of Education and Skills,Transport,230007,Contract Hire,03/03/2021,3840781-HT518,"1,680.00",HARRY`S TAXI`S.
Children and Young Peoples Services,Head of Education and Skills,Transport,230008,Contract Hire,03/03/2021,3840781-HT517,"1,230.00",HARRY`S TAXI`S.
Children and Young Peoples Services,Head of Education and Skills,Transport,230008,Contract Hire,03/03/2021,3840781-HT519,"1,980.00",HARRY`S TAXI`S.
Children and Young Peoples Services,Head of Education and Skills,Transport,230008,Contract Hire,03/03/2021,3840781-HT520,"1,830.00",HARRY`S TAXI`S.
Adult and Health Services,Head of Adults,Third Party Payments,479151,Purchase of Care,03/03/2021,3840786-RAPIDTESTINGFUND/18,"1,274.87",HIGHLEA CARE LTD.
Adult and Health Services,Head of Adults,Third Party Payments,479151,Purchase of Care,03/03/2021,3840787-RAPIDTESTINGFUND/17,"19,123.06",HIGHLEA CARE LTD.
"Regeneration, Economy and Growth",Culture Sport and Tourism,Supplies and Services,384700,Miscellaneous Expenses,03/03/2021,3840788-3531,"2,343.50",HIGHLIGHTS PRODUCTIONS LTD.
Children and Young Peoples Services,Head of Childrens Social Care,Third Party Payments,440038,Other third party payments E440,03/03/2021,3840791-005B,"1,148.96",HOME GROUP LTD FORMERLY STONHAM HOUSING ASSOCIATION LTD.
Children and Young Peoples Services,Head of Childrens Social Care,Third Party Payments,440038,Other third party payments E440,03/03/2021,3840791-005C,"1,148.96",HOME GROUP LTD FORMERLY STONHAM HOUSING ASSOCIATION LTD.
Children and Young Peoples Services,Head of Childrens Social Care,Third Party Payments,440038,Other third party payments E440,03/03/2021,3840791-68603-LR11-9/2020,992.04,HOME GROUP LTD FORMERLY STONHAM HOUSING ASSOCIATION LTD.
Children and Young Peoples Services,Head of Childrens Social Care,Third Party Payments,440038,Other third party payments E440,03/03/2021,3840791-6861720A,"1,135.24",HOME GROUP LTD FORMERLY STONHAM HOUSING ASSOCIATION LTD.
Children and Young Peoples Services,Head of Childrens Social Care,Third Party Payments,440038,Other third party payments E440,03/03/2021,3840791-6861720B,"1,135.24",HOME GROUP LTD FORMERLY STONHAM HOUSING ASSOCIATION LTD.
Children and Young Peoples Services,Head of Childrens Social Care,Third Party Payments,440038,Other third party payments E440,03/03/2021,3840791-6861720C,"1,135.24",HOME GROUP LTD FORMERLY STONHAM HOUSING ASSOCIATION LTD.
Neighbourhoods and Climate Change,Environmental Services,Stock A926,926004,Stock,03/03/2021,3840799-SI00907828,627.30,HYDRAQUIP HOSE & HYDRAULICS LTD.
Adult and Health Services,Head of Adults,Transport,230005,Contract Hire,03/03/2021,3840800-IR2102004,"1,960.00",I & R EXECUTIVE TRAVEL.
Adult and Health Services,Head of Adults,Transport,230005,Contract Hire,03/03/2021,3840800-IR2102003,"1,240.00",I & R EXECUTIVE TRAVEL.
Children and Young Peoples Services,Head of Education and Skills,Transport,230008,Contract Hire,03/03/2021,3840800-IR2102002,"1,993.56",I & R EXECUTIVE TRAVEL.
Children and Young Peoples Services,Head of Education and Skills,Transport,230016,Contract Hire,03/03/2021,3840800-IR2102001,"1,378.50",I & R EXECUTIVE TRAVEL.
Adult and Health Services,Head of Adults,Transport,230005,Contract Hire,03/03/2021,3840801-6-FEB,512.00,IAN SHEPLEY T/A RIVERSIDE TAXIS.
Neighbourhoods and Climate Change,Technical Services CM0300,Third Party Payments,460151,Contract Payments,03/03/2021,3840804-764832,"1,014.00",INSTARMAC GROUP PLC.
Neighbourhoods and Climate Change,Technical Services CM0300,Supplies and Services,304221,Equipment and Materials,03/03/2021,3840806-32215,612.00,INTERPLAN SIGN SYSTEMS LTD.
Neighbourhoods and Climate Change,Technical Services CM0300,Construction work A908,908105,Construction work,03/03/2021,3840809-24978,512.14,JACK COUPE & SONS LTD T/A COUPE LINE.
Neighbourhoods and Climate Change,Environmental Services,Transport,210057,Repair and Maintenance of Vehicles,03/03/2021,3840811-14156,730.00,JAMES A CUTHBERTSON LTD.
Adult and Health Services,Head of Adults,Transport,230005,Contract Hire,03/03/2021,3840822-14-FEB,576.00,JOHN CRAKE & SONS MINI BUSES LTD.
Children and Young Peoples Services,Head of Education and Skills,Transport,230034,Contract Hire,03/03/2021,3840822-12-FEB,"1,080.00",JOHN CRAKE & SONS MINI BUSES LTD.
Children and Young Peoples Services,Head of Education and Skills,Transport,230008,Contract Hire,03/03/2021,3840824-229,"1,497.48",JOHN ROBSON T/A ACE TAXIS.
Children and Young Peoples Services,Head of Education and Skills,Transport,230034,Contract Hire,03/03/2021,3840824-230,596.25,JOHN ROBSON T/A ACE TAXIS.
Children and Young Peoples Services,Head of Education and Skills,Transport,230006,Contract Hire,03/03/2021,3840825-CORPBACFEB21,516.75,JOHN W CROOK T/A CORPORATE TRAVEL.
Neighbourhoods and Climate Change,Environmental Services,Supplies and Services,304221,Equipment and Materials,03/03/2021,3840826-1171906,"1,490.00",JOHNSONS OF WHIXLEY LTD.
Adult and Health Services,Head of Adults,Third Party Payments,479151,Purchase of Care,03/03/2021,3840833-RAPIDTESTINGFUND/2,"14,734.49",KELLY PARK LTD..
Adult and Health Services,Head of Adults,Third Party Payments,479151,Purchase of Care,03/03/2021,3840835-RAPIDTESTINGFUND/14,"10,708.91",KINGSWAY CARE HOME LTD.
Children and Young Peoples Services,Head of Education and Skills,Transport,230008,Contract Hire,03/03/2021,3840841-7/E068,"1,215.00",KULDEEP MAHIL T/A KOLARS CAB.
Adult and Health Services,Head of Adults,Transport,230005,Contract Hire,03/03/2021,3840843-FEB21-DW141,"1,680.00",LARS CARS LTD T/A STREETCARS.
Children and Young Peoples Services,Head of Education and Skills,Transport,230010,Contract Hire,03/03/2021,3840843-FEB21-B035,"1,410.00",LARS CARS LTD T/A STREETCARS.
Adult and Health Services,Head of Adults,Transport,230005,Contract Hire,03/03/2021,3840844-1898,"1,487.60",LD TAXIS.
Children and Young Peoples Services,Head of Education and Skills,Transport,230008,Contract Hire,03/03/2021,3840844-1897,"1,631.70",LD TAXIS.
Children and Young Peoples Services,Head of Education and Skills,Transport,230008,Contract Hire,03/03/2021,3840844-1899,"1,125.00",LD TAXIS.
Children and Young Peoples Services,Head of Education and Skills,Transport,230008,Contract Hire,03/03/2021,3840844-1901,900.00,LD TAXIS.
Children and Young Peoples Services,Head of Education and Skills,Transport,230006,Contract Hire,03/03/2021,3840844-1895,517.60,LD TAXIS.
Children and Young Peoples Services,Head of Education and Skills,Transport,230008,Contract Hire,03/03/2021,3840845-022,"1,800.00",LEWIS PATTISON T/A LEWIS TAXIS.
Adult and Health Services,Head of Adults,Transport,230005,Contract Hire,03/03/2021,3840848-9,"1,323.75",LIMASEC LTD T/A LIMA TRANSPORT.
Children and Young Peoples Services,Head of Education and Skills,Transport,230008,Contract Hire,03/03/2021,3840848-5,"1,325.25",LIMASEC LTD T/A LIMA TRANSPORT.
"Regeneration, Economy and Growth",Development and Housing,Fees,901002,Consultants fees 901002,03/03/2021,3840850-02-02/21,"2,538.40",LIONEL PLAYFORD CONTEMPORARY ART.
"Regeneration, Economy and Growth",Business Durham CL0850,Supplies and Services,384899,Miscellaneous Expenses,03/03/2021,3840852-DBRG-03-2021-001,600.00,LONG LOCKS HAIR & BEAUTY.
Neighbourhoods and Climate Change,Environmental Services,Supplies and Services,384899,Miscellaneous Expenses,03/03/2021,3840853-NEI-EXP-03-2021-002,500.00,LUDWORTH COMMUNITY ASSOCIATION.
Children and Young Peoples Services,Head of Education and Skills,Transport,230008,Contract Hire,03/03/2021,3840854-68,891.10,MALCOLM CARR T/A CARLY CABS.
Children and Young Peoples Services,Head of Education and Skills,Transport,230008,Contract Hire,03/03/2021,3840857-57,"1,248.75",MARK WATSON T/A MARK`S TAXIS.
Children and Young Peoples Services,Head of Education and Skills,Transport,230008,Contract Hire,03/03/2021,3840857-58,810.00,MARK WATSON T/A MARK`S TAXIS.
"Regeneration, Economy and Growth",Business Durham CL0850,Supplies and Services,338066,Services,03/03/2021,3840861-INV-0411,660.00,MCDONOUGH MARKETING COMMUNICATIONS LTD T/A MMC.
"Regeneration, Economy and Growth",Corporate Property and Land,Third Party Payments,430100,Rendered by Private Contractors,03/03/2021,3840862-NE202317,"4,101.38",MCNAUGHTON BLAIR LTD T/A LLOYD WORRALL (NEWCASTLE UPON TYNE) LTD.
Adult and Health Services,Head of Adults,Third Party Payments,479151,Purchase of Care,03/03/2021,3840863-RAPIDTESTINGFUND/5,"1,019.90",MEARS EXTRA CARE LTD.
Adult and Health Services,Head of Adults,Third Party Payments,479151,Purchase of Care,03/03/2021,3840865-RAPIDTESTINGFUND/13,989.49,MOONRISE 24HR RECRUITMENT LTD.
Children and Young Peoples Services,Head of Childrens Social Care,Third Party Payments,440038,Other third party payments E440,03/03/2021,3840867-CAL004,"10,320.00",MOVING UP CARE LTD.
Children and Young Peoples Services,Head of Childrens Social Care,Third Party Payments,440038,Other third party payments E440,03/03/2021,3840867-CG022,"4,268.00",MOVING UP CARE LTD.
Children and Young Peoples Services,Head of Childrens Social Care,Third Party Payments,440038,Other third party payments E440,03/03/2021,3840867-JDB013,"12,000.00",MOVING UP CARE LTD.
Children and Young Peoples Services,Head of Childrens Social Care,Third Party Payments,440038,Other third party payments E440,03/03/2021,3840867-RLB004,"17,915.00",MOVING UP CARE LTD.
Children and Young Peoples Services,Head of Childrens Social Care,Third Party Payments,440038,Other third party payments E440,03/03/2021,3840867-WC008,"10,880.00",MOVING UP CARE LTD.
Children and Young Peoples Services,Head of Childrens Social Care,Third Party Payments,440038,Other third party payments E440,03/03/2021,3840867-WCR004,"13,225.00",MOVING UP CARE LTD.
Children and Young Peoples Services,Head of Childrens Social Care,Third Party Payments,440038,Other third party payments E440,03/03/2021,3840867-MF018,"1,090.00",MOVING UP CARE LTD.
Children and Young Peoples Services,Head of Childrens Social Care,Third Party Payments,440039,Other third party payments E440,03/03/2021,3840867-EWC009,"3,100.00",MOVING UP CARE LTD.
Children and Young Peoples Services,Head of Childrens Social Care,Third Party Payments,440039,Other third party payments E440,03/03/2021,3840867-JM013,"10,880.00",MOVING UP CARE LTD.
Children and Young Peoples Services,Head of Education and Skills,Transport,230034,Contract Hire,03/03/2021,3840868-AT233,635.00,MR AG WILSON T/A ALAN`S TAXIS (DURHAM CITY).
Children and Young Peoples Services,Head of Education and Skills,Transport,230012,Contract Hire,03/03/2021,3840869-CHPK02-21,997.80,MR CT WALKER T/A CW TAXIS.
Children and Young Peoples Services,Head of Education and Skills,Transport,230035,Contract Hire,03/03/2021,3840869-HERM02-21,837.00,MR CT WALKER T/A CW TAXIS.
Children and Young Peoples Services,Head of Education and Skills,Transport,230008,Contract Hire,03/03/2021,3840869-EL1-FEB21,"1,022.70",MR CT WALKER T/A CW TAXIS.
Children and Young Peoples Services,Head of Education and Skills,Transport,230006,Contract Hire,03/03/2021,3840869-DT2-FEB21,516.90,MR CT WALKER T/A CW TAXIS.
Children and Young Peoples Services,Head of Education and Skills,Transport,230008,Contract Hire,03/03/2021,3840869-OAK2-FEB21,"1,594.80",MR CT WALKER T/A CW TAXIS.
Children and Young Peoples Services,Head of Education and Skills,Transport,230008,Contract Hire,03/03/2021,3840870-M054-FEB,"1,230.00",MR DOMINICK JONES T/A DJ PRIVATE HIRE.
Children and Young Peoples Services,Head of Education and Skills,Transport,230008,Contract Hire,03/03/2021,3840870-W003-FEB,"1,462.50",MR DOMINICK JONES T/A DJ PRIVATE HIRE.
Children and Young Peoples Services,Head of Education and Skills,Transport,230006,Contract Hire,03/03/2021,3840870-E102-FEB,687.00,MR DOMINICK JONES T/A DJ PRIVATE HIRE.
Children and Young Peoples Services,Head of Education and Skills,Transport,230034,Contract Hire,03/03/2021,3840875-160,888.00,MR JOHN ALLINSON T/A AALPHA TAXIS.
Children and Young Peoples Services,Head of Education and Skills,Transport,230035,Contract Hire,03/03/2021,3840875-159,500.40,MR JOHN ALLINSON T/A AALPHA TAXIS.
Children and Young Peoples Services,Head of Education and Skills,Transport,230007,Contract Hire,03/03/2021,3840875-157,"1,095.20",MR JOHN ALLINSON T/A AALPHA TAXIS.
Children and Young Peoples Services,Head of Education and Skills,Transport,230006,Contract Hire,03/03/2021,3840875-161,666.00,MR JOHN ALLINSON T/A AALPHA TAXIS.
Children and Young Peoples Services,Head of Education and Skills,Transport,230009,Contract Hire,03/03/2021,3840878-139,852.50,MR NEIL LEONARD T/A LENNY`S TAXIS.
Children and Young Peoples Services,Head of Education and Skills,Transport,230008,Contract Hire,03/03/2021,3840878-144,"1,350.00",MR NEIL LEONARD T/A LENNY`S TAXIS.
Children and Young Peoples Services,Head of Education and Skills,Transport,230008,Contract Hire,03/03/2021,3840878-140,"1,319.99",MR NEIL LEONARD T/A LENNY`S TAXIS.
Children and Young Peoples Services,Head of Education and Skills,Transport,230008,Contract Hire,03/03/2021,3840878-141,"1,382.67",MR NEIL LEONARD T/A LENNY`S TAXIS.
Children and Young Peoples Services,Head of Education and Skills,Transport,230008,Contract Hire,03/03/2021,3840878-143,"1,722.50",MR NEIL LEONARD T/A LENNY`S TAXIS.
Children and Young Peoples Services,Head of Education and Skills,Transport,230006,Contract Hire,03/03/2021,3840878-142,767.50,MR NEIL LEONARD T/A LENNY`S TAXIS.
Neighbourhoods and Climate Change,Community Protection,Supplies and Services,338045,Services,03/03/2021,3840880-114693,640.00,MR PHILIP MORLEY (FOUNTAIN CHAMBERS).
Children and Young Peoples Services,Head of Education and Skills,Transport,230008,Contract Hire,03/03/2021,3840881-0047,"2,505.00",MR PM MULLEN T/A CATHEDRAL TAXIS.
Children and Young Peoples Services,Head of Education and Skills,Transport,230034,Contract Hire,03/03/2021,3840883-02-21-2084,800.20,MR S DOCKERY T/A SEAN'S TAXIS.
Children and Young Peoples Services,Head of Education and Skills,Transport,230034,Contract Hire,03/03/2021,3840884-INV0013-4433,"1,248.30",MR S HUSSAIN T/A EMPIRE CARS.
Children and Young Peoples Services,Head of Education and Skills,Transport,230006,Contract Hire,03/03/2021,3840884-INV0014,522.00,MR S HUSSAIN T/A EMPIRE CARS.
Children and Young Peoples Services,Head of Education and Skills,Transport,230008,Contract Hire,03/03/2021,3840885-54,"2,280.00",MR SCOTT MALCOLM MACKENZIE T/A SCOTTS TAXIS.
Children and Young Peoples Services,Head of Education and Skills,Transport,230008,Contract Hire,03/03/2021,3840885-57,"1,686.10",MR SCOTT MALCOLM MACKENZIE T/A SCOTTS TAXIS.
Children and Young Peoples Services,Head of Education and Skills,Transport,230008,Contract Hire,03/03/2021,3840885-55,"1,875.00",MR SCOTT MALCOLM MACKENZIE T/A SCOTTS TAXIS.
Children and Young Peoples Services,Head of Education and Skills,Transport,230009,Contract Hire,03/03/2021,3840886-FIN0221,630.00,MR STUART SCOTT T/A AIRPORT CARS DURHAM
Adult and Health Services,Head of Adults,Third Party Payments,479151,Purchase of Care,03/03/2021,3840898-RAPIDTESTINGFUND/12,"2,322.20",MY HOMECARE (DURHAM) LTD.
Adult and Health Services,Head of Adults,Third Party Payments,479151,Purchase of Care,03/03/2021,3840899-RAPIDTESTINGFUND/10,701.29,MYCHOICE HOMECARE LTD.
Neighbourhoods and Climate Change,Environmental Services,Transport,210057,Repair and Maintenance of Vehicles,03/03/2021,3840902-INVDUR003I4204,896.00,NE TRUCK SPARES LTD (NETS).
Children and Young Peoples Services,Head of Education and Skills,Transport,230008,Contract Hire,03/03/2021,3840906-265,"1,260.00",NEVILLE FORBES T/A FORBES TAXIS.
Chief Executive's Office,Communications Management,Supplies and Services,336005,Advertising E336,03/03/2021,3840908-35809633,"2,400.00",NEWSQUEST (YORKSHIRE & NORTH EAST) LTD.
Chief Executive's Office,Communications Management,Supplies and Services,336005,Advertising E336,03/03/2021,3840908-35830579,"1,000.00",NEWSQUEST (YORKSHIRE & NORTH EAST) LTD.
Chief Executive's Office,Communications Management,Supplies and Services,336005,Advertising E336,03/03/2021,3840908-35950872,"3,057.30",NEWSQUEST (YORKSHIRE & NORTH EAST) LTD.
Chief Executive's Office,Communications Management,Supplies and Services,336005,Advertising E336,03/03/2021,3840908-35951601,"1,200.00",NEWSQUEST (YORKSHIRE & NORTH EAST) LTD.
Chief Executive's Office,Communications Management,Supplies and Services,336005,Advertising E336,03/03/2021,3840908-35952617,"1,420.00",NEWSQUEST (YORKSHIRE & NORTH EAST) LTD.
Adult and Health Services,Head of Adults,Third Party Payments,479151,Purchase of Care,03/03/2021,3840913-RAPIDTESTINGFUND/13,"3,314.66",NORTH EAST AUTISM SOCIETY.
Children and Young Peoples Services,Head of Education and Skills,Transport,230007,Contract Hire,03/03/2021,3840914-INV-6670,"2,021.10",NORTH EAST COACHWAYS LTD.
Children and Young Peoples Services,Head of Education and Skills,Transport,230007,Contract Hire,03/03/2021,3840914-INV-6668,"1,965.00",NORTH EAST COACHWAYS LTD.
Children and Young Peoples Services,Head of Education and Skills,Transport,230007,Contract Hire,03/03/2021,3840914-INV-6669,"2,040.00",NORTH EAST COACHWAYS LTD.
Children and Young Peoples Services,Head of Education and Skills,Transport,230007,Contract Hire,03/03/2021,3840914-INV-6672,"1,926.56",NORTH EAST COACHWAYS LTD.
Children and Young Peoples Services,Head of Education and Skills,Transport,230003,Contract Hire,03/03/2021,3840914-INV-6671,"2,790.00",NORTH EAST COACHWAYS LTD.
Children and Young Peoples Services,Head of Education and Skills,Transport,230007,Contract Hire,03/03/2021,3840914-INV-6664,"2,138.70",NORTH EAST COACHWAYS LTD.
Children and Young Peoples Services,Head of Education and Skills,Transport,230007,Contract Hire,03/03/2021,3840914-INV-6665,"1,473.75",NORTH EAST COACHWAYS LTD.
Children and Young Peoples Services,Head of Education and Skills,Transport,230003,Contract Hire,03/03/2021,3840914-INV-6666,"2,625.00",NORTH EAST COACHWAYS LTD.
Adult and Health Services,Adults Excluded,Supplies and Services,338099,Services,03/03/2021,3840917-24591968,"5,162.50",NORTH TYNESIDE COUNCIL.
Adult and Health Services,Head of Adults,Third Party Payments,479151,Purchase of Care,03/03/2021,3840920-RAPIDTESTINGFUND/15,548.86,NOVA PAYROLL MANAGEMENT SERVICES LTD T/A PIN POINT RECRUITMENT.
Adult and Health Services,Head of Adults,Third Party Payments,479151,Purchase of Care,03/03/2021,3840925-RAPIDTESTINGFUND/3,"14,023.56",OAKLEA TRUST.
Chief Executive's Office,Communications Management,Supplies and Services,336005,Advertising E336,03/03/2021,3840926-OCC7448,550.00,OCCUCOM LTD.
Neighbourhoods and Climate Change,Environmental Services,Transport,215022,Running Costs of Vehicles,03/03/2021,3840930-713908,"1,513.30",OIL NRG LTD.
Neighbourhoods and Climate Change,Environmental Services,Transport,215005,Running Costs of Vehicles,03/03/2021,3840930-714127,"11,534.16",OIL NRG LTD.
Neighbourhoods and Climate Change,Environmental Services,Transport,215022,Running Costs of Vehicles,03/03/2021,3840930-715086,"2,038.00",OIL NRG LTD.
Resources BK0010,Corporate Finance & Commercial Services,Supplies and Services,342053,Computers and Communications,03/03/2021,3840934-1797773,"10,936.50",ORACLE CORPORATION UK LTD.
Adult and Health Services,Head of Adults,Third Party Payments,479151,Purchase of Care,03/03/2021,3840936-RAPIDTESTINGFUND/3,"8,207.99",ORCHARD HOME CARE SERVICES LTD.
Adult and Health Services,Head of Adults,Third Party Payments,479151,Purchase of Care,03/03/2021,3840943-RAPIDTESTINGFUND/11,"10,701.74",PERFECT CARE LTD.
Children and Young Peoples Services,Head of Education and Skills,Transport,230034,Contract Hire,03/03/2021,3840948-3422-FEB,728.00,PETER`S TAXIS.
Children and Young Peoples Services,Head of Education and Skills,Transport,230006,Contract Hire,03/03/2021,3840948-F789,"1,374.00",PETER`S TAXIS.
Children and Young Peoples Services,Head of Education and Skills,Transport,230008,Contract Hire,03/03/2021,3840945-703,810.00,PETERLEE EXECUTIVE CARS.
Children and Young Peoples Services,Head of Education and Skills,Transport,230009,Contract Hire,03/03/2021,3840945-707,630.00,PETERLEE EXECUTIVE CARS.
Children and Young Peoples Services,Head of Education and Skills,Transport,230034,Contract Hire,03/03/2021,3840945-704,"1,672.14",PETERLEE EXECUTIVE CARS.
Children and Young Peoples Services,Head of Education and Skills,Transport,230006,Contract Hire,03/03/2021,3840945-708,"2,130.00",PETERLEE EXECUTIVE CARS.
Children and Young Peoples Services,Head of Education and Skills,Transport,230008,Contract Hire,03/03/2021,3840950-66,"1,356.94",PHILLIP BOYD T/A FILS TAXIS.
Adult and Health Services,Head of Adults,Third Party Payments,478151,Purchase of Care,03/03/2021,3840958-2173,"18,852.00",POSITIVE INDIVIDUAL PROACTIVE SUPPORT LTD.
Adult and Health Services,Head of Adults,Third Party Payments,478151,Purchase of Care,03/03/2021,3840958-2231,"18,852.00",POSITIVE INDIVIDUAL PROACTIVE SUPPORT LTD.
Adult and Health Services,Head of Adults,Third Party Payments,478151,Purchase of Care,03/03/2021,3840958-2265,"19,480.40",POSITIVE INDIVIDUAL PROACTIVE SUPPORT LTD.
Adult and Health Services,Head of Adults,Third Party Payments,479151,Purchase of Care,03/03/2021,3840958-RAPIDTESTINGFUND/25,"1,274.87",POSITIVE INDIVIDUAL PROACTIVE SUPPORT LTD.
Adult and Health Services,Head of Adults,Third Party Payments,479151,Purchase of Care,03/03/2021,3840960-RAPIDTESTINGFUND/26,"4,589.53",POTENSIAL LTD.
Adult and Health Services,Head of Adults,Third Party Payments,479151,Purchase of Care,03/03/2021,3840961-RAPIDTESTINGFUND/12,"2,294.77",POTENSIAL LTD.
Adult and Health Services,Head of Adults,Third Party Payments,479151,Purchase of Care,03/03/2021,3840965-RAPIDTESTINGFUND/21,"2,392.99",QUALITY FIRST CARE SERVICES LTD.
Children and Young Peoples Services,Head of Education and Skills,Transport,230006,Contract Hire,03/03/2021,3840967-006-F857,"1,035.00",RAYMOND CHURNSIDE T/A S & L TAXI.
Adult and Health Services,Head of Adults,Third Party Payments,479151,Purchase of Care,03/03/2021,3840969-RAPIDTESTINGFUND/21,"1,019.90",REAL LIFE OPTIONS.
Adult and Health Services,Head of Adults,Third Party Payments,478151,Purchase of Care,03/03/2021,3840969-SLSINV/00042665,"1,631.60",REAL LIFE OPTIONS.
Neighbourhoods and Climate Change,Environmental Services,Transport,210057,Repair and Maintenance of Vehicles,03/03/2021,3840970-753372,616.56,RICKERBY LTD.
Adult and Health Services,Head of Adults,Supplies and Services,338365,Services,03/03/2021,3840973-SEN316688,"1,550.00",RNIB ENTERPRISES LTD.
Children and Young Peoples Services,Head of Education and Skills,Transport,230008,Contract Hire,03/03/2021,3840975-1846,"1,731.30",RON`S TAXIS (FISHBURN).
Children and Young Peoples Services,Head of Education and Skills,Transport,230008,Contract Hire,03/03/2021,3840975-1847,"1,200.00",RON`S TAXIS (FISHBURN).
Children and Young Peoples Services,Head of Education and Skills,Transport,230008,Contract Hire,03/03/2021,3840974-0019,"2,025.00",RONS TAXI (CHESTER LE ST).
Neighbourhoods and Climate Change,Environmental Services,Third Party Payments,430100,Rendered by Private Contractors,03/03/2021,3840985-2021.1000005727,560.14,SCARAB SWEEPERS LTD.
Neighbourhoods and Climate Change,Environmental Services,Transport,210057,Repair and Maintenance of Vehicles,03/03/2021,3840985-2021.1000005875,925.79,SCARAB SWEEPERS LTD.
Adult and Health Services,Head of Adults,Third Party Payments,479151,Purchase of Care,03/03/2021,3840988-RAPIDTESTINGFUND/14,"3,779.28",SECOND TO NONE CARE LTD.
Children and Young Peoples Services,Head of Education and Skills,Transport,230008,Contract Hire,03/03/2021,3840991-210129,"1,878.50",SHOTTON PRIVATE HIRE.
Children and Young Peoples Services,Head of Education and Skills,Transport,230008,Contract Hire,03/03/2021,3840991-210111,906.07,SHOTTON PRIVATE HIRE.
Neighbourhoods and Climate Change,Environmental Services,Third Party Payments,430113,Rendered by Private Contractors,03/03/2021,3840992-172461,"4,232.66",SHOWSEC INTERNATIONAL LTD.
Neighbourhoods and Climate Change,Environmental Services,Third Party Payments,430113,Rendered by Private Contractors,03/03/2021,3840992-172464,"4,303.67",SHOWSEC INTERNATIONAL LTD.
Children and Young Peoples Services,Head of Early Help Inclusion & Vulnerable Children.,Supplies and Services,384302,Miscellaneous Expenses,03/03/2021,3840997-003,"1,400.00",SKILL MILL PARTNERSHIP LTD.
Adult and Health Services,Head of Adults,Third Party Payments,479151,Purchase of Care,03/03/2021,3841004-RAPIDTESTINGFUND/29,"1,784.82",SOVEREIGN CARE (NORTH EAST) LTD.
Adult and Health Services,Head of Adults,Third Party Payments,479151,Purchase of Care,03/03/2021,3841005-RAPIDTESTINGFUND/7,"1,274.87",SOVEREIGN CARE (NORTH EAST) LTD.
Adult and Health Services,Head of Adults,Third Party Payments,479151,Purchase of Care,03/03/2021,3841011-RAPIDTESTINGFUND/4,"5,354.44",ST ANNES COMMUNITY SERVICES.
Dedicated Schools Grant BG0015,DSG High Needs Block,Supplies and Services,384302,Miscellaneous Expenses,03/03/2021,3841012-LBSI1,"4,000.00",ST BEDES CATHOLIC ACADEMY (LANCHESTER).
Children and Young Peoples Services,Head of Education and Skills,Supplies and Services,336005,Advertising E336,03/03/2021,3841015-INV-5368,775.00,STEVE DAVIDSON ADVERTISING LTD T/A SD ADVERTISING LTD.
Adult and Health Services,Head of Adults,Third Party Payments,479151,Purchase of Care,03/03/2021,3841017-RAPIDTESTINGFUND/4,"6,674.87",SUPPORTIVE SRC LTD.
"Regeneration, Economy and Growth",Corporate Property and Land,Supplies and Services,304221,Equipment and Materials,03/03/2021,3841018-542888,"1,032.13",T CROSSLING & CO LTD.
Neighbourhoods and Climate Change,Environmental Services,Supplies and Services,304252,Equipment and Materials,03/03/2021,3841021-187861,550.37,TECALEMIT GARAGE EQUIPMENT CO LTD.
Neighbourhoods and Climate Change,Environmental Services,Supplies and Services,384199,Miscellaneous Expenses,03/03/2021,3841025-INV-0377,500.00,THE AUTHENTIC SPARK.
Children and Young Peoples Services,Head of Childrens Social Care,Third Party Payments,440039,Other third party payments E440,03/03/2021,3841027-SI1000002570,"1,875.00",THE CYRENIANS LTD T/A CHANGING LIVES.
Adult and Health Services,Head of Adults,Third Party Payments,479151,Purchase of Care,03/03/2021,3841029-RAPIDTESTINGFUND/19,"11,983.78",THE HAWTHORNS LODGE LTD.
Adult and Health Services,Head of Adults,Third Party Payments,479151,Purchase of Care,03/03/2021,3841031-RAPIDTESTINGFUND/2,764.92,THE INTEGRATION TRUST LTD.
"Regeneration, Economy and Growth",Business Durham CL0850,Supplies and Services,384899,Miscellaneous Expenses,03/03/2021,3841032-DBRG-03-2021-002,"2,240.25",THE LOUNGE HQ LTD T/A THE BLOW LOUNGE.
Children and Young Peoples Services,Head of Childrens Social Care,Supplies and Services,338045,Services,03/03/2021,3841034-43096,748.97,THE RICHMOND PARTNERSHIP.
Adult and Health Services,Head of Adults,Third Party Payments,479151,Purchase of Care,03/03/2021,3841038-RAPIDTESTINGFUND/11,"1,274.87",THERA NORTH TRADING LTD.
Adult and Health Services,Head of Adults,Third Party Payments,479151,Purchase of Care,03/03/2021,3841041-RAPIDTESTINGFUND/8,"1,284.74",TLC COMMUNITY SERVICES.
Children and Young Peoples Services,Head of Education and Skills,Transfer Payments,510028,School Children,03/03/2021,3841042-CAS-03-2021-023,900.00,TM NURSERY ENTERPRISES LTD T/A JACK IN THE BOX DAYCARE.
Neighbourhoods and Climate Change,Technical Services CM0300,Supplies and Services,304221,Equipment and Materials,03/03/2021,3841044-114451,"1,225.70",TOFCO LTD.
Adult and Health Services,Head of Adults,Third Party Payments,479151,Purchase of Care,03/03/2021,3841050-RAPIDTESTINGFUND/1,"10,708.91",TRIMS GYM LTD.
Neighbourhoods and Climate Change,Technical Services CM0300,Supplies and Services,304221,Equipment and Materials,03/03/2021,3841054-218164,543.75,TYNEDALE ROADSTONE LTD.
Neighbourhoods and Climate Change,Technical Services CM0300,Supplies and Services,304221,Equipment and Materials,03/03/2021,3841054-218167,540.29,TYNEDALE ROADSTONE LTD.
Neighbourhoods and Climate Change,Technical Services CM0300,Supplies and Services,304221,Equipment and Materials,03/03/2021,3841054-218286,500.95,TYNEDALE ROADSTONE LTD.
Neighbourhoods and Climate Change,Technical Services CM0300,Supplies and Services,304221,Equipment and Materials,03/03/2021,3841054-218404,528.18,TYNEDALE ROADSTONE LTD.
Neighbourhoods and Climate Change,Technical Services CM0300,Supplies and Services,304221,Equipment and Materials,03/03/2021,3841054-218512,758.27,TYNEDALE ROADSTONE LTD.
Neighbourhoods and Climate Change,Technical Services CM0300,Supplies and Services,304221,Equipment and Materials,03/03/2021,3841054-218517,952.89,TYNEDALE ROADSTONE LTD.
Neighbourhoods and Climate Change,Technical Services CM0300,Supplies and Services,304221,Equipment and Materials,03/03/2021,3841054-218518,751.42,TYNEDALE ROADSTONE LTD.
"Regeneration, Economy and Growth",Transport and Contracted Services,Supplies and Services,342215,Computers and Communications,03/03/2021,3841057-48287,"1,997.86",UK TELEMATICS LTD.
Adult and Health Services,Head of Adults,Third Party Payments,479151,Purchase of Care,03/03/2021,3841059-RAPIDTESTINGFUND/15,"1,274.87",UNITED RESPONSE.
"Regeneration, Economy and Growth",Transport and Contracted Services,Construction work A908,908105,Construction work,03/03/2021,3841060-102800,"3,891.70",UNIVERSAL SYSTEMS SOLUTIONS (SECURITY) LTD.
Neighbourhoods and Climate Change,Environmental Services,Transport,210057,Repair and Maintenance of Vehicles,03/03/2021,3841062-25510,773.14,VERSALIFT DISTRIBUTORS (UK) LTD.
Neighbourhoods and Climate Change,Environmental Services,Supplies and Services,304259,Equipment and Materials,03/03/2021,3841067-0005017038,"1,365.00",VISION TECHNIQUES (UK) LTD.
Neighbourhoods and Climate Change,Environmental Services,Supplies and Services,304259,Equipment and Materials,03/03/2021,3841067-0005017717,"1,365.00",VISION TECHNIQUES (UK) LTD.
Resources BK0010,Digital and Customer Services,Supplies and Services,344015,Telephones,03/03/2021,3841068-OZ85300,"2,500.00",VODAFONE LTD.
Resources BK0010,Digital and Customer Services,Supplies and Services,344015,Telephones,03/03/2021,3841068-OZ85301,"1,000.00",VODAFONE LTD.
Children and Young Peoples Services,Head of Education and Skills,Transport,230006,Contract Hire,03/03/2021,3841069-F702-FEB21,903.00,WAINE SANDERSON T/A 1A CAB.
Children and Young Peoples Services,Head of Early Help Inclusion & Vulnerable Children.,Supplies and Services,304259,Equipment and Materials,03/03/2021,3841071-6023437,525.77,WATERLOGIC GB LTD.*
Children and Young Peoples Services,Head of Education and Skills,Transport,230007,Contract Hire,03/03/2021,3841074-16365,"2,088.00",WEARDALE MOTOR SERVICES LTD.
Children and Young Peoples Services,Head of Education and Skills,Transport,230007,Contract Hire,03/03/2021,3841074-16358,"2,814.00",WEARDALE MOTOR SERVICES LTD.
Children and Young Peoples Services,Head of Education and Skills,Transport,230003,Contract Hire,03/03/2021,3841074-16359,"3,090.00",WEARDALE MOTOR SERVICES LTD.
Children and Young Peoples Services,Head of Education and Skills,Transport,230003,Contract Hire,03/03/2021,3841074-16364,"3,525.00",WEARDALE MOTOR SERVICES LTD.
Children and Young Peoples Services,Head of Education and Skills,Transport,230008,Contract Hire,03/03/2021,3841074-16362,"2,805.00",WEARDALE MOTOR SERVICES LTD.
Children and Young Peoples Services,Head of Education and Skills,Transport,230008,Contract Hire,03/03/2021,3841074-16363,"3,090.00",WEARDALE MOTOR SERVICES LTD.
Children and Young Peoples Services,Head of Education and Skills,Transport,230035,Contract Hire,03/03/2021,3841075-7433,765.00,WEARDALE PRIVATE HIRE.
Children and Young Peoples Services,Head of Education and Skills,Transport,230008,Contract Hire,03/03/2021,3841075-7439,"2,752.68",WEARDALE PRIVATE HIRE.
Children and Young Peoples Services,Head of Education and Skills,Transport,230008,Contract Hire,03/03/2021,3841075-7438,"2,493.00",WEARDALE PRIVATE HIRE.
Children and Young Peoples Services,Head of Education and Skills,Transport,230010,Contract Hire,03/03/2021,3841075-7435,"1,320.00",WEARDALE PRIVATE HIRE.
Children and Young Peoples Services,Head of Education and Skills,Transport,230004,Contract Hire,03/03/2021,3841075-7434,506.25,WEARDALE PRIVATE HIRE.
Resources BK0010,Digital and Customer Services,Supplies and Services,304639,Equipment and Materials,03/03/2021,3841083-KY64973,510.00,XMA LTD.
Adult and Health Services,Head of Adults,Third Party Payments,479151,Purchase of Care,03/03/2021,3841085-RAPIDTESTINGFUND/27,"33,656.63",YS SERVICES LTD T/A EMBRACING CARE.
Children and Young Peoples Services,Head of Education and Skills,Transport,230007,Contract Hire,04/03/2021,3841089-22101,"1,195.25",24/7 TAXI SERVICES LTD.
Children and Young Peoples Services,Head of Education and Skills,Transport,230012,Contract Hire,04/03/2021,3841089-22120,"1,815.00",24/7 TAXI SERVICES LTD.
Children and Young Peoples Services,Head of Education and Skills,Transport,230007,Contract Hire,04/03/2021,3841089-22103,663.75,24/7 TAXI SERVICES LTD.
Children and Young Peoples Services,Head of Education and Skills,Transport,230034,Contract Hire,04/03/2021,3841089-221202,892.20,24/7 TAXI SERVICES LTD.
Children and Young Peoples Services,Head of Education and Skills,Transport,230008,Contract Hire,04/03/2021,3841089-22105,"1,658.55",24/7 TAXI SERVICES LTD.
Children and Young Peoples Services,Head of Education and Skills,Transport,230008,Contract Hire,04/03/2021,3841089-22106,"1,264.05",24/7 TAXI SERVICES LTD.
Children and Young Peoples Services,Head of Education and Skills,Transport,230008,Contract Hire,04/03/2021,3841089-22107,"1,633.80",24/7 TAXI SERVICES LTD.
Children and Young Peoples Services,Head of Education and Skills,Transport,230008,Contract Hire,04/03/2021,3841089-22108,930.00,24/7 TAXI SERVICES LTD.
Children and Young Peoples Services,Head of Education and Skills,Transport,230008,Contract Hire,04/03/2021,3841089-22110,"1,633.35",24/7 TAXI SERVICES LTD.
Children and Young Peoples Services,Head of Education and Skills,Transport,230008,Contract Hire,04/03/2021,3841089-22112,"1,451.25",24/7 TAXI SERVICES LTD.
Children and Young Peoples Services,Head of Education and Skills,Transport,230008,Contract Hire,04/03/2021,3841089-22114,"1,012.50",24/7 TAXI SERVICES LTD.
Children and Young Peoples Services,Head of Education and Skills,Transport,230006,Contract Hire,04/03/2021,3841089-12117,"2,490.00",24/7 TAXI SERVICES LTD.
Children and Young Peoples Services,Head of Education and Skills,Transport,230006,Contract Hire,04/03/2021,3841089-22109,668.25,24/7 TAXI SERVICES LTD.
Children and Young Peoples Services,Head of Education and Skills,Transport,230006,Contract Hire,04/03/2021,3841089-22116,"1,066.56",24/7 TAXI SERVICES LTD.
Children and Young Peoples Services,Head of Education and Skills,Transport,230006,Contract Hire,04/03/2021,3841089-22117,"1,969.50",24/7 TAXI SERVICES LTD.
Children and Young Peoples Services,Head of Education and Skills,Transport,230034,Contract Hire,04/03/2021,3841090-10442,"1,484.91",24X7LTD.
Children and Young Peoples Services,Head of Education and Skills,Transport,230034,Contract Hire,04/03/2021,3841090-10438,"2,158.95",24X7LTD.
Children and Young Peoples Services,Head of Education and Skills,Transport,230007,Contract Hire,04/03/2021,3841090-10441,699.30,24X7LTD.
Children and Young Peoples Services,Head of Education and Skills,Transport,230007,Contract Hire,04/03/2021,3841090-10439,944.32,24X7LTD.
Children and Young Peoples Services,Head of Education and Skills,Transport,230009,Contract Hire,04/03/2021,3841090-10444,873.00,24X7LTD.
Children and Young Peoples Services,Head of Education and Skills,Transport,230035,Contract Hire,04/03/2021,3841090-10440,785.85,24X7LTD.
Children and Young Peoples Services,Head of Education and Skills,Transport,230008,Contract Hire,04/03/2021,3841090-10452,"1,292.20",24X7LTD.
Children and Young Peoples Services,Head of Education and Skills,Transport,230034,Contract Hire,04/03/2021,3841092-6-4422,"1,005.00",A & C TAXIS.
Adult and Health Services,Head of Adults,Transport,230005,Contract Hire,04/03/2021,3841093-0221/SF,645.48,AABAT TAXIS.
Children and Young Peoples Services,Head of Education and Skills,Transport,230012,Contract Hire,04/03/2021,3841093-0221/SS,720.00,AABAT TAXIS.
Children and Young Peoples Services,Head of Education and Skills,Transport,230012,Contract Hire,04/03/2021,3841093-0221/SE,871.15,AABAT TAXIS.
Children and Young Peoples Services,Head of Education and Skills,Transport,230007,Contract Hire,04/03/2021,3841093-0221/SL,803.57,AABAT TAXIS.
Children and Young Peoples Services,Head of Education and Skills,Transport,230007,Contract Hire,04/03/2021,3841093-0221/SM,551.25,AABAT TAXIS.
Children and Young Peoples Services,Head of Education and Skills,Transport,230008,Contract Hire,04/03/2021,3841093-0221/SP,995.40,AABAT TAXIS.
Children and Young Peoples Services,Head of Education and Skills,Transport,230008,Contract Hire,04/03/2021,3841093-0221/SC,"1,800.00",AABAT TAXIS.
Children and Young Peoples Services,Head of Education and Skills,Transport,230008,Contract Hire,04/03/2021,3841093-0221/SX,888.75,AABAT TAXIS.
Children and Young Peoples Services,Head of Education and Skills,Transport,230006,Contract Hire,04/03/2021,3841093-0221/SA,"2,174.00",AABAT TAXIS.
Children and Young Peoples Services,Head of Education and Skills,Transport,230005,Contract Hire,04/03/2021,3841093-0221/SB,633.75,AABAT TAXIS.
Children and Young Peoples Services,Head of Education and Skills,Transfer Payments,510034,School Children,04/03/2021,3841097-LACPP20-21SPRING,"1,200.00",ACRE RIGG ACADEMY.
Children and Young Peoples Services,Head of Education and Skills,Transfer Payments,510034,School Children,04/03/2021,3841099-LACPP20-21SPRING,"1,800.00",ADVANCE LEARNING PARTNERSHIP.
Children and Young Peoples Services,Head of Education and Skills,Transfer Payments,510034,School Children,04/03/2021,3841100-LACPP20-21SPRING,"1,200.00",ADVANCE LEARNING PARTNERSHIP.
Children and Young Peoples Services,Head of Education and Skills,Transport,230008,Contract Hire,04/03/2021,3841101-03/21,540.00,ADVANCE TRAVEL.
Neighbourhoods and Climate Change,Community Protection,Supplies and Services,338027,Services,04/03/2021,3841103-28452513,"1,246.89",AECOM LTD.
Children and Young Peoples Services,Head of Education and Skills,Transport,230010,Contract Hire,04/03/2021,3841106-012FEB21,"2,185.84",AIRPORT TRANSFER DURHAM.
Children and Young Peoples Services,Head of Education and Skills,Transport,230007,Contract Hire,04/03/2021,3841109-DCC074,812.85,ALSTON ROAD GARAGE.
Children and Young Peoples Services,Head of Education and Skills,Transport,230007,Contract Hire,04/03/2021,3841109-DCC073,"1,542.50",ALSTON ROAD GARAGE.
Children and Young Peoples Services,Head of Education and Skills,Transport,230006,Contract Hire,04/03/2021,3841109-DCC072A,901.80,ALSTON ROAD GARAGE.
Children and Young Peoples Services,Head of Education and Skills,Transport,230006,Contract Hire,04/03/2021,3841109-DCC075,676.35,ALSTON ROAD GARAGE.
Children and Young Peoples Services,Head of Education and Skills,Transport,230008,Contract Hire,04/03/2021,3841113-0108,"1,177.60",ANDREW SIMPSON T/A ANDY`S CABS.
Children and Young Peoples Services,Head of Education and Skills,Supplies and Services,312009,Newspapers books and periodicals E312,04/03/2021,3841124-6410944,629.44,ASKEWS & HOLTS LIBRARY SERVICES LTD.
Adult and Health Services,Head of Adults,Transport,230005,Contract Hire,04/03/2021,3841125-DCC5FEB21,"1,111.95",ATLAS TAXIS BISHOP AUCKLAND.
Adult and Health Services,Head of Adults,Transport,230005,Contract Hire,04/03/2021,3841125-DCC13FEB2021,"1,315.76",ATLAS TAXIS BISHOP AUCKLAND.
Children and Young Peoples Services,Head of Education and Skills,Transport,230008,Contract Hire,04/03/2021,3841125-DCC04FEB21,"1,839.00",ATLAS TAXIS BISHOP AUCKLAND.
Children and Young Peoples Services,Head of Education and Skills,Transport,230008,Contract Hire,04/03/2021,3841125-DCC03FEB21,"1,980.00",ATLAS TAXIS BISHOP AUCKLAND.
Children and Young Peoples Services,Head of Education and Skills,Transport,230008,Contract Hire,04/03/2021,3841125-DCC11FEB21,"1,980.00",ATLAS TAXIS BISHOP AUCKLAND.
Children and Young Peoples Services,Head of Education and Skills,Transport,230008,Contract Hire,04/03/2021,3841125-DCC7FEB21,"2,454.32",ATLAS TAXIS BISHOP AUCKLAND.
Children and Young Peoples Services,Head of Education and Skills,Transport,230008,Contract Hire,04/03/2021,3841125-DCC8FEB21,"2,600.20",ATLAS TAXIS BISHOP AUCKLAND.
Children and Young Peoples Services,Head of Education and Skills,Transport,230008,Contract Hire,04/03/2021,3841125-DCC10FEB21,"2,990.00",ATLAS TAXIS BISHOP AUCKLAND.
Children and Young Peoples Services,Head of Education and Skills,Transport,230008,Contract Hire,04/03/2021,3841125-DCC9FEB21,"1,590.12",ATLAS TAXIS BISHOP AUCKLAND.
Adult and Health Services,Head of Adults,Transport,230005,Contract Hire,04/03/2021,3841126-04199,700.54,ATLAS TAXIS CONSETT.
Children and Young Peoples Services,Head of Education and Skills,Transport,230006,Contract Hire,04/03/2021,3841126-04195,"1,032.50",ATLAS TAXIS CONSETT.
Children and Young Peoples Services,Head of Education and Skills,Transport,230007,Contract Hire,04/03/2021,3841126-04196,512.64,ATLAS TAXIS CONSETT.
Children and Young Peoples Services,Head of Education and Skills,Transport,230006,Contract Hire,04/03/2021,3841126-04198,895.50,ATLAS TAXIS CONSETT.
Dedicated Schools Grant BG0015,DSG High Needs Block,Transport,230009,Contract Hire,04/03/2021,3841126-04202,657.00,ATLAS TAXIS CONSETT.
Neighbourhoods and Climate Change,Environmental Services,Supplies and Services,304221,Equipment and Materials,04/03/2021,3841128-98258159,"1,393.09",BALL COLEGRAVE LTD.
Neighbourhoods and Climate Change,Environmental Services,Supplies and Services,304221,Equipment and Materials,04/03/2021,3841128-98306021,"1,440.20",BALL COLEGRAVE LTD.
Children and Young Peoples Services,Head of Education and Skills,Transport,230008,Contract Hire,04/03/2021,3841132-948,"1,283.67",BEELINE MINI BUSES.
Children and Young Peoples Services,Head of Education and Skills,Transport,230006,Contract Hire,04/03/2021,3841132-950,"1,402.53",BEELINE MINI BUSES.
Children and Young Peoples Services,Head of Education and Skills,Transport,230008,Contract Hire,04/03/2021,3841132-949,"1,494.86",BEELINE MINI BUSES.
Children and Young Peoples Services,Head of Education and Skills,Transport,230003,Contract Hire,04/03/2021,3841133-STJOHNS803022021,"2,190.00",BELL BROTHERS TRAVEL.
Children and Young Peoples Services,Head of Education and Skills,Transport,230006,Contract Hire,04/03/2021,3841135-20,"1,566.00",BELMONT TAXIS.
Adult and Health Services,Commissioning inc Supporting People,Third Party Payments,479111,Purchase of Care,04/03/2021,3841136-DHP0093,"102,588.25",BERNICIA GROUP LTD.*
Dedicated Schools Grant BG0015,DSG Early Years Block,Transfer Payments,510030,School Children,04/03/2021,3841140-24312,681.45,BISHOP AUCKLAND COLLEGE NURSERY.
Children and Young Peoples Services,Head of Education and Skills,Transfer Payments,510034,School Children,04/03/2021,3841143-LACPP20-21SPRING,600.00,BISHOP CHADWICK CATHOLIC EDUCATION TRUST (NSCET).
Children and Young Peoples Services,Head of Education and Skills,Transfer Payments,510034,School Children,04/03/2021,3841145-LACPP20-21SPRING,"3,600.00",BISHOP CHADWICK CATHOLIC EDUCATION TRUST (NSCET).
Children and Young Peoples Services,Head of Education and Skills,Transfer Payments,510034,School Children,04/03/2021,3841146-LACPP20-21SPRING,600.00,BISHOP CHADWICK CATHOLIC EDUCATION TRUST (NSCET).
Children and Young Peoples Services,Head of Education and Skills,Transfer Payments,510034,School Children,04/03/2021,3841147-LACPP20-21SPRING,"4,800.00",BISHOP HOGARTH CATHOLIC EDUCATION TRUST T/A  ST JOHN`S SCHOOL & SIXTH FORM COLLEGE.
Children and Young Peoples Services,Head of Education and Skills,Transfer Payments,510034,School Children,04/03/2021,3841148-LACPP20-21SPRING,600.00,BISHOP HOGARTH CATHOLIC EDUCATION TRUST.
Children and Young Peoples Services,Head of Education and Skills,Transfer Payments,510034,School Children,04/03/2021,3841149-LACPP20-21SPRING,600.00,BISHOP IAN RAMSEY C OF E PRIMARY SCHOOL.
Children and Young Peoples Services,Head of Education and Skills,Transfer Payments,510034,School Children,04/03/2021,3841150-LACPP20-21SPRING,"2,400.00",BISHOP WILKINSON CE TRUST T/A ST LEONARD`S CATHOLIC SCHOOL.
Children and Young Peoples Services,Head of Education and Skills,Transport,230007,Contract Hire,04/03/2021,3841153-99H,"1,618.20",BOBS TAXIS.
Children and Young Peoples Services,Head of Education and Skills,Transport,230007,Contract Hire,04/03/2021,3841153-99G,"1,518.00",BOBS TAXIS.
Children and Young Peoples Services,Head of Education and Skills,Transport,230008,Contract Hire,04/03/2021,3841155-BZ00363,654.75,BREZ`S TAXIS.
Neighbourhoods and Climate Change,Technical Services CM0300,Third Party Payments,430100,Rendered by Private Contractors,04/03/2021,3841156-47803,"2,118.13",BRIDGEWAY CONSULTING LTD.
Neighbourhoods and Climate Change,Technical Services CM0300,Third Party Payments,430100,Rendered by Private Contractors,04/03/2021,3841156-47804,"8,419.26",BRIDGEWAY CONSULTING LTD.
Neighbourhoods and Climate Change,Technical Services CM0300,Third Party Payments,430100,Rendered by Private Contractors,04/03/2021,3841156-47805,"12,245.91",BRIDGEWAY CONSULTING LTD.
Dedicated Schools Grant BG0015,DSG Early Years Block,Transfer Payments,510030,School Children,04/03/2021,3841157-24313,"1,542.24",BRIGHT STAR NURSERY.
Dedicated Schools Grant BG0015,DSG Early Years Block,Transfer Payments,510032,School Children,04/03/2021,3841157-24273,"1,522.92",BRIGHT STAR NURSERY.
Dedicated Schools Grant BG0015,DSG Early Years Block,Transfer Payments,510030,School Children,04/03/2021,3841163-24314,"1,591.20",BUSY BEARS (DURHAM) LTD.
Dedicated Schools Grant BG0015,DSG Early Years Block,Transfer Payments,510032,School Children,04/03/2021,3841163-24274,543.90,BUSY BEARS (DURHAM) LTD.
Dedicated Schools Grant BG0015,DSG Early Years Block,Transfer Payments,510032,School Children,04/03/2021,3841164-24275,932.40,BUSY BEES (DURHAM) LTD.
Dedicated Schools Grant BG0015,DSG Early Years Block,Transfer Payments,510030,School Children,04/03/2021,3841165-24315,526.68,BYERLEY ROAD PRE SCHOOL.
Children and Young Peoples Services,Head of Education and Skills,Transport,230008,Contract Hire,04/03/2021,3841166-W112020,"1,012.50",C & R TAXIS.
Children and Young Peoples Services,Head of Education and Skills,Transport,230008,Contract Hire,04/03/2021,3841166-W030017,"1,237.50",C & R TAXIS.
Children and Young Peoples Services,Head of Education and Skills,Transport,230034,Contract Hire,04/03/2021,3841167-BIL0227,"1,708.00",CA MUSGROVE.
Children and Young Peoples Services,Head of Education and Skills,Transport,230008,Contract Hire,04/03/2021,3841167-BIL0226,800.38,CA MUSGROVE.
Dedicated Schools Grant BG0015,DSG Early Years Block,Transfer Payments,510032,School Children,04/03/2021,3841170-24276,"2,486.40",CASTLE KINDERGARTEN LTD.
"Regeneration, Economy and Growth",Corporate Property and Land,Third Party Payments,430100,Rendered by Private Contractors,04/03/2021,3841171-7780,808.36,CATHEDRAL LOCK & SAFE SERVICES LTD.
Children and Young Peoples Services,Head of Education and Skills,Transport,230007,Contract Hire,04/03/2021,3841178-03-FEB21,697.50,CHAPMAN TRAVEL.
Adult and Health Services,Commissioning inc Supporting People,Third Party Payments,479102,Purchase of Care,04/03/2021,3841181-YJ/4105,"3,363.98",CHILD ACTION NORTHWEST.
Adult and Health Services,Commissioning inc Supporting People,Third Party Payments,479102,Purchase of Care,04/03/2021,3841181-YJ/4106,773.41,CHILD ACTION NORTHWEST.
Children and Young Peoples Services,Head of Education and Skills,Transport,230006,Contract Hire,04/03/2021,3841182-F797-6-FEB,720.00,CHRIS BELL T/A MEGAN`S TAXIS.
Children and Young Peoples Services,Head of Education and Skills,Transport,230007,Contract Hire,04/03/2021,3841183-5269/06,504.00,CHRISTOPHER MADDISON (TAXI).
Children and Young Peoples Services,Head of Education and Skills,Transport,230006,Contract Hire,04/03/2021,3841183-F830/11,580.50,CHRISTOPHER MADDISON (TAXI).
Children and Young Peoples Services,Head of Childrens Social Care,Third Party Payments,440038,Other third party payments E440,04/03/2021,3841188-4037,800.00,CITY OF SUNDERLAND YMCA LTD.
Children and Young Peoples Services,Head of Childrens Social Care,Third Party Payments,440038,Other third party payments E440,04/03/2021,3841188-4039,800.00,CITY OF SUNDERLAND YMCA LTD.
Children and Young Peoples Services,Head of Childrens Social Care,Third Party Payments,440038,Other third party payments E440,04/03/2021,3841188-4049,800.00,CITY OF SUNDERLAND YMCA LTD.
Children and Young Peoples Services,Head of Childrens Social Care,Third Party Payments,440038,Other third party payments E440,04/03/2021,3841188-4051,800.00,CITY OF SUNDERLAND YMCA LTD.
Children and Young Peoples Services,Head of Childrens Social Care,Third Party Payments,440038,Other third party payments E440,04/03/2021,3841188-4053,800.00,CITY OF SUNDERLAND YMCA LTD.
Children and Young Peoples Services,Head of Childrens Social Care,Third Party Payments,440038,Other third party payments E440,04/03/2021,3841188-4055,800.00,CITY OF SUNDERLAND YMCA LTD.
Children and Young Peoples Services,Head of Childrens Social Care,Third Party Payments,440038,Other third party payments E440,04/03/2021,3841188-4058,"2,742.72",CITY OF SUNDERLAND YMCA LTD.
Children and Young Peoples Services,Head of Childrens Social Care,Third Party Payments,440038,Other third party payments E440,04/03/2021,3841188-4059,800.00,CITY OF SUNDERLAND YMCA LTD.
Children and Young Peoples Services,Head of Childrens Social Care,Third Party Payments,440038,Other third party payments E440,04/03/2021,3841188-4078,800.00,CITY OF SUNDERLAND YMCA LTD.
Children and Young Peoples Services,Head of Childrens Social Care,Third Party Payments,440038,Other third party payments E440,04/03/2021,3841188-4080,800.00,CITY OF SUNDERLAND YMCA LTD.
Children and Young Peoples Services,Head of Childrens Social Care,Third Party Payments,440038,Other third party payments E440,04/03/2021,3841188-4094,800.00,CITY OF SUNDERLAND YMCA LTD.
Children and Young Peoples Services,Head of Childrens Social Care,Third Party Payments,440038,Other third party payments E440,04/03/2021,3841188-4096,800.00,CITY OF SUNDERLAND YMCA LTD.
Children and Young Peoples Services,Head of Childrens Social Care,Third Party Payments,440039,Other third party payments E440,04/03/2021,3841188-4017,"1,027.00",CITY OF SUNDERLAND YMCA LTD.
Children and Young Peoples Services,Head of Childrens Social Care,Third Party Payments,440039,Other third party payments E440,04/03/2021,3841188-4036,800.00,CITY OF SUNDERLAND YMCA LTD.
Children and Young Peoples Services,Head of Childrens Social Care,Third Party Payments,440039,Other third party payments E440,04/03/2021,3841188-4063,800.00,CITY OF SUNDERLAND YMCA LTD.
Children and Young Peoples Services,Head of Childrens Social Care,Third Party Payments,440039,Other third party payments E440,04/03/2021,3841188-4065,800.00,CITY OF SUNDERLAND YMCA LTD.
Children and Young Peoples Services,Head of Childrens Social Care,Third Party Payments,440039,Other third party payments E440,04/03/2021,3841188-4069,800.00,CITY OF SUNDERLAND YMCA LTD.
Children and Young Peoples Services,Head of Childrens Social Care,Third Party Payments,440039,Other third party payments E440,04/03/2021,3841188-4077,800.00,CITY OF SUNDERLAND YMCA LTD.
Children and Young Peoples Services,Head of Childrens Social Care,Third Party Payments,440039,Other third party payments E440,04/03/2021,3841188-4092,800.00,CITY OF SUNDERLAND YMCA LTD.
"Regeneration, Economy and Growth",Corporate Property and Land,Supplies and Services,304221,Equipment and Materials,04/03/2021,3841189-2852ABC895,523.13,CITY PLUMBING SUPPLIES HOLDINGS LTD.
"Regeneration, Economy and Growth",Corporate Property and Land,Supplies and Services,304221,Equipment and Materials,04/03/2021,3841189-2852ABC898,520.43,CITY PLUMBING SUPPLIES HOLDINGS LTD.
Resources BK0010,Finance & Transactional Services,Supplies and Services,338066,Services,04/03/2021,3841190-C/BN212697,"4,368.70",CIVICA UK LTD.
Resources BK0010,Finance & Transactional Services,Supplies and Services,338066,Services,04/03/2021,3841190-C/BN212698,"3,409.70",CIVICA UK LTD.
Children and Young Peoples Services,Head of Education and Skills,Transport,230008,Contract Hire,04/03/2021,3841191-INV-053,675.00,CLARE LYNSEY STEWART T/A K&C TAXIS.
"Regeneration, Economy and Growth",Corporate Property and Land,Premises,150015,Apportioned Exps of Operational Blds,04/03/2021,3841193-158131,534.55,CLEE HILL PLANT LTD.
Dedicated Schools Grant BG0015,DSG Early Years Block,Transfer Payments,510030,School Children,04/03/2021,3841195-24318,897.60,CLEVER CLOGS DAY NURSERY (DURHAM) LTD.
Children and Young Peoples Services,Head of Education and Skills,Transfer Payments,510034,School Children,04/03/2021,3841196-LACPP20-21SPRING,"4,200.00",CLEVES CROSS LEARNING TRUST T/A ROSA STREET PRIMARY SCHOOL.
Children and Young Peoples Services,Head of Education and Skills,Transfer Payments,510034,School Children,04/03/2021,3841197-LACPP20-21SPRING,"1,800.00",CLEVES CROSS LEARNING TRUST.
Children and Young Peoples Services,Head of Childrens Social Care,Transport,230005,Contract Hire,04/03/2021,3841200-CLUBCV2101,"5,735.75",CLUBMAN CABS.
Children and Young Peoples Services,Head of Childrens Social Care,Transport,230005,Contract Hire,04/03/2021,3841200-CLUBCV2102,"9,104.75",CLUBMAN CABS.
Neighbourhoods and Climate Change,Technical Services CM0300,Stock A926,926900,Stock in hand-Inventory system,04/03/2021,3841201-811199,942.50,CMT EQUIPMENT LTD.
Neighbourhoods and Climate Change,Environmental Services,Supplies and Services,384199,Miscellaneous Expenses,04/03/2021,3841204-JOB001/20263,570.00,COLIN JOBLING T/A RAINBOW INTERNATIONAL.
Resources BK0010,Legal & Democratic Services,Supplies and Services,338025,Services,04/03/2021,3841202-S44995-01989,900.00,CO-OPERATIVE FUNERAL CARE.
Dedicated Schools Grant BG0015,DSG Early Years Block,Transfer Payments,510032,School Children,04/03/2021,3841209-24287,"1,476.30",CORECARE NA LTD.
Children and Young Peoples Services,Head of Education and Skills,Transport,230008,Contract Hire,04/03/2021,3841215-110498,"1,786.50",CROFT BUSINESS SERVICES (UK) LTD T/A CROFT TAXIS.
Children and Young Peoples Services,Head of Childrens Social Care,Transport,230005,Contract Hire,04/03/2021,3841215-110527,"2,057.72",CROFT BUSINESS SERVICES (UK) LTD T/A CROFT TAXIS.
Adult and Health Services,Head of Adults,Transport,230005,Contract Hire,04/03/2021,3841219-THOR0221,869.88,D IRVING T/A BJ TAXIS.
Children and Young Peoples Services,Head of Education and Skills,Transport,230034,Contract Hire,04/03/2021,3841219-SEDGEFIELD260221,528.75,D IRVING T/A BJ TAXIS.
Children and Young Peoples Services,Head of Education and Skills,Transport,230008,Contract Hire,04/03/2021,3841220-1719,"1,041.30",DA TAXIS.
Children and Young Peoples Services,Head of Education and Skills,Transport,230006,Contract Hire,04/03/2021,3841222-DPHCFEB2101,930.00,DALELINK PRIVATE HIRE.
Children and Young Peoples Services,Head of Education and Skills,Transport,230008,Contract Hire,04/03/2021,3841224-3617,"1,905.01",DAVES MINIBUSES.
Children and Young Peoples Services,Head of Education and Skills,Transport,230008,Contract Hire,04/03/2021,3841224-3618,"1,182.00",DAVES MINIBUSES.
Children and Young Peoples Services,Head of Education and Skills,Transport,230008,Contract Hire,04/03/2021,3841224-3615,"1,685.59",DAVES MINIBUSES.
Children and Young Peoples Services,Head of Education and Skills,Transport,230008,Contract Hire,04/03/2021,3841224-3616,"1,014.60",DAVES MINIBUSES.
Children and Young Peoples Services,Head of Education and Skills,Transport,230008,Contract Hire,04/03/2021,3841224-3619,"1,391.22",DAVES MINIBUSES.
Children and Young Peoples Services,Head of Education and Skills,Transport,230006,Contract Hire,04/03/2021,3841227-0074,"2,486.25",DAVID WALKER TAXIS.
Dedicated Schools Grant BG0015,DSG Early Years Block,Transfer Payments,510032,School Children,04/03/2021,3841229-24305,740.74,DAYPARK LTD T/A YELLOW WELLIES.
Dedicated Schools Grant BG0015,DSG Early Years Block,Transfer Payments,510030,School Children,04/03/2021,3841232-24321,"1,712.00",DEERNESS VALLEY NURSERY SCHOOL.
Resources BK0010,Digital and Customer Services,Stock A926,926900,Stock in hand-Inventory system,04/03/2021,3841233-7402682448,"1,728.69",DELL COMPUTER CORPORATION LTD.
Children and Young Peoples Services,Head of Education and Skills,Transfer Payments,510034,School Children,04/03/2021,3841234-LACPP20-21SPRING,"1,800.00",DENE ACADEMY.
Children and Young Peoples Services,Head of Education and Skills,Transfer Payments,510034,School Children,04/03/2021,3841235-LACPP20-21SPRING,600.00,DENE HOUSE PRIMARY SCHOOL (ACADEMY).
Neighbourhoods and Climate Change,Environmental Services,Stock A926,926004,Stock,04/03/2021,3841236-96402812,"1,288.10",DENNIS EAGLE LTD T/A TERBERG MATEC (UK) LTD.
Resources BK0010,Legal & Democratic Services,Supplies and Services,338042,Services,04/03/2021,3841237-359437/INVNC463,900.00,DERE STREET BARRISTERS.
Children and Young Peoples Services,Head of Childrens Social Care,Supplies and Services,338043,Services,04/03/2021,3841241-RDA/NS/68237/1,750.00,DMA LAW LTD.
Children and Young Peoples Services,Head of Education and Skills,Transport,230008,Contract Hire,04/03/2021,3841243-A060FEB20/21,"1,125.00",DONNA`S TAXIS.
Neighbourhoods and Climate Change,Environmental Services,Supplies and Services,338066,Services,04/03/2021,3841248-INV-2026,500.00,DRC CONSULTING (NE) LTD.
Children and Young Peoples Services,Head of Education and Skills,Transfer Payments,510034,School Children,04/03/2021,3841249-LACPP20-21SPRING,"1,200.00",DURHAM & NEWCASTLE DIOCESAN LEARNING TRUST T/A STANHOPE BARRINGTON C OF E PRIMARY SCHOOL.
Children and Young Peoples Services,Head of Education and Skills,Transfer Payments,510034,School Children,04/03/2021,3841254-LACPP20-21SPRING,"2,400.00",EDEN LEARNING TRUST T/A FERRYHILL BUSINESS & ENTERPRISE COLLEGE.
Children and Young Peoples Services,Head of Education and Skills,Transfer Payments,510034,School Children,04/03/2021,3841255-LACPP20-21SPRING,"4,800.00",EDEN LEARNING TRUST T/A SEAHAM HIGH SCHOOL.
Children and Young Peoples Services,Head of Education and Skills,Transfer Payments,510034,School Children,04/03/2021,3841256-LACPP20-21SPRING,"3,000.00",EDEN LEARNING TRUST T/A TANFIELD SCHOOL.
Children and Young Peoples Services,Head of Education and Skills,Transfer Payments,510034,School Children,04/03/2021,3841257-LACPP20-21SPRING,"5,400.00",EDEN LEARNING TRUST T/A WOODHAM ACADEMY.
"Regeneration, Economy and Growth",Corporate Property and Land,Supplies and Services,304221,Equipment and Materials,04/03/2021,3841258-059-277506,"3,350.00",EDMUNDSON ELECTRICAL LTD.
Dedicated Schools Grant BG0015,DSG Early Years Block,Transfer Payments,510032,School Children,04/03/2021,3841263-24282,"1,476.30",EMERALDS LITTLE GEMS DAYCARE LTD.
Neighbourhoods and Climate Change,Environmental Services,Supplies and Services,304337,Equipment and Materials,04/03/2021,3841267-6879441,"10,310.40",ESE WORLD LTD.
Neighbourhoods and Climate Change,Environmental Services,Supplies and Services,304221,Equipment and Materials,04/03/2021,3841267-6882654,"2,577.60",ESE WORLD LTD.
Neighbourhoods and Climate Change,Environmental Services,Supplies and Services,304221,Equipment and Materials,04/03/2021,3841267-6882845,"9,880.80",ESE WORLD LTD.
Adult and Health Services,Head of Adults,Third Party Payments,478151,Purchase of Care,04/03/2021,3841268-21066,"3,704.40",ESSENTIAL CARE & SUPPORT LTD.
Adult and Health Services,Head of Adults,Third Party Payments,478151,Purchase of Care,04/03/2021,3841269-21058,"1,062.00",ESSENTIAL CARE & SUPPORT LTD.
Children and Young Peoples Services,Head of Education and Skills,Transfer Payments,510034,School Children,04/03/2021,3841272-LACPP20-21SPRING,"7,200.00",EXCEL ACADEMY PARTNERSHIP T/A FRAMWELLGATE SCHOOL DURHAM.
"Regeneration, Economy and Growth",Corporate Property and Land,Third Party Payments,430100,Rendered by Private Contractors,04/03/2021,3841273-10582-7641,525.00,EXPERVENT LTD T/A EXPERVENT AIR MOVEMENT SOLUTIONS.
Dedicated Schools Grant BG0015,DSG Early Years Block,Transfer Payments,510030,School Children,04/03/2021,3841274-24323,"28,967.40",EXPLORERS DAY CARE.
Dedicated Schools Grant BG0015,DSG Early Years Block,Transfer Payments,510032,School Children,04/03/2021,3841274-24283,"2,564.10",EXPLORERS DAY CARE.
Neighbourhoods and Climate Change,Environmental Services,Supplies and Services,304252,Equipment and Materials,04/03/2021,3841284-007109212,"1,431.78",GAP GROUP LTD.
Neighbourhoods and Climate Change,Technical Services CM0300,Supplies and Services,304357,Equipment and Materials,04/03/2021,3841284-DCC140221,"17,042.62",GAP GROUP LTD.
Neighbourhoods and Climate Change,Technical Services CM0300,Supplies and Services,304357,Equipment and Materials,04/03/2021,3841284-DCC210221,"17,398.81",GAP GROUP LTD.
Neighbourhoods and Climate Change,Technical Services CM0300,Supplies and Services,304252,Equipment and Materials,04/03/2021,3841284-007109160,692.50,GAP GROUP LTD.
Children and Young Peoples Services,Head of Education and Skills,Transport,230003,Contract Hire,04/03/2021,3841285-22676,"2,733.20",GARNETTS LTD (COACHES).
Children and Young Peoples Services,Head of Education and Skills,Transport,230003,Contract Hire,04/03/2021,3841285-22676-3302,"2,733.20",GARNETTS LTD (COACHES).
Children and Young Peoples Services,Head of Education and Skills,Transport,230003,Contract Hire,04/03/2021,3841285-22675-3020,"2,215.20",GARNETTS LTD (COACHES).
Children and Young Peoples Services,Head of Education and Skills,Transport,230003,Contract Hire,04/03/2021,3841285-22675-3024,"1,845.20",GARNETTS LTD (COACHES).
Children and Young Peoples Services,Head of Education and Skills,Transport,230003,Contract Hire,04/03/2021,3841285-22675-3027,"1,963.60",GARNETTS LTD (COACHES).
Children and Young Peoples Services,Head of Education and Skills,Transport,230003,Contract Hire,04/03/2021,3841285-22675-3028,"2,141.20",GARNETTS LTD (COACHES).
Children and Young Peoples Services,Head of Education and Skills,Transport,230007,Contract Hire,04/03/2021,3841285-22675-3029,"2,200.40",GARNETTS LTD (COACHES).
Children and Young Peoples Services,Head of Education and Skills,Transport,230007,Contract Hire,04/03/2021,3841285-22675-3199,"2,096.80",GARNETTS LTD (COACHES).
Children and Young Peoples Services,Head of Education and Skills,Transport,230007,Contract Hire,04/03/2021,3841285-22673-3007,"1,390.38",GARNETTS LTD (COACHES).
Children and Young Peoples Services,Head of Education and Skills,Transport,230007,Contract Hire,04/03/2021,3841285-22673-3435,"1,957.50",GARNETTS LTD (COACHES).
Children and Young Peoples Services,Head of Education and Skills,Transport,230007,Contract Hire,04/03/2021,3841285-22679,"4,859.60",GARNETTS LTD (COACHES).
Children and Young Peoples Services,Head of Education and Skills,Transport,230007,Contract Hire,04/03/2021,3841285-22681-4227,"2,733.20",GARNETTS LTD (COACHES).
Children and Young Peoples Services,Head of Education and Skills,Transport,230007,Contract Hire,04/03/2021,3841285-22681-4404,"10,976.68",GARNETTS LTD (COACHES).
Children and Young Peoples Services,Head of Education and Skills,Transport,230003,Contract Hire,04/03/2021,3841285-22676-3303,"2,733.20",GARNETTS LTD (COACHES).
Children and Young Peoples Services,Head of Education and Skills,Transport,230007,Contract Hire,04/03/2021,3841285-22671,"2,756.25",GARNETTS LTD (COACHES).
Children and Young Peoples Services,Head of Education and Skills,Transport,230003,Contract Hire,04/03/2021,3841285-22677-3004,"2,511.20",GARNETTS LTD (COACHES).
Children and Young Peoples Services,Head of Education and Skills,Transport,230003,Contract Hire,04/03/2021,3841285-22677-3005,"4,578.40",GARNETTS LTD (COACHES).
Children and Young Peoples Services,Head of Education and Skills,Transport,230003,Contract Hire,04/03/2021,3841285-22677-3008,"2,585.20",GARNETTS LTD (COACHES).
Children and Young Peoples Services,Head of Education and Skills,Transport,230003,Contract Hire,04/03/2021,3841285-22677-3203,"2,437.20",GARNETTS LTD (COACHES).
Children and Young Peoples Services,Head of Education and Skills,Transport,230003,Contract Hire,04/03/2021,3841285-22677-3223,"4,950.00",GARNETTS LTD (COACHES).
Children and Young Peoples Services,Head of Education and Skills,Transport,230003,Contract Hire,04/03/2021,3841285-22677-3262,"2,851.60",GARNETTS LTD (COACHES).
Children and Young Peoples Services,Head of Education and Skills,Transport,230003,Contract Hire,04/03/2021,3841285-22677-3333,"2,570.40",GARNETTS LTD (COACHES).
Children and Young Peoples Services,Head of Education and Skills,Transport,230007,Contract Hire,04/03/2021,3841286-ST025,"1,006.50",GARY JACKSON PRIVATE HIRE.
Neighbourhoods and Climate Change,Environmental Services,Transport,230005,Contract Hire,04/03/2021,3841293-INV00018213,"2,185.86",GO PLANT FLEET SERVICES LTD.*
Neighbourhoods and Climate Change,Environmental Services,Transport,230005,Contract Hire,04/03/2021,3841294-INV00019544,"2,730.00",GO PLANT FLEET SERVICES LTD.*
Neighbourhoods and Climate Change,Environmental Services,Transport,230005,Contract Hire,04/03/2021,3841294-INV00019548,"3,600.00",GO PLANT FLEET SERVICES LTD.*
Neighbourhoods and Climate Change,Environmental Services,Transport,230005,Contract Hire,04/03/2021,3841293-INV00015030,"2,415.00",GO PLANT FLEET SERVICES LTD.*
Neighbourhoods and Climate Change,Environmental Services,Transport,230005,Contract Hire,04/03/2021,3841294-INV00019543,"3,900.00",GO PLANT FLEET SERVICES LTD.*
Neighbourhoods and Climate Change,Environmental Services,Transport,230005,Contract Hire,04/03/2021,3841294-INV00019546,"3,900.00",GO PLANT FLEET SERVICES LTD.*
Neighbourhoods and Climate Change,Environmental Services,Transport,230005,Contract Hire,04/03/2021,3841294-INV00019547,"3,900.00",GO PLANT FLEET SERVICES LTD.*
Neighbourhoods and Climate Change,Environmental Services,Transport,230005,Contract Hire,04/03/2021,3841294-INV00019549,"3,000.00",GO PLANT FLEET SERVICES LTD.*
Children and Young Peoples Services,Head of Education and Skills,Transport,230006,Contract Hire,04/03/2021,3841303-006-F711,573.75,GUY`S TAXIS.
Resources BK0010,Digital and Customer Services,Supplies and Services,304303,Equipment and Materials,04/03/2021,3841304-INV0181679,"2,145.88",GVAV LTD.
Children and Young Peoples Services,Head of Education and Skills,Transport,230006,Contract Hire,04/03/2021,3841309-2,753.00,HANNAH`S TAXI.
Children and Young Peoples Services,Head of Education and Skills,Transfer Payments,510034,School Children,04/03/2021,3841311-LACPP20-21SPRING,"1,800.00",HARTSIDE PRIMARY ACADEMY.
"Regeneration, Economy and Growth",Business Durham CL0850,Premises,108125,Service Repairs and Maintenance,04/03/2021,3841313-IHI100-2570,"2,160.00",HAYFIELDS CONTRACTING LTD T/A COMPLETE WEED CONTROL (DUR & TEESIDE).
Adult and Health Services,Head of Adults,Third Party Payments,478151,Purchase of Care,04/03/2021,3841318-HLC341,"3,379.44",HIGHLEA CARE LTD.
Adult and Health Services,Head of Adults,Third Party Payments,478151,Purchase of Care,04/03/2021,3841318-HLC342,"4,472.24",HIGHLEA CARE LTD.
Adult and Health Services,Head of Adults,Third Party Payments,478151,Purchase of Care,04/03/2021,3841318-HLC343,"1,102.08",HIGHLEA CARE LTD.
Adult and Health Services,Head of Adults,Third Party Payments,478151,Purchase of Care,04/03/2021,3841318-HLC345,"2,610.72",HIGHLEA CARE LTD.
Adult and Health Services,Head of Adults,Third Party Payments,478151,Purchase of Care,04/03/2021,3841319-HLC340,"3,227.70",HIGHLEA CARE LTD.
Adult and Health Services,Head of Adults,Third Party Payments,478151,Purchase of Care,04/03/2021,3841320-HLC339,"1,359.11",HIGHLEA CARE.
Dedicated Schools Grant BG0015,DSG Early Years Block,Transfer Payments,510030,School Children,04/03/2021,3841321-24324,612.00,HIPPITOTS LTD.
Children and Young Peoples Services,Head of Education and Skills,Transport,230007,Contract Hire,04/03/2021,3841322-18226,"1,695.00",HODGSONS COACH OPERATORS LTD.
Children and Young Peoples Services,Head of Education and Skills,Transport,230007,Contract Hire,04/03/2021,3841322-18235,723.90,HODGSONS COACH OPERATORS LTD.
Children and Young Peoples Services,Head of Education and Skills,Transport,230007,Contract Hire,04/03/2021,3841322-18243,807.00,HODGSONS COACH OPERATORS LTD.
Children and Young Peoples Services,Head of Education and Skills,Transport,230007,Contract Hire,04/03/2021,3841322-18232,574.95,HODGSONS COACH OPERATORS LTD.
Children and Young Peoples Services,Head of Education and Skills,Transport,230007,Contract Hire,04/03/2021,3841322-18230,565.05,HODGSONS COACH OPERATORS LTD.
Children and Young Peoples Services,Head of Education and Skills,Transport,230007,Contract Hire,04/03/2021,3841322-18244,572.85,HODGSONS COACH OPERATORS LTD.
Children and Young Peoples Services,Head of Education and Skills,Transport,230007,Contract Hire,04/03/2021,3841322-18224-3042,"2,635.50",HODGSONS COACH OPERATORS LTD.
Children and Young Peoples Services,Head of Education and Skills,Transport,230007,Contract Hire,04/03/2021,3841322-18224-3044,"2,493.45",HODGSONS COACH OPERATORS LTD.
Children and Young Peoples Services,Head of Education and Skills,Transport,230007,Contract Hire,04/03/2021,3841322-18225,"3,246.45",HODGSONS COACH OPERATORS LTD.
Children and Young Peoples Services,Head of Education and Skills,Transport,230007,Contract Hire,04/03/2021,3841322-18227,"1,435.95",HODGSONS COACH OPERATORS LTD.
Children and Young Peoples Services,Head of Education and Skills,Transport,230007,Contract Hire,04/03/2021,3841322-18238,"1,518.75",HODGSONS COACH OPERATORS LTD.
Children and Young Peoples Services,Head of Education and Skills,Transport,230007,Contract Hire,04/03/2021,3841322-18239,"1,400.70",HODGSONS COACH OPERATORS LTD.
Children and Young Peoples Services,Head of Education and Skills,Transport,230007,Contract Hire,04/03/2021,3841322-18240,"1,010.10",HODGSONS COACH OPERATORS LTD.
Children and Young Peoples Services,Head of Education and Skills,Transport,230007,Contract Hire,04/03/2021,3841322-18245,"2,779.92",HODGSONS COACH OPERATORS LTD.
Children and Young Peoples Services,Head of Education and Skills,Transport,230034,Contract Hire,04/03/2021,3841322-18246,898.00,HODGSONS COACH OPERATORS LTD.
Children and Young Peoples Services,Head of Education and Skills,Transport,230034,Contract Hire,04/03/2021,3841322-18234,"1,090.65",HODGSONS COACH OPERATORS LTD.
Children and Young Peoples Services,Head of Education and Skills,Transport,230007,Contract Hire,04/03/2021,3841322-18229,582.15,HODGSONS COACH OPERATORS LTD.
Children and Young Peoples Services,Head of Education and Skills,Transfer Payments,510034,School Children,04/03/2021,3841324-LACPP20-21SPRING,"4,200.00",HOPE WOOD ACADEMY.
Dedicated Schools Grant BG0015,DSG Early Years Block,Transfer Payments,510032,School Children,04/03/2021,3841326-24285,569.80,HOUSE OF EDEN LTD.
Dedicated Schools Grant BG0015,DSG Early Years Block,Transfer Payments,510032,School Children,04/03/2021,3841327-24286,621.60,HOUSE OF EDEN LTD.
Neighbourhoods and Climate Change,Environmental Services,Fees,901002,Consultants fees 901002,04/03/2021,3841328-9533,"7,500.00",HOWARTH LITCHFIELD PARTNERSHIP LTD.
Dedicated Schools Grant BG0015,DSG Early Years Block,Transfer Payments,510032,School Children,04/03/2021,3841330-24288,"1,709.40",HOWLETCH & SHOTTON CHILDCARE LTD.
Neighbourhoods and Climate Change,Environmental Services,Supplies and Services,384899,Miscellaneous Expenses,04/03/2021,3841331-NEI-EXP-03-2021-005,500.00,HUTTON HENRY PARISH COUNCIL.
Adult and Health Services,Head of Adults,Transport,230005,Contract Hire,04/03/2021,3841332-IR2102009,680.00,I & R EXECUTIVE TRAVEL.
Adult and Health Services,Head of Adults,Transport,230005,Contract Hire,04/03/2021,3841333-495,629.72,IAN CLYDESDALE T/A BURNOPFIELD TAXIS.
Adult and Health Services,Head of Adults,Transport,230005,Contract Hire,04/03/2021,3841333-494,"2,340.00",IAN CLYDESDALE T/A BURNOPFIELD TAXIS.
Children and Young Peoples Services,Head of Education and Skills,Transport,230007,Contract Hire,04/03/2021,3841333-484,"1,448.87",IAN CLYDESDALE T/A BURNOPFIELD TAXIS.
Children and Young Peoples Services,Head of Education and Skills,Transport,230007,Contract Hire,04/03/2021,3841333-496,"1,297.50",IAN CLYDESDALE T/A BURNOPFIELD TAXIS.
Children and Young Peoples Services,Head of Education and Skills,Transport,230008,Contract Hire,04/03/2021,3841333-489,"1,852.50",IAN CLYDESDALE T/A BURNOPFIELD TAXIS.
Children and Young Peoples Services,Head of Education and Skills,Transport,230008,Contract Hire,04/03/2021,3841333-497,"1,414.35",IAN CLYDESDALE T/A BURNOPFIELD TAXIS.
Children and Young Peoples Services,Head of Education and Skills,Transport,230008,Contract Hire,04/03/2021,3841333-498,"1,462.50",IAN CLYDESDALE T/A BURNOPFIELD TAXIS.
Children and Young Peoples Services,Head of Education and Skills,Transport,230008,Contract Hire,04/03/2021,3841333-491,"2,376.00",IAN CLYDESDALE T/A BURNOPFIELD TAXIS.
Children and Young Peoples Services,Head of Education and Skills,Transport,230006,Contract Hire,04/03/2021,3841333-492,"2,175.00",IAN CLYDESDALE T/A BURNOPFIELD TAXIS.
Children and Young Peoples Services,Head of Education and Skills,Transport,230008,Contract Hire,04/03/2021,3841333-493,"2,650.00",IAN CLYDESDALE T/A BURNOPFIELD TAXIS.
Children and Young Peoples Services,Head of Education and Skills,Transport,230010,Contract Hire,04/03/2021,3841334-WOOD006/FEB,"1,128.07",IAN SOULSBY.
"Regeneration, Economy and Growth",Culture Sport and Tourism,Premises,120021,Energy Costs,04/03/2021,3841336-14772,"3,307.73",IMPALA ESTATES LTD.
Neighbourhoods and Climate Change,Technical Services CM0300,Stock A926,926900,Stock in hand-Inventory system,04/03/2021,3841343-769309,"2,212.00",INSTARMAC GROUP PLC.
Neighbourhoods and Climate Change,Technical Services CM0300,Third Party Payments,460006,Contract Payments,04/03/2021,3841344-INV-20577,900.00,INTEGRATED SKILLS LTD.
Neighbourhoods and Climate Change,Environmental Services,Construction work A908,908105,Construction work,04/03/2021,3841345-U110044202,665.00,INTEGRATED UTILITY SERVICES LTD.*
Children and Young Peoples Services,Head of Childrens Social Care,Supplies and Services,338045,Services,04/03/2021,3841348-ITL32686,850.24,ITL (NORTH EAST) LTD.
Neighbourhoods and Climate Change,Technical Services CM0300,Third Party Payments,430100,Rendered by Private Contractors,04/03/2021,3841350-24949,"11,028.81",JACK COUPE & SONS LTD T/A COUPE LINE.
"Regeneration, Economy and Growth",Transport and Contracted Services,Third Party Payments,460151,Contract Payments,04/03/2021,3841350-24985,647.26,JACK COUPE & SONS LTD T/A COUPE LINE.
Children and Young Peoples Services,Head of Education and Skills,Transport,230008,Contract Hire,04/03/2021,3841352-0795,"1,365.10",JACKSON`S TAXI.
Children and Young Peoples Services,Head of Education and Skills,Transport,230008,Contract Hire,04/03/2021,3841352-0796,"2,113.33",JACKSON`S TAXI.
Children and Young Peoples Services,Head of Education and Skills,Transport,230008,Contract Hire,04/03/2021,3841352-0793,"1,749.93",JACKSON`S TAXI.
Neighbourhoods and Climate Change,Environmental Services,Supplies and Services,338066,Services,04/03/2021,3841354-BURSARY-MARCH21,711.88,JAMES DILL-RUSSELL (GEOLOGIST).
Children and Young Peoples Services,Head of Education and Skills,Supplies and Services,384302,Miscellaneous Expenses,04/03/2021,3841357-1765REV,"1,980.00",JARVIS TRAINING MANAGEMENT LTD.
Adult and Health Services,Head of Adults,Transport,230005,Contract Hire,04/03/2021,3841358-2037,"1,200.00",JDS PRIVATE HIRE DURHAM.
Adult and Health Services,Head of Adults,Transport,230005,Contract Hire,04/03/2021,3841358-2051,624.40,JDS PRIVATE HIRE DURHAM.
Children and Young Peoples Services,Head of Education and Skills,Transport,230034,Contract Hire,04/03/2021,3841358-2055,"1,050.00",JDS PRIVATE HIRE DURHAM.
Children and Young Peoples Services,Head of Education and Skills,Transport,230008,Contract Hire,04/03/2021,3841358-2043,"1,178.08",JDS PRIVATE HIRE DURHAM.
Children and Young Peoples Services,Head of Education and Skills,Transport,230034,Contract Hire,04/03/2021,3841358-2054,"1,455.00",JDS PRIVATE HIRE DURHAM.
Children and Young Peoples Services,Head of Education and Skills,Transport,230009,Contract Hire,04/03/2021,3841358-2031,503.25,JDS PRIVATE HIRE DURHAM.
Children and Young Peoples Services,Head of Education and Skills,Transport,230008,Contract Hire,04/03/2021,3841358-2032,"1,804.20",JDS PRIVATE HIRE DURHAM.
Children and Young Peoples Services,Head of Education and Skills,Transport,230008,Contract Hire,04/03/2021,3841358-2033,"2,130.00",JDS PRIVATE HIRE DURHAM.
Children and Young Peoples Services,Head of Education and Skills,Transport,230008,Contract Hire,04/03/2021,3841358-2044,601.35,JDS PRIVATE HIRE DURHAM.
Children and Young Peoples Services,Head of Education and Skills,Transport,230008,Contract Hire,04/03/2021,3841358-2052,"2,130.00",JDS PRIVATE HIRE DURHAM.
Children and Young Peoples Services,Head of Education and Skills,Transport,230008,Contract Hire,04/03/2021,3841358-2053,"1,511.82",JDS PRIVATE HIRE DURHAM.
Children and Young Peoples Services,Head of Education and Skills,Transport,230008,Contract Hire,04/03/2021,3841358-2036,"2,008.20",JDS PRIVATE HIRE DURHAM.
Children and Young Peoples Services,Head of Education and Skills,Transport,230008,Contract Hire,04/03/2021,3841358-2040,"1,204.79",JDS PRIVATE HIRE DURHAM.
Children and Young Peoples Services,Head of Education and Skills,Transport,230008,Contract Hire,04/03/2021,3841358-2041,545.55,JDS PRIVATE HIRE DURHAM.
Children and Young Peoples Services,Head of Education and Skills,Transport,230008,Contract Hire,04/03/2021,3841358-2042,"1,205.09",JDS PRIVATE HIRE DURHAM.
Children and Young Peoples Services,Head of Education and Skills,Transport,230008,Contract Hire,04/03/2021,3841358-2047,"1,141.01",JDS PRIVATE HIRE DURHAM.
Children and Young Peoples Services,Head of Education and Skills,Transport,230008,Contract Hire,04/03/2021,3841358-2048,"1,838.58",JDS PRIVATE HIRE DURHAM.
Children and Young Peoples Services,Head of Education and Skills,Transport,230008,Contract Hire,04/03/2021,3841358-2034,"1,713.20",JDS PRIVATE HIRE DURHAM.
Children and Young Peoples Services,Head of Education and Skills,Transport,230010,Contract Hire,04/03/2021,3841358-2050,"1,701.30",JDS PRIVATE HIRE DURHAM.
Children and Young Peoples Services,Head of Education and Skills,Transport,230007,Contract Hire,04/03/2021,3841359-INV3041,"2,040.00",JEFF ANDERSON COACHES LTD.
Children and Young Peoples Services,Head of Education and Skills,Transport,230007,Contract Hire,04/03/2021,3841360-2996,535.62,JEFF ANDERSON COACHES LTD.
Children and Young Peoples Services,Head of Education and Skills,Transport,230007,Contract Hire,04/03/2021,3841360-3038,"1,292.40",JEFF ANDERSON COACHES LTD.
Children and Young Peoples Services,Head of Education and Skills,Transport,230008,Contract Hire,04/03/2021,3841359-INV3043,"1,049.55",JEFF ANDERSON COACHES LTD.
Children and Young Peoples Services,Head of Education and Skills,Transport,230008,Contract Hire,04/03/2021,3841359-INV3044,"1,410.45",JEFF ANDERSON COACHES LTD.
Children and Young Peoples Services,Head of Education and Skills,Transport,230008,Contract Hire,04/03/2021,3841359-INV3045,"1,519.35",JEFF ANDERSON COACHES LTD.
"Regeneration, Economy and Growth",Development and Housing,Supplies and Services,338066,Services,04/03/2021,3841361-2021/0955,"4,390.00",JEREMY BENN ASSOCIATES LTD T/A JBA CONSULTING.
Children and Young Peoples Services,Head of Education and Skills,Transfer Payments,510034,School Children,04/03/2021,3841490-LACPP20-21SPRING,600.00,JIGSAW LEARNING TRUST.
Children and Young Peoples Services,Head of Education and Skills,Transport,230007,Contract Hire,04/03/2021,3841363-30191,"1,221.00",JIM HUGHES COACHES LTD.
Children and Young Peoples Services,Head of Education and Skills,Transport,230007,Contract Hire,04/03/2021,3841363-30534,"3,247.00",JIM HUGHES COACHES LTD.
Children and Young Peoples Services,Head of Education and Skills,Transport,230007,Contract Hire,04/03/2021,3841363-30613,"4,011.00",JIM HUGHES COACHES LTD.
Children and Young Peoples Services,Head of Education and Skills,Transport,230007,Contract Hire,04/03/2021,3841363-30653,"2,674.00",JIM HUGHES COACHES LTD.
Children and Young Peoples Services,Head of Education and Skills,Transport,230007,Contract Hire,04/03/2021,3841363-30679,"3,629.00",JIM HUGHES COACHES LTD.
Children and Young Peoples Services,Head of Education and Skills,Transport,230007,Contract Hire,04/03/2021,3841363-30706,"2,865.00",JIM HUGHES COACHES LTD.
Children and Young Peoples Services,Head of Education and Skills,Transport,230003,Contract Hire,04/03/2021,3841363-30614,"4,830.00",JIM HUGHES COACHES LTD.
Children and Young Peoples Services,Head of Education and Skills,Transport,230003,Contract Hire,04/03/2021,3841363-30654,"3,220.00",JIM HUGHES COACHES LTD.
Children and Young Peoples Services,Head of Education and Skills,Transport,230003,Contract Hire,04/03/2021,3841363-30680,"4,370.00",JIM HUGHES COACHES LTD.
Children and Young Peoples Services,Head of Education and Skills,Transport,230003,Contract Hire,04/03/2021,3841363-30707,"3,450.00",JIM HUGHES COACHES LTD.
Children and Young Peoples Services,Head of Education and Skills,Transport,230034,Contract Hire,04/03/2021,3841365-FEB21,860.25,JL EBDON. T/A DIAL-A-CAB.
Children and Young Peoples Services,Head of Education and Skills,Transport,230008,Contract Hire,04/03/2021,3841365-21H,"1,765.12",JL EBDON. T/A DIAL-A-CAB.
Children and Young Peoples Services,Head of Education and Skills,Transport,230008,Contract Hire,04/03/2021,3841365-20C,"1,739.50",JL EBDON. T/A DIAL-A-CAB.
Children and Young Peoples Services,Head of Education and Skills,Transport,230008,Contract Hire,04/03/2021,3841365-21A,"1,421.00",JL EBDON. T/A DIAL-A-CAB.
Children and Young Peoples Services,Head of Education and Skills,Transport,230008,Contract Hire,04/03/2021,3841365-21B,"2,013.20",JL EBDON. T/A DIAL-A-CAB.
Neighbourhoods and Climate Change,Environmental Services,Premises,108099,Service Repairs and Maintenance,04/03/2021,3841367-496,503.00,JN KEARTON.
Dedicated Schools Grant BG0015,DSG Early Years Block,Transfer Payments,510030,School Children,04/03/2021,3841368-24319,877.80,JOANNE HARDY T/A DAYBREAK NURSERY.
Dedicated Schools Grant BG0015,DSG Early Years Block,Transfer Payments,510032,School Children,04/03/2021,3841368-24280,"1,709.40",JOANNE HARDY T/A DAYBREAK NURSERY.
Adult and Health Services,Head of Adults,Transport,230005,Contract Hire,04/03/2021,3841369-17-FEB21,"1,200.00",JOHN CRAKE & SONS MINI BUSES LTD.
Adult and Health Services,Head of Adults,Transport,230005,Contract Hire,04/03/2021,3841370-01022021,664.68,JOHN HUBBLE T/A HUBB`S TAXIS.
"Regeneration, Economy and Growth",Corporate Property and Land,Supplies and Services,384199,Miscellaneous Expenses,04/03/2021,3841372-GARAGE-DEMOLITIONS2-BELIEVEHOUSING,"53,759.44",JOHN WADE (HAULAGE) LTD.
Children and Young Peoples Services,Head of Education and Skills,Transport,230008,Contract Hire,04/03/2021,3841374-E00513,"1,510.81",JOVIAL PRIVATE HIRE.
Children and Young Peoples Services,Head of Education and Skills,Transport,230008,Contract Hire,04/03/2021,3841374-M00934,"1,201.58",JOVIAL PRIVATE HIRE.
Children and Young Peoples Services,Head of Education and Skills,Transport,230008,Contract Hire,04/03/2021,3841374-M01534,"1,395.61",JOVIAL PRIVATE HIRE.
Children and Young Peoples Services,Head of Education and Skills,Transport,230008,Contract Hire,04/03/2021,3841374-M01734,710.58,JOVIAL PRIVATE HIRE.
Neighbourhoods and Climate Change,Environmental Services,Supplies and Services,304221,Equipment and Materials,04/03/2021,3841376-0113/00297021,518.40,JT DOVE LTD.
Neighbourhoods and Climate Change,Technical Services CM0300,Supplies and Services,304221,Equipment and Materials,04/03/2021,3841376-0303/00271896,623.00,JT DOVE LTD.
Neighbourhoods and Climate Change,Technical Services CM0300,Supplies and Services,304221,Equipment and Materials,04/03/2021,3841376-0303/00297027,"1,937.50",JT DOVE LTD.
Neighbourhoods and Climate Change,Technical Services CM0300,Supplies and Services,304221,Equipment and Materials,04/03/2021,3841376-0303/00297030,"1,937.50",JT DOVE LTD.
Children and Young Peoples Services,Head of Education and Skills,Transport,230008,Contract Hire,04/03/2021,3841380-FEB21,"1,370.25",KEITH GIBSON T/A KEITH`S TAXIS.
Neighbourhoods and Climate Change,Technical Services CM0300,Supplies and Services,304358,Equipment and Materials,04/03/2021,3841381-3563,"1,044.75",KEVIN SNOWDON GROUNDWORKS LTD.
Neighbourhoods and Climate Change,Technical Services CM0300,Supplies and Services,304358,Equipment and Materials,04/03/2021,3841381-3579,"1,104.75",KEVIN SNOWDON GROUNDWORKS LTD.
Neighbourhoods and Climate Change,Technical Services CM0300,Supplies and Services,304358,Equipment and Materials,04/03/2021,3841381-3607,"1,104.75",KEVIN SNOWDON GROUNDWORKS LTD.
Neighbourhoods and Climate Change,Technical Services CM0300,Supplies and Services,304358,Equipment and Materials,04/03/2021,3841381-3618,745.88,KEVIN SNOWDON GROUNDWORKS LTD.
Neighbourhoods and Climate Change,Technical Services CM0300,Supplies and Services,304358,Equipment and Materials,04/03/2021,3841381-3620,888.00,KEVIN SNOWDON GROUNDWORKS LTD.
Neighbourhoods and Climate Change,Technical Services CM0300,Supplies and Services,304358,Equipment and Materials,04/03/2021,3841381-3622,708.00,KEVIN SNOWDON GROUNDWORKS LTD.
Neighbourhoods and Climate Change,Technical Services CM0300,Supplies and Services,304358,Equipment and Materials,04/03/2021,3841381-3624,753.00,KEVIN SNOWDON GROUNDWORKS LTD.
Neighbourhoods and Climate Change,Technical Services CM0300,Supplies and Services,304358,Equipment and Materials,04/03/2021,3841381-3625,703.00,KEVIN SNOWDON GROUNDWORKS LTD.
Neighbourhoods and Climate Change,Technical Services CM0300,Supplies and Services,304358,Equipment and Materials,04/03/2021,3841381-3626,"1,054.75",KEVIN SNOWDON GROUNDWORKS LTD.
Neighbourhoods and Climate Change,Technical Services CM0300,Supplies and Services,304358,Equipment and Materials,04/03/2021,3841381-3627,"1,054.75",KEVIN SNOWDON GROUNDWORKS LTD.
Neighbourhoods and Climate Change,Technical Services CM0300,Supplies and Services,304358,Equipment and Materials,04/03/2021,3841381-3631,"1,504.63",KEVIN SNOWDON GROUNDWORKS LTD.
Neighbourhoods and Climate Change,Technical Services CM0300,Supplies and Services,304358,Equipment and Materials,04/03/2021,3841381-3632,"1,504.63",KEVIN SNOWDON GROUNDWORKS LTD.
Dedicated Schools Grant BG0015,DSG Early Years Block,Transfer Payments,510030,School Children,04/03/2021,3841382-24325,815.90,KIDS 1ST NURSERIES DURHAM.
Dedicated Schools Grant BG0015,DSG Early Years Block,Transfer Payments,510032,School Children,04/03/2021,3841384-24290,"1,320.90",KIDZONE.
Children and Young Peoples Services,Head of Education and Skills,Transfer Payments,510034,School Children,04/03/2021,3841386-LACPP20-21SPRING,"3,600.00",KING JAMES I ACADEMY.
Children and Young Peoples Services,Head of Education and Skills,Transport,230008,Contract Hire,04/03/2021,3841387-121,"1,350.00",KINGSWAY CABS LTD.
Children and Young Peoples Services,Head of Education and Skills,Transport,230006,Contract Hire,04/03/2021,3841387-123,859.50,KINGSWAY CABS LTD.
Children and Young Peoples Services,Head of Education and Skills,Transport,230008,Contract Hire,04/03/2021,3841387-124,"1,136.25",KINGSWAY CABS LTD.
Children and Young Peoples Services,Head of Education and Skills,Transport,230008,Contract Hire,04/03/2021,3841387-122,"1,419.30",KINGSWAY CABS LTD.
Children and Young Peoples Services,Head of Education and Skills,Transport,230008,Contract Hire,04/03/2021,3841387-120,"1,537.65",KINGSWAY CABS LTD.
Dedicated Schools Grant BG0015,DSG Early Years Block,Transfer Payments,510030,School Children,04/03/2021,3841388-24327,656.70,KIRK MERRINGTON PRE SCHOOL.
Adult and Health Services,Head of Adults,Transport,230005,Contract Hire,04/03/2021,3841394-DEC20,"1,548.00",LARS CARS LTD T/A STREETCARS.
Children and Young Peoples Services,Head of Education and Skills,Transport,230010,Contract Hire,04/03/2021,3841394-DEC20B035,"2,820.00",LARS CARS LTD T/A STREETCARS.
Children and Young Peoples Services,Head of Education and Skills,Transport,230007,Contract Hire,04/03/2021,3841397-29478,886.20,LEE`S COACHES LTD.
Children and Young Peoples Services,Head of Education and Skills,Transport,230007,Contract Hire,04/03/2021,3841397-29479,"2,925.00",LEE`S COACHES LTD.
Children and Young Peoples Services,Head of Education and Skills,Transport,230007,Contract Hire,04/03/2021,3841397-29471,650.25,LEE`S COACHES LTD.
Children and Young Peoples Services,Head of Education and Skills,Transport,230007,Contract Hire,04/03/2021,3841397-29472,650.25,LEE`S COACHES LTD.
Children and Young Peoples Services,Head of Education and Skills,Transport,230007,Contract Hire,04/03/2021,3841397-29473,650.25,LEE`S COACHES LTD.
Children and Young Peoples Services,Head of Education and Skills,Transport,230003,Contract Hire,04/03/2021,3841397-29477,"3,375.00",LEE`S COACHES LTD.
Children and Young Peoples Services,Head of Childrens Social Care,Transport,230005,Contract Hire,04/03/2021,3841405-4868,"6,441.40",LOCAL TRANSPORT LTD.
Children and Young Peoples Services,Head of Education and Skills,Transport,230013,Contract Hire,04/03/2021,3841410-258,585.00,LUMLEY TAXIS.
Children and Young Peoples Services,Head of Education and Skills,Transport,230010,Contract Hire,04/03/2021,3841410-257,831.00,LUMLEY TAXIS.
Children and Young Peoples Services,Head of Education and Skills,Transport,230008,Contract Hire,04/03/2021,3841415-012,"1,387.50",MARK SUMMERS T/A MARK`S TAXI.
Adult and Health Services,Head of Adults,Third Party Payments,478151,Purchase of Care,04/03/2021,3841419-MEC100272,"5,644.80",MEARS EXTRA CARE LTD.
Adult and Health Services,Head of Adults,Third Party Payments,478151,Purchase of Care,04/03/2021,3841419-MEC100273,"5,644.80",MEARS EXTRA CARE LTD.
Children and Young Peoples Services,Head of Education and Skills,Transport,230007,Contract Hire,04/03/2021,3841420-5,787.50,MGD TAXIS.
Children and Young Peoples Services,Head of Education and Skills,Transport,230008,Contract Hire,04/03/2021,3841422-A138/FEB,859.53,MICHAEL A BODDY T/A MBS TAXIS.
Children and Young Peoples Services,Head of Education and Skills,Transport,230008,Contract Hire,04/03/2021,3841423-INV204,810.00,MICHAEL COBB T/A HAIL TAXIS.
Children and Young Peoples Services,Head of Education and Skills,Transport,230007,Contract Hire,04/03/2021,3841424-16,666.00,MICHAEL TAYLOR (TAXIS).
Children and Young Peoples Services,Head of Education and Skills,Transport,230007,Contract Hire,04/03/2021,3841425-351,540.00,MICKS TAXIS - MURTON.
Children and Young Peoples Services,Head of Education and Skills,Transport,230007,Contract Hire,04/03/2021,3841425-348,"1,380.00",MICKS TAXIS - MURTON.
Children and Young Peoples Services,Head of Education and Skills,Transport,230034,Contract Hire,04/03/2021,3841425-349,787.50,MICKS TAXIS - MURTON.
Children and Young Peoples Services,Head of Education and Skills,Transport,230007,Contract Hire,04/03/2021,3841425-346,558.38,MICKS TAXIS - MURTON.
Children and Young Peoples Services,Head of Education and Skills,Transport,230010,Contract Hire,04/03/2021,3841425-352,675.00,MICKS TAXIS - MURTON.
Children and Young Peoples Services,Head of Education and Skills,Transport,230006,Contract Hire,04/03/2021,3841425-347,506.25,MICKS TAXIS - MURTON.
"Regeneration, Economy and Growth",Corporate Property and Land,Third Party Payments,430100,Rendered by Private Contractors,04/03/2021,3841428-30559/92238987,"7,814.00",MITIE PROPERTY SERVICES (UK) LTD.
Children and Young Peoples Services,Head of Education and Skills,Transport,230008,Contract Hire,04/03/2021,3841431-0006/FEB,"1,833.45",MR A MILLWARD T/A SWISS CABS PRIVATE HIRE.
Children and Young Peoples Services,Head of Education and Skills,Transport,230034,Contract Hire,04/03/2021,3841432-237,"1,148.00",MR BRIAN JOHNSON T/A BRYS TAXIS.
Children and Young Peoples Services,Head of Education and Skills,Transport,230007,Contract Hire,04/03/2021,3841434-DJS02-21,"1,117.35",MR CT WALKER T/A CW TAXIS.
Children and Young Peoples Services,Head of Education and Skills,Transport,230008,Contract Hire,04/03/2021,3841435-E207-4,"1,002.00",MR D DONNELLY.
Dedicated Schools Grant BG0015,DSG Early Years Block,Transfer Payments,510030,School Children,04/03/2021,3841436-24332,608.94,MR D YOUNG T/A LITTLE TOTS ACADEMY.
Dedicated Schools Grant BG0015,DSG Early Years Block,Transfer Payments,510032,School Children,04/03/2021,3841436-24293,854.70,MR D YOUNG T/A LITTLE TOTS ACADEMY.
Children and Young Peoples Services,Head of Education and Skills,Transport,230034,Contract Hire,04/03/2021,3841439-KDK/FEB21-3423,931.24,MR IAN KELSEY T/A KDK TAXIS.
Children and Young Peoples Services,Head of Education and Skills,Transport,230009,Contract Hire,04/03/2021,3841439-KDK/FEB21-4390,500.40,MR IAN KELSEY T/A KDK TAXIS.
Children and Young Peoples Services,Head of Education and Skills,Transport,230006,Contract Hire,04/03/2021,3841440-JB/03/21,"1,020.00",MR J AGAR T/A PARK TAXIS.
Children and Young Peoples Services,Head of Education and Skills,Transport,230007,Contract Hire,04/03/2021,3841441-106-5284,"1,098.00",MR LJ TARRY T/A TARRY`S TAXI`S.
Children and Young Peoples Services,Head of Education and Skills,Transport,230034,Contract Hire,04/03/2021,3841442-12/2001,877.50,MR MARIUSZ LASOTA T/A BM TAXI.
Children and Young Peoples Services,Head of Education and Skills,Transport,230034,Contract Hire,04/03/2021,3841442-16/2021,"1,179.40",MR MARIUSZ LASOTA T/A BM TAXI.
Children and Young Peoples Services,Head of Education and Skills,Transport,230034,Contract Hire,04/03/2021,3841442-15/2021,726.00,MR MARIUSZ LASOTA T/A BM TAXI.
Children and Young Peoples Services,Head of Education and Skills,Transport,230006,Contract Hire,04/03/2021,3841442-18/2021,795.50,MR MARIUSZ LASOTA T/A BM TAXI.
Children and Young Peoples Services,Head of Education and Skills,Transport,230006,Contract Hire,04/03/2021,3841442-19/2021,891.10,MR MARIUSZ LASOTA T/A BM TAXI.
Children and Young Peoples Services,Head of Education and Skills,Transport,230034,Contract Hire,04/03/2021,3841443-4423-FEBRUARY,"1,418.50",MR MARK WILE T/A HARRY`S TAXIS.
Children and Young Peoples Services,Head of Education and Skills,Transport,230010,Contract Hire,04/03/2021,3841443-BL031/FEB,764.25,MR MARK WILE T/A HARRY`S TAXIS.
Children and Young Peoples Services,Head of Education and Skills,Transport,230006,Contract Hire,04/03/2021,3841443-F866/FEB,647.10,MR MARK WILE T/A HARRY`S TAXIS.
Children and Young Peoples Services,Head of Education and Skills,Transport,230008,Contract Hire,04/03/2021,3841444-145,"2,116.26",MR NEIL LEONARD T/A LENNY`S TAXIS.
Children and Young Peoples Services,Head of Education and Skills,Transport,230010,Contract Hire,04/03/2021,3841445-B036/Q1/21,"1,377.00",MR RICHARD STANDLEY T/A RS TAXI SERVICES.
Children and Young Peoples Services,Head of Education and Skills,Transport,230008,Contract Hire,04/03/2021,3841446-3157,"2,213.30",MR S BOWERS T/A DH7 TAXIS.
Children and Young Peoples Services,Head of Education and Skills,Transport,230008,Contract Hire,04/03/2021,3841446-3156,"1,749.00",MR S BOWERS T/A DH7 TAXIS.
Children and Young Peoples Services,Head of Education and Skills,Transport,230008,Contract Hire,04/03/2021,3841446-3155,896.78,MR S BOWERS T/A DH7 TAXIS.
Children and Young Peoples Services,Head of Education and Skills,Transport,230010,Contract Hire,04/03/2021,3841447-6/A,"1,080.00",MR TERENCE DOUGHERTY T/A TERRYS TAXIS.
Adult and Health Services,Head of Adults,Transport,230005,Contract Hire,04/03/2021,3841448-028,"1,044.00",MRS SAMANTHA MACKENZIE T/A SAM`S TAXIS.
Children and Young Peoples Services,Head of Education and Skills,Transport,230008,Contract Hire,04/03/2021,3841448-027,"1,016.40",MRS SAMANTHA MACKENZIE T/A SAM`S TAXIS.
Children and Young Peoples Services,Head of Education and Skills,Transport,230008,Contract Hire,04/03/2021,3841448-026,843.75,MRS SAMANTHA MACKENZIE T/A SAM`S TAXIS.
Neighbourhoods and Climate Change,Technical Services CM0300,Supplies and Services,304358,Equipment and Materials,04/03/2021,3841456-NC/140/BW,"2,447.50",NEDCO CONTRACTS (NE) LTD.
Neighbourhoods and Climate Change,Technical Services CM0300,Third Party Payments,430100,Rendered by Private Contractors,04/03/2021,3841456-NC1/C847/BW,"20,000.00",NEDCO CONTRACTS (NE) LTD.
Children and Young Peoples Services,Head of Education and Skills,Transport,230008,Contract Hire,04/03/2021,3841457-72,"1,241.93",NEIL PASSMOOR T/A NEIL`S TAXI.
Children and Young Peoples Services,Head of Education and Skills,Transfer Payments,510034,School Children,04/03/2021,3841458-LACPP20-21SPRING,"4,200.00",NEW COLLEGE ACADEMIES TRUST - CONSETT ACADEMY.
"Regeneration, Economy and Growth",Development and Housing,Supplies and Services,336005,Advertising E336,04/03/2021,3841460-36011927,575.85,NEWSQUEST (YORKSHIRE & NORTH EAST) LTD.
Children and Young Peoples Services,Head of Education and Skills,Transfer Payments,510034,School Children,04/03/2021,3841465-LACPP20-21SPRING,"3,000.00",NORTH DURHAM ACADEMY.
Children and Young Peoples Services,Head of Education and Skills,Transfer Payments,510034,School Children,04/03/2021,3841468-LACPP20-21SPRING-BROWNEY,"1,800.00",NORTH EAST LEARNING TRUST (NELT).
Children and Young Peoples Services,Head of Education and Skills,Transfer Payments,510034,School Children,04/03/2021,3841468-LACPP20-21SPRING-EASINGTON,"3,600.00",NORTH EAST LEARNING TRUST (NELT).
Children and Young Peoples Services,Head of Education and Skills,Transfer Payments,510034,School Children,04/03/2021,3841468-LACPP20-21SPRING-HERMITAGE,"3,600.00",NORTH EAST LEARNING TRUST (NELT).
Children and Young Peoples Services,Head of Education and Skills,Transfer Payments,510034,School Children,04/03/2021,3841468-LACPP20-21SPRING-SACRISTON,"1,200.00",NORTH EAST LEARNING TRUST (NELT).
Children and Young Peoples Services,Head of Education and Skills,Transfer Payments,510034,School Children,04/03/2021,3841468-LACPP20-21SPRING-SHOTTONHALL,"6,600.00",NORTH EAST LEARNING TRUST (NELT).
Children and Young Peoples Services,Head of Education and Skills,Transfer Payments,510034,School Children,04/03/2021,3841468-LACPP20-21SPRING-TEESDALE,"3,000.00",NORTH EAST LEARNING TRUST (NELT).
"Regeneration, Economy and Growth",Corporate Property and Land,Supplies and Services,304999,Equipment and Materials,04/03/2021,3841472-543080,604.00,NORTHERN TOOLS & ACCESSORIES.
Dedicated Schools Grant BG0015,DSG Early Years Block,Transfer Payments,510032,School Children,04/03/2021,3841474-24296,543.90,NORTHUMBRIAN TRUST DAY NURSERIES LTD.
"Regeneration, Economy and Growth",Culture Sport and Tourism,Supplies and Services,384199,Miscellaneous Expenses,04/03/2021,3841479-00015433,606.96,NSL LTD.
Adult and Health Services,Head of Adults,Third Party Payments,478151,Purchase of Care,04/03/2021,3841482-40777,"1,323.00",OAKLEA TRUST.
Adult and Health Services,Head of Adults,Third Party Payments,478151,Purchase of Care,04/03/2021,3841482-40778,882.00,OAKLEA TRUST.
Neighbourhoods and Climate Change,Environmental Services,Transport,215005,Running Costs of Vehicles,04/03/2021,3841486-717820,"12,617.80",OIL NRG LTD.
Neighbourhoods and Climate Change,Environmental Services,Transport,215005,Running Costs of Vehicles,04/03/2021,3841486-715085,"13,590.34",OIL NRG LTD.
Neighbourhoods and Climate Change,Environmental Services,Transport,215005,Running Costs of Vehicles,04/03/2021,3841486-718433,"15,582.75",OIL NRG LTD.
Neighbourhoods and Climate Change,Environmental Services,Transport,215022,Running Costs of Vehicles,04/03/2021,3841486-718435,"1,053.87",OIL NRG LTD.
"Regeneration, Economy and Growth",Corporate Property and Land,Third Party Payments,430100,Rendered by Private Contractors,04/03/2021,3841492-2548,"2,405.00",PARAMOUNT CEILINGS & PARTITIONS.
Neighbourhoods and Climate Change,Technical Services CM0300,Stock A926,926900,Stock in hand-Inventory system,04/03/2021,3841493-XL266972,"1,526.40",PARK ELECTRICAL DISTRIBUTORS LTD.
Children and Young Peoples Services,Head of Education and Skills,Transfer Payments,510034,School Children,04/03/2021,3841494-LACPP20-21SPRING,"1,800.00",PARK VIEW ACADEMY.
Children and Young Peoples Services,Head of Education and Skills,Transport,230007,Contract Hire,04/03/2021,3841497-47/2,816.00,PETER NAYLOR.
Children and Young Peoples Services,Head of Education and Skills,Transport,230007,Contract Hire,04/03/2021,3841497-47,888.75,PETER NAYLOR.
Children and Young Peoples Services,Head of Education and Skills,Transport,230007,Contract Hire,04/03/2021,3841497-45,625.50,PETER NAYLOR.
Children and Young Peoples Services,Head of Education and Skills,Transport,230006,Contract Hire,04/03/2021,3841499-4,"1,600.50",PHIL BELL EXECUTIVE TRAVEL.
Children and Young Peoples Services,Head of Education and Skills,Transport,230008,Contract Hire,04/03/2021,3841500-39981,"1,740.00",PHOENIX TAXIS T/A PRATT`S TAXIS.
Neighbourhoods and Climate Change,Technical Services CM0300,Third Party Payments,430100,Rendered by Private Contractors,04/03/2021,3841502-6089,"13,627.01",PINKNEY BUILDING CONTRACTORS LTD.
Adult and Health Services,Public Health CC0450,Third Party Payments,460803,Contract Payments,04/03/2021,3841503-17446/14,"5,462.77",PIONEERING CARE PARTNERSHIP.
Children and Young Peoples Services,Head of Education and Skills,Transport,230008,Contract Hire,04/03/2021,3841504-1359,"2,080.62",PODA TAXIS LTD.
Children and Young Peoples Services,Head of Education and Skills,Transport,230008,Contract Hire,04/03/2021,3841504-1358,"1,125.00",PODA TAXIS LTD.
Adult and Health Services,Head of Adults,Third Party Payments,478151,Purchase of Care,04/03/2021,3841508-2267,"19,480.40",POSITIVE INDIVIDUAL PROACTIVE SUPPORT LTD.
Adult and Health Services,Head of Adults,Third Party Payments,478151,Purchase of Care,04/03/2021,3841508-2269,"17,595.20",POSITIVE INDIVIDUAL PROACTIVE SUPPORT LTD.
Adult and Health Services,Head of Adults,Third Party Payments,478151,Purchase of Care,04/03/2021,3841508-2333,"19,480.40",POSITIVE INDIVIDUAL PROACTIVE SUPPORT LTD.
Children and Young Peoples Services,Head of Childrens Social Care,Supplies and Services,384999,Miscellaneous Expenses,04/03/2021,3841511-21484,"2,000.00",PREPAID FINANCIAL SERVICES LTD.
Children and Young Peoples Services,Head of Education and Skills,Transport,230007,Contract Hire,04/03/2021,3841512-ST6,"1,113.75",PRESTYS HACKNEY & PRIVATE HIRE TAXIS.
Children and Young Peoples Services,Head of Education and Skills,Transport,230006,Contract Hire,04/03/2021,3841512-PS6,"1,113.75",PRESTYS HACKNEY & PRIVATE HIRE TAXIS.
Children and Young Peoples Services,Head of Childrens Social Care,Third Party Payments,440046,Other third party payments E440,04/03/2021,3841513-240345,"15,842.26",PRIMARY CARE RECRUITMENT LTD.
Children and Young Peoples Services,Head of Childrens Social Care,Supplies and Services,338044,Services,04/03/2021,3841520-20194/1,585.00,PSYCHREP UK LTD.
"Regeneration, Economy and Growth",Corporate Property and Land,Construction work A908,908105,Construction work,04/03/2021,3841523-PWG3862,"2,825.30",PWG CONNECTIONS LTD.
Neighbourhoods and Climate Change,Technical Services CM0300,Third Party Payments,430100,Rendered by Private Contractors,04/03/2021,3841524-13035,653.23,QUANTUM POWER CONNECTIONS LTD.
Neighbourhoods and Climate Change,Technical Services CM0300,Third Party Payments,430100,Rendered by Private Contractors,04/03/2021,3841524-13037,547.77,QUANTUM POWER CONNECTIONS LTD.
Neighbourhoods and Climate Change,Technical Services CM0300,Third Party Payments,430100,Rendered by Private Contractors,04/03/2021,3841524-13094,"1,113.60",QUANTUM POWER CONNECTIONS LTD.
Dedicated Schools Grant BG0015,DSG Early Years Block,Transfer Payments,510030,School Children,04/03/2021,3841526-24336,"1,379.40",RAINBOW NURSERY LTD (MIDDLESTONE MOOR).
Dedicated Schools Grant BG0015,DSG Early Years Block,Transfer Payments,510030,School Children,04/03/2021,3841389-24046,827.64,REDACTED - PAYMENT TO INDIVIDUAL
Dedicated Schools Grant BG0015,DSG Early Years Block,Transfer Payments,510030,School Children,04/03/2021,3841389-24328,"1,379.40",REDACTED - PAYMENT TO INDIVIDUAL
Dedicated Schools Grant BG0015,DSG Early Years Block,Transfer Payments,510030,School Children,04/03/2021,3841398-24329,681.45,REDACTED - PAYMENT TO INDIVIDUAL
Dedicated Schools Grant BG0015,DSG Early Years Block,Transfer Payments,510030,School Children,04/03/2021,3841407-24333,"1,313.40",REDACTED - PAYMENT TO INDIVIDUAL
Dedicated Schools Grant BG0015,DSG Early Years Block,Transfer Payments,510030,School Children,04/03/2021,3841548-24338,673.20,REDACTED - PAYMENT TO INDIVIDUAL
Dedicated Schools Grant BG0015,DSG Early Years Block,Transfer Payments,510032,School Children,04/03/2021,3841315-24284,854.70,REDACTED - PAYMENT TO INDIVIDUAL
Dedicated Schools Grant BG0015,DSG Early Years Block,Transfer Payments,510032,School Children,04/03/2021,3841408-24294,854.70,REDACTED - PAYMENT TO INDIVIDUAL
Neighbourhoods and Climate Change,Technical Services CM0300,Supplies and Services,304358,Equipment and Materials,04/03/2021,3841531-4118,"1,440.00",REUBEN SMITH (PLANT HIRE) LTD.
Children and Young Peoples Services,Head of Education and Skills,Transfer Payments,510034,School Children,04/03/2021,3841532-LACPP20-21SPRING,"1,800.00",RIBBON ACADEMY TRUST.
Dedicated Schools Grant BG0015,DSG Early Years Block,Transfer Payments,510032,School Children,04/03/2021,3841533-24297,"2,020.20",RIBBON DAYCARE.
Neighbourhoods and Climate Change,Environmental Services,Supplies and Services,340001,Postages E340,04/03/2021,3841539-9062422707,"32,522.11",ROYAL MAIL GROUP PLC.
Adult and Health Services,Head of Adults,Transport,230005,Contract Hire,04/03/2021,3841542-SED112/24,"1,704.96",S & S TRAVEL LTD.
Children and Young Peoples Services,Head of Education and Skills,Transport,230008,Contract Hire,04/03/2021,3841542-S009/19,"2,178.00",S & S TRAVEL LTD.
Children and Young Peoples Services,Head of Education and Skills,Transport,230008,Contract Hire,04/03/2021,3841542-W032/19,"2,031.00",S & S TRAVEL LTD.
Children and Young Peoples Services,Head of Education and Skills,Transport,230008,Contract Hire,04/03/2021,3841542-S027/19,"1,971.92",S & S TRAVEL LTD.
Children and Young Peoples Services,Head of Education and Skills,Transport,230008,Contract Hire,04/03/2021,3841542-SO17/47,"1,797.87",S & S TRAVEL LTD.
Children and Young Peoples Services,Head of Education and Skills,Transport,230008,Contract Hire,04/03/2021,3841542-W056/19-FEB,"1,656.00",S & S TRAVEL LTD.
Children and Young Peoples Services,Head of Education and Skills,Transport,230008,Contract Hire,04/03/2021,3841542-W076/19,"1,760.52",S & S TRAVEL LTD.
Dedicated Schools Grant BG0015,DSG Early Years Block,Transfer Payments,510030,School Children,04/03/2021,3841543-24337,627.00,SACRISTON ACADEMY - EARLY YEARS T/A PRIVATE NURSERY.
"Regeneration, Economy and Growth",Transport and Contracted Services,Third Party Payments,430106,Rendered by Private Contractors,04/03/2021,3841549-3104,"149,816.34",SCARLET BAND BUS & COACH LTD.
"Regeneration, Economy and Growth",Business Durham CL0850,Supplies and Services,336005,Advertising E336,04/03/2021,3841555-21BDMAR1,"1,375.00",SECOND DRAFT LTD.
Children and Young Peoples Services,Head of Education and Skills,Transfer Payments,510034,School Children,04/03/2021,3841556-LACPP20-21SPRING,"5,400.00",SEDGEFIELD COMMUNITY COLLEGE.
Children and Young Peoples Services,Head of Education and Skills,Transport,230007,Contract Hire,04/03/2021,3841559-5275-FEB21,"1,695.00",SHAUN MILLS T/A ASM TRAVEL.
Dedicated Schools Grant BG0015,DSG Early Years Block,Transfer Payments,510030,School Children,04/03/2021,3841560-24340,"3,736.92",SHIELD ROW ACADEMY.
Dedicated Schools Grant BG0015,DSG Early Years Block,Transfer Payments,510030,School Children,04/03/2021,3841561-24341,673.20,SHOTLEY BRIDGE NURSERY SCHOOL LTD.
Children and Young Peoples Services,Head of Education and Skills,Transport,230008,Contract Hire,04/03/2021,3841562-21209,"1,676.25",SHOTTON PRIVATE HIRE.
Children and Young Peoples Services,Head of Education and Skills,Transport,230008,Contract Hire,04/03/2021,3841562-21211,"1,594.25",SHOTTON PRIVATE HIRE.
Children and Young Peoples Services,Head of Education and Skills,Transport,230006,Contract Hire,04/03/2021,3841562-21201,"1,790.70",SHOTTON PRIVATE HIRE.
Children and Young Peoples Services,Head of Education and Skills,Transport,230008,Contract Hire,04/03/2021,3841562-21203,"2,195.30",SHOTTON PRIVATE HIRE.
Children and Young Peoples Services,Head of Education and Skills,Transport,230008,Contract Hire,04/03/2021,3841562-21214,858.27,SHOTTON PRIVATE HIRE.
Children and Young Peoples Services,Head of Education and Skills,Transport,230008,Contract Hire,04/03/2021,3841562-210109,851.20,SHOTTON PRIVATE HIRE.
Children and Young Peoples Services,Head of Education and Skills,Transport,230008,Contract Hire,04/03/2021,3841562-21207,672.00,SHOTTON PRIVATE HIRE.
Children and Young Peoples Services,Head of Education and Skills,Transport,230008,Contract Hire,04/03/2021,3841562-21208,"1,701.15",SHOTTON PRIVATE HIRE.
Children and Young Peoples Services,Head of Education and Skills,Transport,230008,Contract Hire,04/03/2021,3841562-21213,"1,487.00",SHOTTON PRIVATE HIRE.
Children and Young Peoples Services,Head of Education and Skills,Transport,230010,Contract Hire,04/03/2021,3841562-21205,"1,997.57",SHOTTON PRIVATE HIRE.
Children and Young Peoples Services,Head of Education and Skills,Transport,230006,Contract Hire,04/03/2021,3841562-21202,738.00,SHOTTON PRIVATE HIRE.
"Regeneration, Economy and Growth",Corporate Property and Land,Construction work A908,908105,Construction work,04/03/2021,3841568-INS-DEMOLITION,"1,179.10",SIRIUS DEMOLITION & ASBESTOS MANAGEMENT LTD.
Children and Young Peoples Services,Head of Education and Skills,Transfer Payments,510034,School Children,04/03/2021,3841576-LACPP20-21SPRING,"6,000.00",ST BEDES CATHOLIC ACADEMY (LANCHESTER).
Dedicated Schools Grant BG0015,DSG Early Years Block,Transfer Payments,510030,School Children,04/03/2021,3841577-24343,664.95,ST OSWALD`S PRE SCHOOL LEARNING CENTRE.
Dedicated Schools Grant BG0015,DSG Early Years Block,Transfer Payments,510032,School Children,04/03/2021,3841577-24299,932.40,ST OSWALD`S PRE SCHOOL LEARNING CENTRE.
Children and Young Peoples Services,Head of Education and Skills,Transfer Payments,510034,School Children,04/03/2021,3841579-LACPP20-21SPRING,"1,200.00",STAINDROP ACADEMY.
Children and Young Peoples Services,Head of Education and Skills,Transfer Payments,510034,School Children,04/03/2021,3841580-LACPP20-21SPRING,"2,400.00",STANLEY LEARNING PARTNERSHIP.
Children and Young Peoples Services,Head of Education and Skills,Transport,230009,Contract Hire,04/03/2021,3841581-05680,"1,402.80",STANLEY TRAVEL (NORTH EAST) LTD.
Children and Young Peoples Services,Head of Education and Skills,Transport,230007,Contract Hire,04/03/2021,3841581-05679,842.70,STANLEY TRAVEL (NORTH EAST) LTD.
Children and Young Peoples Services,Head of Education and Skills,Transport,230013,Contract Hire,04/03/2021,3841581-05690,873.00,STANLEY TRAVEL (NORTH EAST) LTD.
Children and Young Peoples Services,Head of Education and Skills,Transport,230008,Contract Hire,04/03/2021,3841581-05676,607.50,STANLEY TRAVEL (NORTH EAST) LTD.
Children and Young Peoples Services,Head of Education and Skills,Transport,230008,Contract Hire,04/03/2021,3841581-05681,747.40,STANLEY TRAVEL (NORTH EAST) LTD.
Children and Young Peoples Services,Head of Education and Skills,Transport,230008,Contract Hire,04/03/2021,3841581-05692,"1,588.62",STANLEY TRAVEL (NORTH EAST) LTD.
Children and Young Peoples Services,Head of Education and Skills,Transport,230008,Contract Hire,04/03/2021,3841581-05675,"1,001.10",STANLEY TRAVEL (NORTH EAST) LTD.
Children and Young Peoples Services,Head of Education and Skills,Transport,230008,Contract Hire,04/03/2021,3841581-05689,"2,295.30",STANLEY TRAVEL (NORTH EAST) LTD.
Children and Young Peoples Services,Head of Education and Skills,Transport,230008,Contract Hire,04/03/2021,3841581-05685,"3,245.70",STANLEY TRAVEL (NORTH EAST) LTD.
Children and Young Peoples Services,Head of Education and Skills,Transport,230010,Contract Hire,04/03/2021,3841581-05691,588.60,STANLEY TRAVEL (NORTH EAST) LTD.
Neighbourhoods and Climate Change,Environmental Services,Supplies and Services,338078,Services,04/03/2021,3841582-16730,"3,444.48",STEADFAST SECURITY SOLUTIONS LTD.
Neighbourhoods and Climate Change,Technical Services CM0300,Third Party Payments,430100,Rendered by Private Contractors,04/03/2021,3841582-16690,"1,274.00",STEADFAST SECURITY SOLUTIONS LTD.
"Regeneration, Economy and Growth",Business Durham CL0850,Premises,108099,Service Repairs and Maintenance,04/03/2021,3841582-16738,"8,111.04",STEADFAST SECURITY SOLUTIONS LTD.
Children and Young Peoples Services,Head of Education and Skills,Transport,230007,Contract Hire,04/03/2021,3841584-6566,"1,582.50",STEPHEN MAUDE LTD T/A MAUDES COACHES.
Children and Young Peoples Services,Head of Education and Skills,Transport,230006,Contract Hire,04/03/2021,3841585-2105,"1,905.00",STEPHEN REED T/A STEVE`S TAXIS.
Children and Young Peoples Services,Head of Education and Skills,Transport,230007,Contract Hire,04/03/2021,3841586-00752,831.04,STEPHEN VALLANCE T/A SELECT CABS.
Children and Young Peoples Services,Head of Education and Skills,Transfer Payments,510034,School Children,04/03/2021,3841587-LACPP20-21SPRING,"4,800.00",STEPHENSON WAY ACADEMY & NURSERY SCHOOL.
Children and Young Peoples Services,Head of Education and Skills,Transport,230010,Contract Hire,04/03/2021,3841592-20200010,843.78,STEVE`S CABS (TAXIS).
Children and Young Peoples Services,Head of Education and Skills,Transport,230034,Contract Hire,04/03/2021,3841588-063,"1,307.55",STEVEN HENDERSON T/A HENDYS TAXIS.
Children and Young Peoples Services,Head of Education and Skills,Transport,230008,Contract Hire,04/03/2021,3841588-061,540.00,STEVEN HENDERSON T/A HENDYS TAXIS.
Children and Young Peoples Services,Head of Education and Skills,Transport,230006,Contract Hire,04/03/2021,3841588-062,990.00,STEVEN HENDERSON T/A HENDYS TAXIS.
Children and Young Peoples Services,Head of Education and Skills,Transport,230006,Contract Hire,04/03/2021,3841589-010321-FEBINVOICE,513.00,STEVEN OWEN TAXI.
Dedicated Schools Grant BG0015,DSG High Needs Block,Transport,230009,Contract Hire,04/03/2021,3841589-01/03/21-FEBINVOICE,765.00,STEVEN OWEN TAXI.
Children and Young Peoples Services,Head of Education and Skills,Transport,230008,Contract Hire,04/03/2021,3841590-SI-831,"1,770.00",STEVEN PRATT T/A PTL TAXIS DURHAM.
Children and Young Peoples Services,Head of Education and Skills,Transport,230008,Contract Hire,04/03/2021,3841590-SI-827,"1,181.25",STEVEN PRATT T/A PTL TAXIS DURHAM.
Children and Young Peoples Services,Head of Education and Skills,Transport,230006,Contract Hire,04/03/2021,3841590-SI-830,828.00,STEVEN PRATT T/A PTL TAXIS DURHAM.
Dedicated Schools Grant BG0015,DSG High Needs Block,Transport,230009,Contract Hire,04/03/2021,3841590-SI-829,915.75,STEVEN PRATT T/A PTL TAXIS DURHAM.
Children and Young Peoples Services,Head of Childrens Social Care,Transport,230005,Contract Hire,04/03/2021,3841590-SI-825,"4,970.20",STEVEN PRATT T/A PTL TAXIS DURHAM.
Children and Young Peoples Services,Head of Childrens Social Care,Transport,230005,Contract Hire,04/03/2021,3841590-SI-826,"11,005.20",STEVEN PRATT T/A PTL TAXIS DURHAM.
Children and Young Peoples Services,Head of Childrens Social Care,Transport,230005,Contract Hire,04/03/2021,3841593-FEB1/STL,"1,861.00",STL CABS.
Dedicated Schools Grant BG0015,DSG Early Years Block,Transfer Payments,510030,School Children,04/03/2021,3841595-24345,"1,191.30",SUNSHINE DAY NURSERY LTD.
Dedicated Schools Grant BG0015,DSG Early Years Block,Transfer Payments,510030,School Children,04/03/2021,3841597-24346,898.80,SUNSHINE DAY NURSERY LTD.
Dedicated Schools Grant BG0015,DSG Early Years Block,Transfer Payments,510032,School Children,04/03/2021,3841595-24300,"1,243.20",SUNSHINE DAY NURSERY LTD.
Dedicated Schools Grant BG0015,DSG Early Years Block,Transfer Payments,510032,School Children,04/03/2021,3841596-24301,652.68,SUNSHINE DAY NURSERY LTD.
Resources BK0010,Digital and Customer Services,Supplies and Services,342033,Computers and Communications,04/03/2021,3841600-135732,936.59,SWITCHSHOP LTD.
Adult and Health Services,Head of Adults,Transport,230005,Contract Hire,04/03/2021,3841601-8602AP,678.00,T MOORE & SON.
Adult and Health Services,Head of Adults,Transport,230005,Contract Hire,04/03/2021,3841601-8702LM,"1,130.40",T MOORE & SON.
Children and Young Peoples Services,Head of Education and Skills,Transport,230007,Contract Hire,04/03/2021,3841601-8302WA,"1,490.10",T MOORE & SON.
Children and Young Peoples Services,Head of Education and Skills,Transport,230003,Contract Hire,04/03/2021,3841601-8102SL,"1,140.00",T MOORE & SON.
Children and Young Peoples Services,Head of Education and Skills,Transport,230003,Contract Hire,04/03/2021,3841601-8202SL,"1,322.70",T MOORE & SON.
Children and Young Peoples Services,Head of Education and Skills,Transport,230003,Contract Hire,04/03/2021,3841601-7902SB,955.20,T MOORE & SON.
Children and Young Peoples Services,Head of Education and Skills,Transport,230006,Contract Hire,04/03/2021,3841601-8002BC,978.00,T MOORE & SON.
Children and Young Peoples Services,Head of Education and Skills,Transport,230008,Contract Hire,04/03/2021,3841602-B1064,838.08,TALBOTS TRAVEL LTD.
Children and Young Peoples Services,Head of Education and Skills,Transport,230008,Contract Hire,04/03/2021,3841602-B1062,"1,508.00",TALBOTS TRAVEL LTD.
Children and Young Peoples Services,Head of Education and Skills,Transport,230008,Contract Hire,04/03/2021,3841602-B1063,612.00,TALBOTS TRAVEL LTD.
Children and Young Peoples Services,Head of Education and Skills,Transport,230007,Contract Hire,04/03/2021,3841603-02/2021/005,"1,250.50",TARNS TAXIS LTD.
Children and Young Peoples Services,Head of Education and Skills,Transport,230008,Contract Hire,04/03/2021,3841603-02/2021/003,"1,830.00",TARNS TAXIS LTD.
Children and Young Peoples Services,Head of Education and Skills,Transport,230007,Contract Hire,04/03/2021,3841608-NO4055/44,"2,790.00",TED WILFORD COACHES.
Children and Young Peoples Services,Head of Education and Skills,Transport,230007,Contract Hire,04/03/2021,3841608-NO4297/17,"2,790.00",TED WILFORD COACHES.
Children and Young Peoples Services,Head of Education and Skills,Transport,230003,Contract Hire,04/03/2021,3841608-NO5030/45,"2,865.00",TED WILFORD COACHES.
Neighbourhoods and Climate Change,Technical Services CM0300,Stock A926,926900,Stock in hand-Inventory system,04/03/2021,3841619-NSIN00051457,716.45,THOMAS OWEN & SONS (NEWCASTLE) LTD.
Adult and Health Services,Commissioning inc Supporting People,Supplies and Services,377015,County Durham Development,04/03/2021,3841620-2539,"2,202.00",THREE MOTION MEDIA LTD.
Dedicated Schools Grant BG0015,DSG Early Years Block,Transfer Payments,510032,School Children,04/03/2021,3841622-24302,"1,491.84",TILLY MINTS CHERUBS DAY NURSERY LTD.
Dedicated Schools Grant BG0015,DSG Early Years Block,Transfer Payments,510032,School Children,04/03/2021,3841624-24289,621.60,TM NURSERY ENTERPRISES LTD T/A JACK IN THE BOX DAYCARE.
"Regeneration, Economy and Growth",Corporate Property and Land,Supplies and Services,304221,Equipment and Materials,04/03/2021,3841626-34140,610.00,TOTAL PUMP SOLUTIONS LTD.
Dedicated Schools Grant BG0015,DSG Early Years Block,Transfer Payments,510032,School Children,04/03/2021,3841627-24303,854.70,TOTS `R` US.
Children and Young Peoples Services,Head of Education and Skills,Transport,230007,Contract Hire,04/03/2021,3841630-WA10017,885.00,TRAVEL 6.
Children and Young Peoples Services,Head of Education and Skills,Transport,230010,Contract Hire,04/03/2021,3841630-WL20017,962.98,TRAVEL 6.
Children and Young Peoples Services,Head of Education and Skills,Transport,230008,Contract Hire,04/03/2021,3841631-17-N088,"1,194.07",TRIDENT TAXIS.
Children and Young Peoples Services,Head of Education and Skills,Transport,230008,Contract Hire,04/03/2021,3841631-16-FEB21,"1,589.40",TRIDENT TAXIS.
Resources BK0010,Legal & Democratic Services,Supplies and Services,338042,Services,04/03/2021,3841632-268296/INVGM375,"9,650.00",TRINITY CHAMBERS.
Resources BK0010,Legal & Democratic Services,Supplies and Services,338042,Services,04/03/2021,3841632-283521/INVJ0419,"3,950.00",TRINITY CHAMBERS.
Children and Young Peoples Services,Head of Education and Skills,Transfer Payments,510034,School Children,04/03/2021,3841634-LACPP20-21SPRING,"1,200.00",TUDHOE COLLIERY ACADEMY.
Children and Young Peoples Services,Head of Education and Skills,Transfer Payments,510034,School Children,04/03/2021,3841635-LACPP20-21SPRING,"1,200.00",TUDHOE LEARNING TRUST T/A SOUTH HETTON PRIMARY SCHOOL.
"Regeneration, Economy and Growth",Transport and Contracted Services,Supplies and Services,304245,Equipment and Materials,04/03/2021,3841636-3IN/10368789,"1,495.00",TUNSTALL HEALTHCARE (UK) LTD.
"Regeneration, Economy and Growth",Transport and Contracted Services,Supplies and Services,304245,Equipment and Materials,04/03/2021,3841636-3IN/10368886,"3,747.00",TUNSTALL HEALTHCARE (UK) LTD.
"Regeneration, Economy and Growth",Corporate Property and Land,Third Party Payments,430100,Rendered by Private Contractors,04/03/2021,3841640-DCC/GT/178,938.91,TYNE VALLEY FLOORING & CARPETS.
"Regeneration, Economy and Growth",Corporate Property and Land,Third Party Payments,430100,Rendered by Private Contractors,04/03/2021,3841640-DCC/GT/180,"1,188.03",TYNE VALLEY FLOORING & CARPETS.
Neighbourhoods and Climate Change,Technical Services CM0300,Supplies and Services,304221,Equipment and Materials,04/03/2021,3841641-218887,547.20,TYNEDALE ROADSTONE LTD.
Neighbourhoods and Climate Change,Technical Services CM0300,Supplies and Services,304221,Equipment and Materials,04/03/2021,3841641-218953,"1,003.87",TYNEDALE ROADSTONE LTD.
Neighbourhoods and Climate Change,Technical Services CM0300,Supplies and Services,304221,Equipment and Materials,04/03/2021,3841641-219030,"1,076.14",TYNEDALE ROADSTONE LTD.
Neighbourhoods and Climate Change,Technical Services CM0300,Supplies and Services,304221,Equipment and Materials,04/03/2021,3841641-219036,757.40,TYNEDALE ROADSTONE LTD.
Neighbourhoods and Climate Change,Technical Services CM0300,Supplies and Services,304221,Equipment and Materials,04/03/2021,3841641-219037,"1,100.90",TYNEDALE ROADSTONE LTD.
Neighbourhoods and Climate Change,Technical Services CM0300,Supplies and Services,304221,Equipment and Materials,04/03/2021,3841641-219056,996.94,TYNEDALE ROADSTONE LTD.
Neighbourhoods and Climate Change,Technical Services CM0300,Supplies and Services,304221,Equipment and Materials,04/03/2021,3841641-219146,"1,002.88",TYNEDALE ROADSTONE LTD.
Neighbourhoods and Climate Change,Technical Services CM0300,Supplies and Services,304221,Equipment and Materials,04/03/2021,3841641-219265,723.67,TYNEDALE ROADSTONE LTD.
Neighbourhoods and Climate Change,Technical Services CM0300,Supplies and Services,304221,Equipment and Materials,04/03/2021,3841641-219289,982.09,TYNEDALE ROADSTONE LTD.
Neighbourhoods and Climate Change,Technical Services CM0300,Supplies and Services,304221,Equipment and Materials,04/03/2021,3841641-219293,995.95,TYNEDALE ROADSTONE LTD.
Neighbourhoods and Climate Change,Technical Services CM0300,Supplies and Services,304221,Equipment and Materials,04/03/2021,3841641-219378,"1,010.80",TYNEDALE ROADSTONE LTD.
Children and Young Peoples Services,Head of Education and Skills,Transfer Payments,510034,School Children,04/03/2021,3841647-LACPP20-21SPRING,"1,200.00",VICTORIA LANE ACADEMY.
Resources BK0010,Digital and Customer Services,Supplies and Services,344039,Telephones,04/03/2021,3841652-UK10/012021/7948,"2,966.27",VODAFONE LTD.
Neighbourhoods and Climate Change,Technical Services CM0300,Supplies and Services,304358,Equipment and Materials,04/03/2021,3841655-48898,577.50,W MARLEY AGRICULTURAL CONTRACTORS LTD.
Neighbourhoods and Climate Change,Technical Services CM0300,Supplies and Services,304358,Equipment and Materials,04/03/2021,3841655-48899,"5,582.00",W MARLEY AGRICULTURAL CONTRACTORS LTD.
Neighbourhoods and Climate Change,Technical Services CM0300,Supplies and Services,304358,Equipment and Materials,04/03/2021,3841655-48901,"5,582.00",W MARLEY AGRICULTURAL CONTRACTORS LTD.
Children and Young Peoples Services,Head of Education and Skills,Transport,230007,Contract Hire,04/03/2021,3841656-95-FEB21,506.25,WALTONS TAXIS.
Children and Young Peoples Services,Head of Education and Skills,Transport,230007,Contract Hire,04/03/2021,3841656-94/A,842.00,WALTONS TAXIS.
Dedicated Schools Grant BG0015,DSG Early Years Block,Transfer Payments,510032,School Children,04/03/2021,3841660-24277,854.70,WAYMAN DEVELOPMENTS LTD T/A CHILDSPLAY PRIVATE NURSERY.
Adult and Health Services,Head of Adults,Transport,230005,Contract Hire,04/03/2021,3841661-1244/A,855.00,WAYNE`S TAXIS.
Adult and Health Services,Head of Adults,Transport,230005,Contract Hire,04/03/2021,3841661-1243/A,"1,380.00",WAYNE`S TAXIS.
"Regeneration, Economy and Growth",Transport and Contracted Services,Third Party Payments,430106,Rendered by Private Contractors,04/03/2021,3841662-16354,"39,544.77",WEARDALE MOTOR SERVICES LTD.
Children and Young Peoples Services,Head of Education and Skills,Transport,230008,Contract Hire,04/03/2021,3841664-15360,951.00,WENDYS` TAXIS.
Children and Young Peoples Services,Head of Education and Skills,Transport,230008,Contract Hire,04/03/2021,3841665-WESTLEA260221,716.10,WESTLEA TAXIS.
Children and Young Peoples Services,Head of Education and Skills,Transport,230016,Contract Hire,04/03/2021,3841667-VR155,"1,042.26",WHITTONSTALL TAXIS SERVICE.
Children and Young Peoples Services,Head of Education and Skills,Transfer Payments,510034,School Children,04/03/2021,3841668-LACPP20-21SPRING,"2,400.00",WHITWORTH PARK SCHOOL.*
Children and Young Peoples Services,Head of Education and Skills,Transport,230007,Contract Hire,04/03/2021,3841671-6,"1,021.65",WILLIAM PINDER T/A FEATHERBED TAXIS.
Children and Young Peoples Services,Head of Education and Skills,Transport,230008,Contract Hire,04/03/2021,3841672-13,"1,879.90",WISS TAXIS.
Children and Young Peoples Services,Head of Education and Skills,Transport,230008,Contract Hire,04/03/2021,3841672-06-FEB21,"1,372.50",WISS TAXIS.
Resources BK0010,Digital and Customer Services,Supplies and Services,304639,Equipment and Materials,04/03/2021,3841674-KY65861,"1,362.72",XMA LTD.
Children and Young Peoples Services,Head of Education and Skills,Supplies and Services,342033,Computers and Communications,04/03/2021,3841674-KY62499,"1,396.20",XMA LTD.
Dedicated Schools Grant BG0015,DSG Early Years Block,Transfer Payments,510030,School Children,04/03/2021,3841676-24348,"1,379.40",YORK HOUSE NURSERY.
Neighbourhoods and Climate Change,Technical Services CM0300,Stock A926,926900,Stock in hand-Inventory system,05/03/2021,3841679-39449,915.00,1ST COVERALL COMPANY LTD.
Neighbourhoods and Climate Change,Technical Services CM0300,Stock A926,926900,Stock in hand-Inventory system,05/03/2021,3841679-39457,"1,169.00",1ST COVERALL COMPANY LTD.
Neighbourhoods and Climate Change,Technical Services CM0300,Stock A926,926900,Stock in hand-Inventory system,05/03/2021,3841679-39458,915.00,1ST COVERALL COMPANY LTD.
"Regeneration, Economy and Growth",Business Durham CL0850,Premises,106082,Centrally Controlled Rep and Maint,05/03/2021,3841682-45576162,942.00,ADT FIRE & SECURITY PLC.
"Regeneration, Economy and Growth",Transport and Contracted Services,Premises,108099,Service Repairs and Maintenance,05/03/2021,3841682-46509383,"1,630.75",ADT FIRE & SECURITY PLC.
Neighbourhoods and Climate Change,Technical Services CM0300,Supplies and Services,304221,Equipment and Materials,05/03/2021,3841683-31039123,752.08,AGGREGATE INDUSTRIES UK LTD.
Neighbourhoods and Climate Change,Technical Services CM0300,Supplies and Services,304221,Equipment and Materials,05/03/2021,3841683-31039124,"1,523.91",AGGREGATE INDUSTRIES UK LTD.
Neighbourhoods and Climate Change,Technical Services CM0300,Supplies and Services,304221,Equipment and Materials,05/03/2021,3841683-31050124,"1,501.00",AGGREGATE INDUSTRIES UK LTD.
Neighbourhoods and Climate Change,Environmental Services,Transport,210057,Repair and Maintenance of Vehicles,05/03/2021,3841692-15180727,"1,050.34",BELL TRUCK SALES LTD T/A BELL TRUCK & VAN.
Neighbourhoods and Climate Change,Environmental Services,Transport,210057,Repair and Maintenance of Vehicles,05/03/2021,3841692-15180752,929.08,BELL TRUCK SALES LTD T/A BELL TRUCK & VAN.
Adult and Health Services,Public Health CC0450,Supplies and Services,338066,Services,05/03/2021,3841695-SIN022003,"88,771.78",BLOOM PROCUREMENT SERVICES LTD (FORMERLY NEPRO LTD).
"Regeneration, Economy and Growth",Culture Sport and Tourism,Supplies and Services,312013,Newspapers books and periodicals E312,05/03/2021,3841696-61964,919.89,BOLINDA DIGITAL LTD.
Neighbourhoods and Climate Change,Partnerships & Community Engagement Div.,Cap Exp on Grants & Other Financial Assistance (REFCUS),918004,Contributions to other bodies 918004,05/03/2021,3841697-VOUCHER20NB-EDRC025,"2,280.00",BOWBURN COMMUNITY ASSOCIATION.
Neighbourhoods and Climate Change,Partnerships & Community Engagement Div.,Cap Exp on Grants & Other Financial Assistance (REFCUS),918004,Contributions to other bodies 918004,05/03/2021,3841697-VOUCHER20NB-EDRC031,"6,000.00",BOWBURN COMMUNITY ASSOCIATION.
"Regeneration, Economy and Growth",Transport and Contracted Services,Supplies and Services,338066,Services,05/03/2021,3841699-59853,906.00,BRITISH PARKING ASSOCIATION.
Adult and Health Services,Head of Adults,Debtors,930186,Sustainability Funded Nursing Care,05/03/2021,3841702-SUSTAINABILITYPAYMENT2-14,"11,631.40",CARE UK COMMUNITY PARTNERSHIPS LTD.
"Regeneration, Economy and Growth",Corporate Property and Land,Supplies and Services,304221,Equipment and Materials,05/03/2021,3841704-10434401,"1,543.50",CARPET & FLOORING (TRADING) LTD.
Neighbourhoods and Climate Change,Technical Services CM0300,Supplies and Services,304259,Equipment and Materials,05/03/2021,3841705-418316,596.00,CARRS BILLINGTON AGRICULTURE.
Neighbourhoods and Climate Change,Partnerships & Community Engagement Div.,Cap Exp on Grants & Other Financial Assistance (REFCUS),918004,Contributions to other bodies 918004,05/03/2021,3841708-VOUCHER20NB-MDUR010,"3,500.00",CASTLESIDE & DISTRICT COMMUNITY ASSOCIATION.
"Regeneration, Economy and Growth",Business Durham CL0850,Supplies and Services,368008,Incentives to Industrialists,05/03/2021,3841709-RED-03-2021-029,"55,000.00",CDC ENTERPRISE AGENCY LTD.
"Regeneration, Economy and Growth",Culture Sport and Tourism,Premises,106080,Centrally Controlled Rep and Maint,05/03/2021,3841710-21500506,961.15,CENTRICA BUSINESS SOLUTIONS UK LTD.*
"Regeneration, Economy and Growth",Culture Sport and Tourism,Premises,106080,Centrally Controlled Rep and Maint,05/03/2021,3841710-21500507,774.78,CENTRICA BUSINESS SOLUTIONS UK LTD.*
Neighbourhoods and Climate Change,Technical Services CM0300,Stock A926,926900,Stock in hand-Inventory system,05/03/2021,3841714-811200,984.20,CMT EQUIPMENT LTD.
Children and Young Peoples Services,Head of Childrens Social Care,Transport,230005,Contract Hire,05/03/2021,3841720-110551,615.16,CROFT BUSINESS SERVICES (UK) LTD T/A CROFT TAXIS.
Children and Young Peoples Services,Head of Childrens Social Care,Transport,230005,Contract Hire,05/03/2021,3841720-110550,580.28,CROFT BUSINESS SERVICES (UK) LTD T/A CROFT TAXIS.
Adult and Health Services,Head of Adults,Debtors,930186,Sustainability Funded Nursing Care,05/03/2021,3841721-SUSTAINABILITYPAYMENT2-12,"8,210.40",CROWN CARE VI LTD.
Adult and Health Services,Public Health CC0450,Third Party Payments,460803,Contract Payments,05/03/2021,3841722-INV-967,600.00,CRUSE BEREAVEMENT CARE.
Adult and Health Services,Head of Adults,Third Party Payments,470101,Purchase of Care,05/03/2021,3841726-STAFFABSENCERELIEFFUND/2,"6,466.06",DIPTON CARE HOME LTD.
Adult and Health Services,Head of Adults,Debtors,930186,Sustainability Funded Nursing Care,05/03/2021,3841726-SUSTAINABILITYPAYMENT2-5,"10,947.20",DIPTON CARE HOME LTD.
"Regeneration, Economy and Growth",Corporate Property and Land,Third Party Payments,430100,Rendered by Private Contractors,05/03/2021,3841727-0563,"1,265.00",DUNELM TESTING LTD.
Neighbourhoods and Climate Change,Environmental Services,Supplies and Services,304221,Equipment and Materials,05/03/2021,3841728-0000061314,642.60,EAST RIDING HORTICULTURE LTD.
"Regeneration, Economy and Growth",Corporate Property and Land,Supplies and Services,304221,Equipment and Materials,05/03/2021,3841729-059-275103,972.22,EDMUNDSON ELECTRICAL LTD.
Adult and Health Services,Head of Adults,Debtors,930186,Sustainability Funded Nursing Care,05/03/2021,3841731-SUSTAINABILITYPAYMENT2-6,"6,842.00",ELBA CARE LTD.
Adult and Health Services,Head of Adults,Debtors,930186,Sustainability Funded Nursing Care,05/03/2021,3841733-SUSTAINABILITYPAYMENT2-7,"2,052.60",FOUR SEASONS (NO 9) LTD.
Adult and Health Services,Head of Adults,Debtors,930186,Sustainability Funded Nursing Care,05/03/2021,3841734-SUSTAINABILITYPAYMENT2-11,"2,907.85",FOUR SEASONS HOMES NO 1 LTD.
Neighbourhoods and Climate Change,Technical Services CM0300,Supplies and Services,304221,Equipment and Materials,05/03/2021,3841739-000113,550.00,GRAEME HOPPER LTD.
Adult and Health Services,Public Health CC0450,Third Party Payments,460803,Contract Payments,05/03/2021,3841743-DCCDA012,"41,416.75",HARBOUR SUPPORT SERVICES.
Adult and Health Services,Public Health CC0450,Third Party Payments,460803,Contract Payments,05/03/2021,3841743-DCCDAW001,"9,855.00",HARBOUR SUPPORT SERVICES.
Adult and Health Services,Public Health CC0450,Third Party Payments,460803,Contract Payments,05/03/2021,3841743-DCCVC012,"4,321.42",HARBOUR SUPPORT SERVICES.
"Regeneration, Economy and Growth",Business Durham CL0850,Supplies and Services,384199,Miscellaneous Expenses,05/03/2021,3841744-IHI100-2569,"1,060.00",HAYFIELDS CONTRACTING LTD T/A COMPLETE WEED CONTROL (DUR & TEESIDE).
Adult and Health Services,Head of Adults,Debtors,930186,Sustainability Funded Nursing Care,05/03/2021,3841745-SUSTAINABILITYPAYMENT2-10,"5,986.75",HC-ONE BEAMISH LTD.
Adult and Health Services,Head of Adults,Debtors,930186,Sustainability Funded Nursing Care,05/03/2021,3841746-SUSTAINABILITYPAYMENT2-3,"5,473.60",HC-ONE LTD.
Adult and Health Services,Head of Adults,Debtors,930186,Sustainability Funded Nursing Care,05/03/2021,3841747-SUSTAINABILITYPAYMENT2-13,"4,789.40",HC-ONE LTD.
Adult and Health Services,Head of Adults,Debtors,930186,Sustainability Funded Nursing Care,05/03/2021,3841748-SUSTAINABILITYPAYMENT2-15,"3,249.95",HC-ONE LTD.
